Workbook

Sheet Benutzerhinweise
C5: Arbeitshilfe zum BNB_BK Version 2017
C8: EINFÜHRUNG

Sheet Zielvereinbarung
B1: ='BNB-System'!B1 -> Projekt: | C1: Projektbezeichnung | E1: Datum: | G1: 2015-12-17
B2: ='BNB-System'!B2 -> Bewertungssystem Nachhaltiges Bauen (BNB)
B3: ='BNB-System'!B3 -> Systemvariante Büro- und Verwaltungsgebäude, Modul Komplettmodernisierung (BNB_BK) - Version 2017
B4: Nachhaltigkeitskriterien | D4: maximale Punktzahl | E4: Gewichtung Gesamt-bewertung | F4: Zielwert der Ziel-vereinbarung | H4: Kommentar | I4: erforderliche Leistungen, Maßnahmen, Methoden | J4: erforderliche Dokumente/ Nachweise | K4: Termin | L4: Zuständigkeit | N4: Zielwert | O4: Gesamt-bewertung gemäß End-bewertung
F5: Soll | G5: Punkt- zahl
B7: Gesamterfüllungsgrad | G7: =IF(SUM(O13:O221)>100%,100%,SUM(O13:O221)) -> 0
M8: qwertz
B10: ='BNB-System'!E6 -> Ökologische Qualität | E10: ='BNB-System'!J6 -> 0.225 | G10: =G13*(E13/100)+G14*(E14/100)+G15*(E15/100)+G16*(E16/100)+G17*(E17/100)+G18*(E18/100)+G24*(E24/100)+G26*(E26/100)+G30*(E30/100)+G31*(E31/100) -> 0 | N10: ='BNB-System'!K6 -> 1800
N11: ='BNB-System'!K7 -> 0
C12: Wirkungen auf die globale und lokale Umwelt | N12: ='BNB-System'!K8 -> 0
B13: ='BNB-System'!E9 -> 1.1.1 | C13: ='BNB-System'!F9 -> Treibhauspotenzial (GWP) | D13: ='BNB-System'!G9 -> 100 | E13: ='BNB-System'!J9 -> 0.0375 | F13: o | N13: ='BNB-System'!K9 -> 300 | O13: =IF(ISNUMBER(E13*G13/100),E13*G13/100,0) -> 0
B14: ='BNB-System'!E10 -> 1.1.2 | C14: ='BNB-System'!F10 -> Ozonschichtabbaupotenzial (ODP) | D14: ='BNB-System'!G10 -> 100 | E14: ='BNB-System'!J10 -> 0.0125 | F14: x | N14: ='BNB-System'!K10 -> 100 | O14: =IF(ISNUMBER(E14*G14/100),E14*G14/100,0) -> 0
B15: ='BNB-System'!E11 -> 1.1.3 | C15: ='BNB-System'!F11 -> Ozonbildungspotenzial (POCP) | D15: ='BNB-System'!G11 -> 100 | E15: ='BNB-System'!J11 -> 0.0125 | N15: ='BNB-System'!K11 -> 100 | O15: 0
B16: ='BNB-System'!E12 -> 1.1.4 | C16: ='BNB-System'!F12 -> Versauerungspotenzial (AP) | D16: ='BNB-System'!G12 -> 100 | E16: ='BNB-System'!J12 -> 0.0125 | N16: ='BNB-System'!K12 -> 100 | O16: 0
B17: ='BNB-System'!E13 -> 1.1.5 | C17: ='BNB-System'!F13 -> Überdüngungspotenzial (EP) | D17: ='BNB-System'!G13 -> 100 | E17: ='BNB-System'!J13 -> 0.0125 | N17: ='BNB-System'!K13 -> 100 | O17: 0
B18: ='BNB-System'!E14 -> 1.1.6 | C18: ='BNB-System'!F14 -> Risiken für die lokale Umwelt | D18: ='BNB-System'!G14 -> 100 | E18: ='BNB-System'!J14 -> 0.0375 | G18: =IF(SUM(G19:G23)>100,100,SUM(G19:G23)) -> 0 | N18: ='BNB-System'!K14 -> 300 | O18: 0
C19: ='BNB-System'!F15 -> Altsubstanz: Q4 ; Neusubstanz: Q5 | D19: ='BNB-System'!G15 -> 100
C20: ='BNB-System'!F16 -> Altsubstanz: Q3 ; Neusubstanz: Q4 | D20: ='BNB-System'!G16 -> 75
C21: ='BNB-System'!F17 -> Altsubstanz: Q2 ; Neusubstanz: Q3 | D21: ='BNB-System'!G17 -> 50
C22: ='BNB-System'!F18 -> Altsubstanz: Q1 ; Neusubstanz: Q2 | D22: ='BNB-System'!G18 -> 25
C23: ='BNB-System'!F19 -> Altsubstanz: Q1 ; Neusubstanz: Q1 | D23: ='BNB-System'!G19 -> 10
B24: ='BNB-System'!E20 -> 1.1.7 | C24: ='BNB-System'!F20 -> Nachhaltige Materialgewinnung / Biodiversität | D24: ='BNB-System'!G20 -> 100 | E24: ='BNB-System'!J20 -> 0.0125 | N24: ='BNB-System'!K20 -> 100 | O24: 0
C25: ='BNB-System'!F21 -> Ressourceninanspruchnahme | N25: ='BNB-System'!K21 -> 0
B26: ='BNB-System'!E22 -> 1.2.1 | C26: ='BNB-System'!F22 -> Primärenergiebedarf | D26: ='BNB-System'!G22 -> 100 | E26: ='BNB-System'!J22 -> 0.0375 | G26: =IF(SUM(G27:G29)>100,100,SUM(G27:G29)) -> 0 | N26: ='BNB-System'!K22 -> 300 | O26: 0
C27: ='BNB-System'!F23 -> Primärenergiebedarf nicht erneuerbar (PEne) | D27: ='BNB-System'!G23 -> 60 | N27: ='BNB-System'!K23 -> 0
C28: ='BNB-System'!F24 -> Gesamtprimärenergiebedarf (PEges) | D28: ='BNB-System'!G24 -> 40
C29: ='BNB-System'!F25 -> Anteil der erneuerbaren Primärenergie (Pee) | D29: ='BNB-System'!G25 -> 20 | N29: ='BNB-System'!K25 -> 0
B30: ='BNB-System'!E26 -> 1.2.3 | C30: ='BNB-System'!F26 -> Trinkwasserbedarf und Abwasseraufkommen | D30: ='BNB-System'!G26 -> 100 | E30: ='BNB-System'!J26 -> 0.025 | N30: ='BNB-System'!K26 -> 200 | O30: =IF(ISNUMBER(E30*G30/100),E30*G30/100,0) -> 0
B31: ='BNB-System'!E27 -> 1.2.4 | C31: ='BNB-System'!F27 -> Flächeninanspruchnahme | D31: ='BNB-System'!G27 -> 100 | E31: ='BNB-System'!J27 -> 0.025 | G31: =IF(SUM(G32:G33)>100,100,SUM(G32:G33)) -> 0 | N31: ='BNB-System'!K27 -> 200 | O31: 0
C32: ='BNB-System'!F28 -> Veränderung der Flächeninanspruchnahme | D32: ='BNB-System'!G28 -> 100
C33: ='BNB-System'!F29 -> Ausgleichsmaßnahmen und Flächenrecycling | D33: ='BNB-System'!G29 -> 40
N34: ='BNB-System'!K30 -> 0
B35: ='BNB-System'!E31 -> Ökonomische Qualität | E35: ='BNB-System'!J31 -> 0.225 | G35: =G38*(E38/100)+G40*(E40/100)+G41*(E41/100) -> 0 | N35: ='BNB-System'!K31 -> 600
N36: ='BNB-System'!K32 -> 0
C37: ='BNB-System'!F33 -> Lebenszykluskosten | N37: ='BNB-System'!K33 -> 0
B38: ='BNB-System'!E34 -> 2.1.1 | C38: ='BNB-System'!F34 -> Gebäudebezogene Kosten im Lebenszyklus | D38: ='BNB-System'!G34 -> 100 | E38: ='BNB-System'!J34 -> 0.1125 | N38: ='BNB-System'!K34 -> 300 | O38: =IF(ISNUMBER(E38*G38/100),E38*G38/100,0) -> 0
C39: ='BNB-System'!F35 -> Wirtschaftlichkeit und Wertstabilität | N39: ='BNB-System'!K35 -> 0
B40: ='BNB-System'!E36 -> 2.2.1 | C40: ='BNB-System'!F36 -> Flächeneffizienz | D40: ='BNB-System'!G36 -> 100 | E40: ='BNB-System'!J36 -> 0.0375 | N40: ='BNB-System'!K36 -> 100 | O40: =IF(ISNUMBER(E40*G40/100),E40*G40/100,0) -> 0
B41: ='BNB-System'!E37 -> 2.2.2 | C41: ='BNB-System'!F37 -> Anpassungsfähigkeit | D41: ='BNB-System'!G37 -> 100 | E41: ='BNB-System'!J37 -> 0.075 | F41: o | G41: =IF(SUM(G42:G47)>100,100,SUM(G42:G47)) -> 0 | N41: ='BNB-System'!K37 -> 200 | O41: 0
C42: ='BNB-System'!F38 -> Lichte Raumhöhe | D42: ='BNB-System'!G38 -> 15 | N42: ='BNB-System'!K38 -> 0
C43: ='BNB-System'!F39 -> Gebäudetiefe | D43: ='BNB-System'!G39 -> 15 | N43: ='BNB-System'!K39 -> 0
C44: ='BNB-System'!F40 -> Vertikale Erschließung | D44: ='BNB-System'!G40 -> 15 | N44: ='BNB-System'!K40 -> 0
C45: ='BNB-System'!F41 -> Grundrisse | D45: ='BNB-System'!G41 -> 25 | N45: ='BNB-System'!K41 -> 0
C46: ='BNB-System'!F42 -> Konstruktion | D46: ='BNB-System'!G42 -> 20 | N46: ='BNB-System'!K42 -> 0
C47: ='BNB-System'!F43 -> Technische Ausstattung | D47: ='BNB-System'!G43 -> 18 | N47: ='BNB-System'!K43 -> 0
N48: ='BNB-System'!K44 -> 0
B49: ='BNB-System'!E45 -> Soziokulturelle und funktionale Qualität | E49: ='BNB-System'!J45 -> 0.225 | G49: =G52*(E52/100)+G63*(E63/100)+G66*(E66/100)+G76*(E76/100)+G84*(E84/100)+G93*(E93/100)+G107*(E107/100)+G109*(E109/100)+G110*(E110/100)+G116*(E116/100)+G121*(E121/100)+G128*(E128/100) -> 0 | N49: ='BNB-System'!K45 -> 2300
N50: ='BNB-System'!K46 -> 0
C51: ='BNB-System'!F47 -> Gesundheit, Behaglichkeit und Nutzerzufriedenheit | N51: ='BNB-System'!K47 -> 0
B52: ='BNB-System'!E48 -> 3.1.1 | C52: ='BNB-System'!F48 -> Thermischer Komfort | D52: ='BNB-System'!G48 -> 100 | E52: ='BNB-System'!J48 -> 0.02934782609 | G52: =IF(SUM(G54:G62)>100,100,SUM(G54:G62)) -> 0 | N52: ='BNB-System'!K48 -> 300 | O52: =IF(ISNUMBER(E52*G52/100),E52*G52/100,0) -> 0
C53: ='BNB-System'!F49 -> Winter | N53: ='BNB-System'!K50 -> 0
C54: ='BNB-System'!F50 -> Operative Temperatur | D54: ='BNB-System'!G50 -> 10
C55: ='BNB-System'!F51 -> Zugluft | D55: ='BNB-System'!G51 -> 10
C56: ='BNB-System'!F52 -> Stahlungstemperaturasymmetrie und Fußbodentemperatur | D56: ='BNB-System'!G52 -> 10
C57: ='BNB-System'!F53 -> Luftfeuchte | D57: ='BNB-System'!G53 -> 10
C58: ='BNB-System'!F54 -> Sommer
C59: ='BNB-System'!F55 -> Operative Temperatur | D59: ='BNB-System'!G55 -> 30
C60: ='BNB-System'!F56 -> Zugluft | D60: ='BNB-System'!G56 -> 10
C61: ='BNB-System'!F57 -> Stahlungstemperaturasymmetrie und Fußbodentemperatur | D61: ='BNB-System'!G57 -> 10
C62: ='BNB-System'!F58 -> Luftfeuchte | D62: ='BNB-System'!G58 -> 10 | N62: ='BNB-System'!#REF! -> 
B63: ='BNB-System'!E59 -> 3.1.3 | C63: ='BNB-System'!F59 -> Innenraumlufthygiene | D63: ='BNB-System'!G59 -> 100 | E63: ='BNB-System'!J59 -> 0.02934782609 | G63: =IF(SUM(G64:G65)>100,100,SUM(G64:G65)) -> 0 | N63: ='BNB-System'!K59 -> 300 | O63: =IF(ISNUMBER(E63*G63/100),E63*G63/100,0) -> 0
C64: ='BNB-System'!F60 -> Flüchtige organische Stoffe (VOC) und Formaldehyd | D64: ='BNB-System'!G60 -> 50 | N64: ='BNB-System'!K60 -> 0
C65: ='BNB-System'!F61 -> Personenbezogene Lüftungsrate | D65: ='BNB-System'!G61 -> 50 | N65: ='BNB-System'!K61 -> 0
B66: ='BNB-System'!E62 -> 3.1.4 | C66: ='BNB-System'!F62 -> Akustischer Komfort | D66: ='BNB-System'!G62 -> 100 | E66: ='BNB-System'!J62 -> 0.009782608696 | G66: =IF(SUM(G67:G75)>100,100,SUM(G67:G75)) -> 0 | N66: ='BNB-System'!K62 -> 100 | O66: =IF(ISNUMBER(E66*G66/100),E66*G66/100,0) -> 0
C67: ='BNB-System'!F63 -> Räume Gruppe A | N67: ='BNB-System'!K63 -> 0
C68: ='BNB-System'!F64 -> Musik | D68: ='BNB-System'!G64 -> 100
C69: ='BNB-System'!F65 -> Sprache/ Vortrag | D69: ='BNB-System'!G65 -> 100 | N69: ='BNB-System'!K65 -> 0
C70: ='BNB-System'!F66 -> Unterricht/ Kommunikation | D70: ='BNB-System'!G66 -> 100 | N70: ='BNB-System'!K66 -> 0
C71: ='BNB-System'!F67 -> Sport | D71: ='BNB-System'!G67 -> 100 | N71: ='BNB-System'!K67 -> 0
C72: ='BNB-System'!F68 -> Räume Gruppe B
C73: ='BNB-System'!F69 -> Einzel- und Mehrpersonenbüros bis 100 m³ | D73: ='BNB-System'!G69 -> 100 | N73: ='BNB-System'!K69 -> 0
C74: ='BNB-System'!F70 -> Mehrpersonenbüros über 100 m³ | D74: ='BNB-System'!G70 -> 100 | N74: ='BNB-System'!K70 -> 0
C75: ='BNB-System'!F71 -> Weitere Räume | D75: ='BNB-System'!G71 -> 100 | N75: ='BNB-System'!K71 -> 0
B76: ='BNB-System'!E72 -> 3.1.5 | C76: ='BNB-System'!F72 -> Visueller Komfort | D76: ='BNB-System'!G72 -> 100 | E76: ='BNB-System'!J72 -> 0.02934782609 | G76: =IF(SUM(G77:G83)>100,100,SUM(G77:G83)) -> 0 | N76: ='BNB-System'!K72 -> 300 | O76: =IF(ISNUMBER(E76*G76/100),E76*G76/100,0) -> 0
C77: ='BNB-System'!F73 -> Tageslichtverfügbarkeit Gesamtgebäude | D77: ='BNB-System'!G73 -> 15 | N77: ='BNB-System'!K73 -> 0
C78: ='BNB-System'!F74 -> Tageslichtverfügbarkeit ständige Arbeitsplätze | D78: ='BNB-System'!G74 -> 15 | N78: ='BNB-System'!K74 -> 0
C79: ='BNB-System'!F75 -> Nachweis de Sichtverbindung außen | D79: ='BNB-System'!G75 -> 15 | N79: ='BNB-System'!K75 -> 0
C80: ='BNB-System'!F76 -> Blendfreiheit Tageslicht | D80: ='BNB-System'!G76 -> 15 | N80: ='BNB-System'!K76 -> 0
C81: ='BNB-System'!F77 -> Blendfreiheit Kunstlicht | D81: ='BNB-System'!G77 -> 10 | N81: ='BNB-System'!K77 -> 0
C82: ='BNB-System'!F78 -> Lichtverteilung | D82: ='BNB-System'!G78 -> 15 | N82: ='BNB-System'!K78 -> 0
C83: ='BNB-System'!F79 -> Farbwiedergabe | D83: ='BNB-System'!G79 -> 15 | N83: ='BNB-System'!K79 -> 0
B84: ='BNB-System'!E80 -> 3.1.6 | C84: ='BNB-System'!F80 -> Einflussnahmemöglichkeiten durch Nutzer | D84: ='BNB-System'!G80 -> 100 | E84: ='BNB-System'!J80 -> 0.01956521739 | G84: =IF(SUM(G85:G92)>100,100,SUM(G85:G92)) -> 0 | N84: ='BNB-System'!K80 -> 200 | O84: =IF(ISNUMBER(E84*G84/100),E84*G84/100,0) -> 0
C85: ='BNB-System'!F81 -> Lüftung | D85: ='BNB-System'!G81 -> 10 | N85: ='BNB-System'!K81 -> 0
C86: ='BNB-System'!F82 -> Sonnenschutz | D86: ='BNB-System'!G82 -> 10 | N86: ='BNB-System'!K82 -> 0
C87: ='BNB-System'!F83 -> Blendschutz | D87: ='BNB-System'!G83 -> 10 | N87: ='BNB-System'!K83 -> 0
C88: ='BNB-System'!F84 -> Temperaturen während der Heizperiode | D88: ='BNB-System'!G84 -> 10 | N88: ='BNB-System'!K84 -> 0
C89: ='BNB-System'!F85 -> Temperaturen außerhalb der Heizperiode | D89: ='BNB-System'!G85 -> 15 | N89: ='BNB-System'!K85 -> 0
C90: ='BNB-System'!F86 -> Steuerung von Tageslicht | D90: ='BNB-System'!G86 -> 15 | N90: ='BNB-System'!K86 -> 0
C91: ='BNB-System'!F87 -> Steuerung von Kunstlicht | D91: ='BNB-System'!G87 -> 15 | N91: ='BNB-System'!K87 -> 0
C92: ='BNB-System'!F88 -> Bedienfreundlichkeit | D92: ='BNB-System'!G88 -> 15 | N92: ='BNB-System'!K88 -> 0
B93: ='BNB-System'!E89 -> 3.1.7 | C93: ='BNB-System'!F89 -> Aufenthaltsqualitäten | D93: ='BNB-System'!G89 -> 100 | E93: ='BNB-System'!J89 -> 0.009782608696 | G93: =IF(SUM(G94:G106)>100,100,SUM(G94:G106)) -> 0 | N93: ='BNB-System'!K89 -> 100 | O93: =IF(ISNUMBER(E93*G93/100),E93*G93/100,0) -> 0
C94: ='BNB-System'!F90 -> Anzahl der Aufenthaltsbereiche im Gebäude | D94: ='BNB-System'!G90 -> 10 | N94: ='BNB-System'!K90 -> 0
C95: ='BNB-System'!F91 -> Anzahl der Aufenthaltsbereiche im Außenraum | D95: ='BNB-System'!G91 -> 10 | N95: ='BNB-System'!K91 -> 0
C96: ='BNB-System'!F92 -> Anzahl der Sitzmöglichkeiten in diesen Bereichen | D96: ='BNB-System'!G92 -> 40 | N96: ='BNB-System'!K92 -> 0
C97: ='BNB-System'!F93 -> uneingeschränkte Nutzbarkeit der Erschließungsflächen als Aufenthaltsflächen | D97: ='BNB-System'!G93 -> 10 | N97: ='BNB-System'!K93 -> 0
C98: ='BNB-System'!F94 -> Sichtbeziehungen | D98: ='BNB-System'!G94 -> 10 | N98: ='BNB-System'!K94 -> 0
C99: ='BNB-System'!F95 -> Außenbezug | D99: ='BNB-System'!G95 -> 10 | N99: ='BNB-System'!K95 -> 0
C100: ='BNB-System'!F96 -> Ausstattungsqualität der Aufenthaltsbereiche im Außenraum | N100: ='BNB-System'!K96 -> 0
C101: ='BNB-System'!F97 -> Beleuchtung | D101: ='BNB-System'!G97 -> 2 | N101: ='BNB-System'!K97 -> 0
C102: ='BNB-System'!F98 -> Windschutz | D102: ='BNB-System'!G98 -> 2 | N102: ='BNB-System'!K98 -> 0
C103: ='BNB-System'!F99 -> Überdachung / Regenschutz | D103: ='BNB-System'!G99 -> 2 | N103: ='BNB-System'!K99 -> 0
C104: ='BNB-System'!F100 -> Sonnenschutz | D104: ='BNB-System'!G100 -> 2 | N104: ='BNB-System'!K100 -> 0
C105: ='BNB-System'!F101 -> Stromversorgung für Außenarbeitsplätze | D105: ='BNB-System'!G101 -> 1 | N105: ='BNB-System'!K101 -> 0
C106: ='BNB-System'!F102 -> Bepflanzung / Begrünung | D106: ='BNB-System'!G102 -> 1 | N106: ='BNB-System'!K102 -> 0
B107: ='BNB-System'!E103 -> 3.1.8 | C107: ='BNB-System'!F103 -> Sicherheit | D107: ='BNB-System'!G103 -> 100 | E107: ='BNB-System'!J103 -> 0.009782608696 | N107: ='BNB-System'!K103 -> 100 | O107: =IF(ISNUMBER(E107*G107/100),E107*G107/100,0) -> 0
C108: ='BNB-System'!F104 -> Funktionalität | N108: ='BNB-System'!K104 -> 0
B109: ='BNB-System'!E105 -> 3.2.1 | C109: ='BNB-System'!F105 -> Barrierefreiheit | D109: ='BNB-System'!G105 -> 100 | E109: ='BNB-System'!J105 -> 0.01956521739 | N109: ='BNB-System'!K105 -> 200 | O109: =IF(ISNUMBER(E109*G109/100),E109*G109/100,0) -> 0
B110: ='BNB-System'!E106 -> 3.2.4 | C110: ='BNB-System'!F106 -> Zugänglichkeit | D110: ='BNB-System'!G106 -> 100 | E110: ='BNB-System'!J106 -> 0.01956521739 | G110: =IF(SUM(G111:G115)>100,100,SUM(G111:G115)) -> 0 | N110: ='BNB-System'!K106 -> 200 | O110: 0
C111: ='BNB-System'!F107 -> Grundsätzliche Zugänglichkeit des Gebäudes | D111: ='BNB-System'!G107 -> 25 | N111: ='BNB-System'!K107 -> 0
C112: ='BNB-System'!F108 -> Öffnung der Außenanlagen für die Öffentlichkeit | D112: ='BNB-System'!G108 -> 25 | N112: ='BNB-System'!K108 -> 0
C113: ='BNB-System'!F109 -> Öffnung gebäudeinterner Einrichtungen für die Öffentlichkeit | D113: ='BNB-System'!G109 -> 25 | N113: ='BNB-System'!K109 -> 0
C114: ='BNB-System'!F110 -> Möglichkeit der Anmietung von Räumlichkeiten | D114: ='BNB-System'!G110 -> 15 | N114: ='BNB-System'!K110 -> 0
C115: ='BNB-System'!F111 -> Nutzungsvielfalt der öffentlich zugänglichen Bereiche | D115: ='BNB-System'!G111 -> 10 | N115: ='BNB-System'!K111 -> 0
B116: ='BNB-System'!E112 -> 3.2.5 | C116: ='BNB-System'!F112 -> Mobilitätsinfrastruktur | D116: ='BNB-System'!G112 -> 100 | E116: ='BNB-System'!J112 -> 0.009782608696 | G116: =IF(SUM(G117:G119)>100,100,SUM(G117:G119)) -> 0 | N116: ='BNB-System'!K112 -> 100 | O116: =IF(ISNUMBER(E116*G116/100),E116*G116/100,0) -> 0
C117: ='BNB-System'!F113 -> Anzahl der Fahrradstellplätze | D117: ='BNB-System'!G113 -> 40 | N117: ='BNB-System'!K113 -> 0
C118: ='BNB-System'!F114 -> Anzahl der Lademöglichkeiten und Carsharing-Stellplätze | D118: ='BNB-System'!G114 -> 20 | N118: ='BNB-System'!K114 -> 0
C119: ='BNB-System'!F115 -> Qualitative Anforderungen an Fahrradstellplätze | D119: ='BNB-System'!G115 -> 60 | N119: ='BNB-System'!K115 -> 0
C120: ='BNB-System'!F116 -> Sicherung der Gestaltungsqualität | N120: ='BNB-System'!K116 -> 0
B121: ='BNB-System'!E117 -> 3.3.1 | C121: ='BNB-System'!F117 -> Gestalterische und städtebauliche Qualität | D121: ='BNB-System'!G117 -> 100 | E121: ='BNB-System'!J117 -> 0.02934782609 | G121: =IF(AND(G122>0,G126<=G127),SUM(G122:G125),IF(AND(G122>0,G127<=G126),SUM(G122:G125),IF(G126>0,G126,IF(G127>0,G127,)))) -> 0 | N121: ='BNB-System'!K117 -> 300 | O121: =IF(ISNUMBER(E121*G121/100),E121*G121/100,0) -> 0
C122: ='BNB-System'!F118 -> Erfassung und Fortentwicklung der gestalterischen und städtebaulichen Qualität des Bestandsgebäudes | D122: ='BNB-System'!G118 -> 40 | N122: ='BNB-System'!K118 -> 0
C123: ='BNB-System'!F119 -> Wettbewerbsverfahren | D123: ='BNB-System'!G119 -> 35 | N123: ='BNB-System'!K119 -> 0
C124: ='BNB-System'!F120 -> Ausführung des Entwurfs eines der Preisträger | D124: ='BNB-System'!G120 -> 20 | N124: ='BNB-System'!K120 -> 0
C125: ='BNB-System'!F121 -> Beauftragung des Planungsteams | D125: ='BNB-System'!G121 -> 5 | N125: ='BNB-System'!K121 -> 0
C126: ='BNB-System'!F122 -> Auszeichnung mit einem Architekturpreis | D126: ='BNB-System'!G122 -> 40 | N126: ='BNB-System'!K122 -> 0
C127: ='BNB-System'!F123 -> Unabhängiges Expertengremium | D127: ='BNB-System'!G123 -> 30 | N127: ='BNB-System'!K123 -> 0
B128: ='BNB-System'!E124 -> 3.3.2 | C128: ='BNB-System'!F124 -> Kunst am Bau | D128: ='BNB-System'!G124 -> 100 | E128: ='BNB-System'!J124 -> 0.009782608696 | G128: =IF(SUM(G129:G132)>100,100,SUM(G129:G132)) -> 0 | N128: ='BNB-System'!K124 -> 100 | O128: =IF(ISNUMBER(E128*G128/100),E128*G128/100,0) -> 0
C129: ='BNB-System'!F125 -> Mindestanforderung | D129: ='BNB-System'!G125 -> 10 | N129: ='BNB-System'!K125 -> 0
C130: ='BNB-System'!F126 -> Bereitstellung von Mitteln im Rahmen der Bauaufgabe | D130: ='BNB-System'!G126 -> 30 | N130: ='BNB-System'!K126 -> 0
C131: ='BNB-System'!F127 -> Umsetzung des Leitfadens Kunst am Bau | D131: ='BNB-System'!G127 -> 40 | N131: ='BNB-System'!K127 -> 0
C132: ='BNB-System'!F128 -> Öffentlichkeitsarbeit, Rezeption der Kunst am Bau | D132: ='BNB-System'!G128 -> 20 | N132: ='BNB-System'!K128 -> 0
N133: ='BNB-System'!K129 -> 0
B134: ='BNB-System'!E130 -> Technische Qualität | E134: ='BNB-System'!J130 -> 0.225 | G134: =G137*(E137/100)+G142*(E142/100)+G149*(E149/100)+G159*(E159/100)+G160*(E160/100)+G161*(E161/100) -> 0 | N134: ='BNB-System'!K130 -> 1000
N135: ='BNB-System'!K131 -> 0
C136: ='BNB-System'!F132 -> technische Ausführung | N136: ='BNB-System'!K132 -> 0
B137: ='BNB-System'!E133 -> 4.1.1 | C137: ='BNB-System'!F133 -> Schallschutz | D137: ='BNB-System'!G133 -> 100 | E137: ='BNB-System'!J133 -> 0.045 | G137: =IF(SUM(G138:G141)>100,100,SUM(G138:G141)) -> 0 | N137: ='BNB-System'!K133 -> 200 | O137: =IF(ISNUMBER(E137*G137/100),E137*G137/100,0) -> 0
C138: ='BNB-System'!F134 -> Luftschallschutz gegen Außenlärm | D138: ='BNB-System'!G134 -> 20 | N138: ='BNB-System'!K134 -> 0
C139: ='BNB-System'!F135 -> Luftschallschutz gegenüber fremden und eigenen Arbeitsbereichen | D139: ='BNB-System'!G135 -> 30 | N139: ='BNB-System'!K135 -> 0
C140: ='BNB-System'!F136 -> Trittschallschutz gegenüber fremden und eigenen Arbeitsbereichen | D140: ='BNB-System'!G136 -> 30 | N140: ='BNB-System'!K136 -> 0
C141: ='BNB-System'!F137 -> Schallschutz gegenüber haustechnischen Anlagen | D141: ='BNB-System'!G137 -> 20 | N141: ='BNB-System'!K137 -> 0
B142: ='BNB-System'!E138 -> 4.1.2 | C142: ='BNB-System'!F138 -> Wärme- und Tauwasserschutz | D142: ='BNB-System'!G138 -> 100 | E142: ='BNB-System'!J138 -> 0.045 | G142: =IF(SUM(G143:G148)>100,100,SUM(G143:G148)) -> 0 | N142: ='BNB-System'!K138 -> 200 | O142: =IF(ISNUMBER(E142*G142/100),E142*G142/100,0) -> 0
C143: ='BNB-System'!F139 -> Mittlere Wärmeduchgangskoeffizienten | D143: ='BNB-System'!G139 -> 30 | N143: ='BNB-System'!K139 -> 0
C144: ='BNB-System'!F140 -> Wärmebrückenzuschlag | D144: ='BNB-System'!G140 -> 15 | N144: ='BNB-System'!K140 -> 0
C145: ='BNB-System'!F141 -> Klassen der Luftdurchlässigkeit (Fugendurchlässigkeit) | D145: ='BNB-System'!G141 -> 15 | N145: ='BNB-System'!K141 -> 0
C146: ='BNB-System'!F142 -> Tauwasserbildung | D146: ='BNB-System'!G142 -> 10 | N146: ='BNB-System'!K142 -> 0
C147: ='BNB-System'!F143 -> Luftwechsel | D147: ='BNB-System'!G143 -> 15 | N147: ='BNB-System'!K143 -> 0
C148: ='BNB-System'!F144 -> Sonneneintragswert | D148: ='BNB-System'!G144 -> 15 | N148: ='BNB-System'!K144 -> 0
B149: ='BNB-System'!E145 -> 4.1.3 | C149: ='BNB-System'!F145 -> Reinigungs- und Instandhaltungsfreundlichkeit | D149: ='BNB-System'!G145 -> 100 | E149: ='BNB-System'!J145 -> 0.045 | G149: =IF(SUM(G150:G158)>100,100,SUM(G150:G158)) -> 0 | N149: ='BNB-System'!K145 -> 200 | O149: =IF(ISNUMBER(E149*G149/100),E149*G149/100,0) -> 0
C150: ='BNB-System'!F146 -> Tragkonstruktion | D150: ='BNB-System'!G146 -> 15 | N150: ='BNB-System'!K146 -> 0
C151: ='BNB-System'!F147 -> Zugänglichkeit der Außenglasflächen | D151: ='BNB-System'!G147 -> 15 | N151: ='BNB-System'!K147 -> 0
C152: ='BNB-System'!F148 -> Außenbauteile | D152: ='BNB-System'!G148 -> 9 | N152: ='BNB-System'!K148 -> 0
C153: ='BNB-System'!F149 -> Bodenbelag | D153: ='BNB-System'!G149 -> 9 | N153: ='BNB-System'!K149 -> 0
C154: ='BNB-System'!F150 -> Schmutzfangzone | D154: ='BNB-System'!G150 -> 9 | N154: ='BNB-System'!K150 -> 0
C155: ='BNB-System'!F151 -> Fußbodenleisten | D155: ='BNB-System'!G151 -> 9 | N155: ='BNB-System'!K151 -> 0
C156: ='BNB-System'!F152 -> Hindernisfreie Grundrissgestaltung | D156: ='BNB-System'!G152 -> 9 | N156: ='BNB-System'!K152 -> 0
C157: ='BNB-System'!F153 -> Einbauten | D157: ='BNB-System'!G153 -> 10 | N157: ='BNB-System'!K153 -> 0
C158: ='BNB-System'!F154 -> Zugänglichkeit der Innenglasflächen | D158: ='BNB-System'!G154 -> 15 | N158: ='BNB-System'!K154 -> 0
B159: ='BNB-System'!E155 -> 4.1.4 | C159: ='BNB-System'!F155 -> Rückbau, Trennung und Verwertung | D159: ='BNB-System'!G155 -> 100 | E159: ='BNB-System'!J155 -> 0.045 | N159: ='BNB-System'!K155 -> 200 | O159: =IF(ISNUMBER(E159*G159/100),E159*G159/100,0) -> 0
B160: ='BNB-System'!E156 -> 4.1.5 | C160: ='BNB-System'!F156 -> Widerstandsfähigkeit gegen Naturgefahren | D160: ='BNB-System'!G156 -> 100 | E160: ='BNB-System'!J156 -> 0.0225 | N160: ='BNB-System'!K156 -> 100 | O160: 0
B161: ='BNB-System'!E157 -> 4.1.6 | C161: ='BNB-System'!F157 -> Bedienungs- und Instandhaltungsfreundlichkeit der TGA | D161: ='BNB-System'!G157 -> 100 | E161: ='BNB-System'!J157 -> 0.0225 | N161: ='BNB-System'!K157 -> 100 | O161: =IF(ISNUMBER(E161*G161/100),E161*G161/100,0) -> 0
N162: ='BNB-System'!K158 -> 0
B163: ='BNB-System'!E159 -> Prozessqualität | E163: ='BNB-System'!J159 -> 0.1 | G163: =G166*(E166/100)+G170*(E170/100)+G176*(E176/100)+G192*(E192/100)+G193*(E193/100)+G213*(E213/100)+G218*(E218/100)+G221*(E221/100) -> 0 | N163: ='BNB-System'!K159 -> 2500
N164: ='BNB-System'!K160 -> 0
C165: ='BNB-System'!F161 -> Planung | N165: ='BNB-System'!K161 -> 0
B166: ='BNB-System'!E162 -> 5.1.1 | C166: ='BNB-System'!F162 -> Projektvorbereitung | D166: ='BNB-System'!G162 -> 100 | E166: ='BNB-System'!J162 -> 0.012 | G166: =IF(SUM(G167:G169)>100,100,SUM(G167:G169)) -> 0 | N166: ='BNB-System'!K162 -> 300 | O166: =IF(ISNUMBER(E166*G166/100),E166*G166/100,0) -> 0
C167: ='BNB-System'!F163 -> Bedarfsplanung oder vergleichbare Planung | D167: ='BNB-System'!G163 -> 35 | N167: ='BNB-System'!K163 -> 0
C168: ='BNB-System'!F164 -> Zielvereinbarung | D168: ='BNB-System'!G164 -> 35 | N168: ='BNB-System'!K164 -> 0
C169: ='BNB-System'!F165 -> Architektenwettbewerb | D169: ='BNB-System'!G165 -> 30 | N169: ='BNB-System'!K165 -> 0
B170: ='BNB-System'!E166 -> 5.1.2 | C170: ='BNB-System'!F166 -> Integrale Planung | D170: ='BNB-System'!G166 -> 100 | E170: ='BNB-System'!J166 -> 0.012 | G170: =IF(SUM(G171:G175)>100,100,SUM(G171:G175)) -> 0 | N170: ='BNB-System'!K166 -> 300 | O170: =IF(ISNUMBER(E170*G170/100),E170*G170/100,0) -> 0
C171: ='BNB-System'!F167 -> Integrales Planungsteam | D171: ='BNB-System'!G167 -> 30 | N171: ='BNB-System'!K167 -> 0
C172: ='BNB-System'!F168 -> Qualifikation des Planungsteams | D172: ='BNB-System'!G168 -> 20 | N172: ='BNB-System'!K168 -> 0
C173: ='BNB-System'!F169 -> Integraler Planungsprozess | D173: ='BNB-System'!G169 -> 20 | N173: ='BNB-System'!K169 -> 0
C174: ='BNB-System'!F170 -> Nutzerbeteiligung | D174: ='BNB-System'!G170 -> 20 | N174: ='BNB-System'!K170 -> 0
C175: ='BNB-System'!F171 -> Öffentlichkeitsbeteiligung | D175: ='BNB-System'!G171 -> 10 | N175: ='BNB-System'!K171 -> 0
B176: ='BNB-System'!E172 -> 5.1.3 | C176: ='BNB-System'!F172 -> Komplexität und Optimierung der Planung | D176: ='BNB-System'!G172 -> 100 | E176: ='BNB-System'!J172 -> 0.012 | G176: =IF(SUM(G177:G191)>100,100,SUM(G177:G191)) -> 0 | N176: ='BNB-System'!K172 -> 300 | O176: =IF(ISNUMBER(E176*G176/100),E176*G176/100,0) -> 0
C177: ='BNB-System'!F173 -> SiGe-Plan | D177: ='BNB-System'!G173 -> 10 | N177: ='BNB-System'!K173 -> 0
C178: ='BNB-System'!F174 -> Ver- und Entsiegelungskonzept | D178: ='BNB-System'!G174 -> 10 | N178: ='BNB-System'!K174 -> 0
C179: ='BNB-System'!F175 -> Energiekonzept | D179: ='BNB-System'!G175 -> 15 | N179: ='BNB-System'!K175 -> 0
C180: ='BNB-System'!F176 -> Mess- und Monitoringkonzept | D180: ='BNB-System'!G176 -> 15 | N180: ='BNB-System'!K176 -> 0
C181: ='BNB-System'!F177 -> Wasserkonzept | D181: ='BNB-System'!G177 -> 10 | N181: ='BNB-System'!K177 -> 0
C182: ='BNB-System'!F178 -> Konzept zur Vermeidung von Umwelt- und Gesundheitsrisiken aus Bauprodukten | D182: ='BNB-System'!G178 -> 10 | N182: ='BNB-System'!K178 -> 0
C183: ='BNB-System'!F179 -> Lüftungskonzept | D183: ='BNB-System'!G179 -> 10 | N183: ='BNB-System'!K179 -> 0
C184: ='BNB-System'!F180 -> Abfallkonzept / Wertstoffkonzept | D184: ='BNB-System'!G180 -> 5 | N184: ='BNB-System'!K180 -> 0
C185: ='BNB-System'!F181 -> Tages- / Kunstlichtoptimierung | D185: ='BNB-System'!G181 -> 10 | N185: ='BNB-System'!K181 -> 0
C186: ='BNB-System'!F182 -> Konzept zur Sicherung der Reinigungs- und Instandhaltungsfreundlichkeit | D186: ='BNB-System'!G182 -> 10 | N186: ='BNB-System'!K182 -> 0
C187: ='BNB-System'!F183 -> Anpassbarkeits-, Rückbau- und Recyclingkonzept | D187: ='BNB-System'!G183 -> 10 | N187: ='BNB-System'!K183 -> 0
C188: ='BNB-System'!F184 -> Konzept zur Vermeidung und Beherrschung von Risiken | D188: ='BNB-System'!G184 -> 10 | N188: ='BNB-System'!K184 -> 0
C189: ='BNB-System'!F185 -> Sonstige Konzepte zum Nachhaltigen Bauen | D189: ='BNB-System'!G185 -> 10 | N189: ='BNB-System'!K185 -> 0
C190: ='BNB-System'!F186 -> Prüfung der Planungsunterlagen durch unabhängige Dritte | D190: ='BNB-System'!G186 -> 5 | N190: ='BNB-System'!K186 -> 0
C191: ='BNB-System'!F187 -> Durchführung von Variantenvergleichen | D191: ='BNB-System'!G187 -> 10 | N191: ='BNB-System'!K187 -> 0
B192: ='BNB-System'!E188 -> 5.1.4 | C192: ='BNB-System'!F188 -> Ausschreibung und Vergabe | D192: ='BNB-System'!G188 -> 100 | E192: ='BNB-System'!J188 -> 0.008 | N192: ='BNB-System'!K188 -> 200 | O192: =IF(ISNUMBER(E192*G192/100),E192*G192/100,0) -> 0
B193: ='BNB-System'!E189 -> 5.1.5 | C193: ='BNB-System'!F189 -> Voraussetzungen für eine optimale Bewirtschaftung | D193: ='BNB-System'!G189 -> 100 | E193: ='BNB-System'!J189 -> 0.008 | G193: =IF(SUM(G194:G197)>100,100,SUM(G194:G197)) -> 0 | N193: ='BNB-System'!K189 -> 200 | O193: 0
C194: ='BNB-System'!F190 -> Erstellung einer Gebäudeakte / Objektdokumentation | D194: ='BNB-System'!G190 -> 25 | N194: ='BNB-System'!K190 -> 0
C195: ='BNB-System'!F191 -> Erstellung von Wartungs-, Inspektions-, Betriebs-, und Pflegeanleitungen | D195: ='BNB-System'!G191 -> 25 | N195: ='BNB-System'!K191 -> 0
C196: ='BNB-System'!F192 -> Anpassung der Pläne und Berechnungen an das realisierte Gebäude | D196: ='BNB-System'!G192 -> 25 | N196: ='BNB-System'!K192 -> 0
C197: ='BNB-System'!F193 -> Erstellung eines Nutzerhandbuches | D197: ='BNB-System'!G193 -> 25 | N197: ='BNB-System'!K193 -> 0
B198: ='BNB-System'!E194 -> 5.1.6 | C198: ='BNB-System'!F194 -> Bestandsanalyse | D198: ='BNB-System'!G194 -> 100 | E198: ='BNB-System'!J194 -> 0.012 | G198: =IF(SUM(G199:G207)>100,100,SUM(G199:G207)) -> 0
C199: ='BNB-System'!F195 -> Bestandsaufnahme Geometrie | D199: ='BNB-System'!G195 -> 10
C200: ='BNB-System'!F196 -> Bestandsaufnahme Baukonstruktion und Baustoffe | D200: ='BNB-System'!G196 -> 20
C201: ='BNB-System'!F197 -> Bestandsaufnahme Haustechnik | D201: ='BNB-System'!G197 -> 10
C202: ='BNB-System'!F198 -> Bestandsaufnahme Bau- und Nutzungsgeschichte | D202: ='BNB-System'!G198 -> 5
... 60 more rows

Sheet Bewertung durch Anwender
B1: ='BNB-System'!B1 -> Projekt: | C1: =Zielvereinbarung!C1 -> Projektbezeichnung | N1: =Zielvereinbarung!$G$1 -> 2015-12-17
B2: ='BNB-System'!B2 -> Bewertungssystem Nachhaltiges Bauen (BNB)
B3: ='BNB-System'!B3 -> Systemvariante Büro- und Verwaltungsgebäude, Modul Komplettmodernisierung (BNB_BK) - Version 2017
B4: Nachhaltigkeitskriterien | D4: maximale Punktzahl | E4: Gewichtung Gesamt-bewertung | F4: Zielwert aus der Ziel-vereinbarung | G4: Zielwert der Ziel-vereinbarung | H4: Zielwert der Ziel-vereinbarung | I4: 1. Korrektur Zielwert | J4: Kommentar | K4: 2. Korrektur Zielwert | L4: Kommentar | M4: Zwischen-bewertung | N4: Endbewertung | P4: Zielwert | Q4: Gesamt-bewertung gemäß End-bewertung
G5: Soll | H5: aus Registerkarte "Zielvereinbarung" | I5: =TODAY() -> 2017-11-23 | J5: Eintrag erforderlich für Zielwertkorrektur | K5: 2015-02-22 | L5: Eintrag erforderlich für Zielwertkorrektur | M5: =TODAY() -> 2017-11-23
B7: Gesamterfüllungsgrad | G7: =G10+G35+G49+G134+G163 -> 0 | H7: =Zielvereinbarung!G7 -> 0 | M7: =M10+M35+M49+M134+M163 -> 0 | N7: =N10+N35+N49+N134+N163 -> 0
M8: to_copy_zb | N8: to_insert_zb | O8: qwertz
B10: ='BNB-System'!E6 -> Ökologische Qualität | E10: 0.225 | G10: =G13*($E$13/100)+G14*($E$14/100)+G15*($E$15/100)+G16*($E$16/100)+G17*($E$17/100)+G18*($E$18/100)+G24*($E$24/100)+G26*($E$26/100)+G30*($E$30/100)+G31*($E$31/100) -> 0 | H10: =Zielvereinbarung!G10 -> 0 | M10: =M13*($E$13/100)+M14*($E$14/100)+M15*($E$15/100)+M16*($E$16/100)+M17*($E$17/100)+M18*($E$18/100)+M24*($E$24/100)+M26*($E$26/100)+M30*($E$30/100)+M31*($E$31/100) -> 0 | N10: =N13*($E$13/100)+N14*($E$14/100)+N15*($E$15/100)+N16*($E$16/100)+N17*($E$17/100)+N18*($E$18/100)+N24*($E$24/100)+N26*($E$26/100)+N30*($E$30/100)+N31*($E$31/100) -> 0 | P10: ='BNB-System'!K6 -> 1800
P11: ='BNB-System'!K7 -> 0
C12: Wirkungen auf die globale und lokale Umwelt | P12: ='BNB-System'!K8 -> 0
B13: ='BNB-System'!E9 -> 1.1.1 | C13: ='BNB-System'!F9 -> Treibhauspotenzial (GWP) | D13: ='BNB-System'!G9 -> 100 | E13: ='BNB-System'!J9 -> 0.0375 | F13: o | G13: =IF(AND(NOT(ISBLANK(K13)),NOT(ISBLANK(L13))),('Bewertung durch Anwender'!K13),IF(AND(NOT(ISBLANK(J13)),NOT(ISBLANK(I13))),('Bewertung durch Anwender'!I13),(Zielvereinbarung!G13))) -> 0 | H13: =Zielvereinbarung!G13 -> 0 | P13: ='BNB-System'!K9 -> 300 | Q13: =IF(ISNUMBER(E13*N13/100),E13*N13/100,0) -> 0
B14: ='BNB-System'!E10 -> 1.1.2 | C14: ='BNB-System'!F10 -> Ozonschichtabbaupotenzial (ODP) | D14: ='BNB-System'!G10 -> 100 | E14: ='BNB-System'!J10 -> 0.0125 | F14: x | G14: =IF(AND(NOT(ISBLANK(K14)),NOT(ISBLANK(L14))),('Bewertung durch Anwender'!K14),IF(AND(NOT(ISBLANK(J14)),NOT(ISBLANK(I14))),('Bewertung durch Anwender'!I14),(Zielvereinbarung!G14))) -> 0 | H14: =Zielvereinbarung!G14 -> 0 | P14: ='BNB-System'!K10 -> 100 | Q14: 0
B15: ='BNB-System'!E11 -> 1.1.3 | C15: ='BNB-System'!F11 -> Ozonbildungspotenzial (POCP) | D15: ='BNB-System'!G11 -> 100 | E15: ='BNB-System'!J11 -> 0.0125 | G15: =IF(AND(NOT(ISBLANK(K15)),NOT(ISBLANK(L15))),('Bewertung durch Anwender'!K15),IF(AND(NOT(ISBLANK(J15)),NOT(ISBLANK(I15))),('Bewertung durch Anwender'!I15),(Zielvereinbarung!G15))) -> 0 | H15: =Zielvereinbarung!G15 -> 0 | P15: ='BNB-System'!K11 -> 100 | Q15: 0
B16: ='BNB-System'!E12 -> 1.1.4 | C16: ='BNB-System'!F12 -> Versauerungspotenzial (AP) | D16: ='BNB-System'!G12 -> 100 | E16: ='BNB-System'!J12 -> 0.0125 | G16: =IF(AND(NOT(ISBLANK(K16)),NOT(ISBLANK(L16))),('Bewertung durch Anwender'!K16),IF(AND(NOT(ISBLANK(J16)),NOT(ISBLANK(I16))),('Bewertung durch Anwender'!I16),(Zielvereinbarung!G16))) -> 0 | H16: =Zielvereinbarung!G16 -> 0 | P16: ='BNB-System'!K12 -> 100 | Q16: 0
B17: ='BNB-System'!E13 -> 1.1.5 | C17: ='BNB-System'!F13 -> Überdüngungspotenzial (EP) | D17: ='BNB-System'!G13 -> 100 | E17: ='BNB-System'!J13 -> 0.0125 | G17: =IF(AND(NOT(ISBLANK(K17)),NOT(ISBLANK(L17))),('Bewertung durch Anwender'!K17),IF(AND(NOT(ISBLANK(J17)),NOT(ISBLANK(I17))),('Bewertung durch Anwender'!I17),(Zielvereinbarung!G17))) -> 0 | H17: =Zielvereinbarung!G17 -> 0 | P17: ='BNB-System'!K13 -> 100 | Q17: 0
B18: ='BNB-System'!E14 -> 1.1.6 | C18: ='BNB-System'!F14 -> Risiken für die lokale Umwelt | D18: ='BNB-System'!G14 -> 100 | E18: ='BNB-System'!J14 -> 0.0375 | G18: =IF(AND(NOT(ISBLANK(K18)),NOT(ISBLANK(L18))),('Bewertung durch Anwender'!K18),IF(AND(NOT(ISBLANK(J18)),NOT(ISBLANK(I18))),('Bewertung durch Anwender'!I18),(Zielvereinbarung!G18))) -> 0 | H18: =Zielvereinbarung!G18 -> 0 | M18: =IF(SUM(M19:M23)>100,100,SUM(M19:M23)) -> 0 | N18: =IF(SUM(N19:N23)>100,100,SUM(N19:N23)) -> 0 | P18: ='BNB-System'!K14 -> 300 | Q18: 0
C19: ='BNB-System'!F15 -> Altsubstanz: Q4 ; Neusubstanz: Q5 | D19: ='BNB-System'!G15 -> 100 | G19: =IF(AND(NOT(ISBLANK(K19)),NOT(ISBLANK(L19))),('Bewertung durch Anwender'!K19),IF(AND(NOT(ISBLANK(J19)),NOT(ISBLANK(I19))),('Bewertung durch Anwender'!I19),(Zielvereinbarung!G19))) -> 0 | H19: =Zielvereinbarung!G19 -> 0
C20: ='BNB-System'!F16 -> Altsubstanz: Q3 ; Neusubstanz: Q4 | D20: ='BNB-System'!G16 -> 75 | G20: =IF(AND(NOT(ISBLANK(K20)),NOT(ISBLANK(L20))),('Bewertung durch Anwender'!K20),IF(AND(NOT(ISBLANK(J20)),NOT(ISBLANK(I20))),('Bewertung durch Anwender'!I20),(Zielvereinbarung!G20))) -> 0 | H20: =Zielvereinbarung!G20 -> 0
C21: ='BNB-System'!F17 -> Altsubstanz: Q2 ; Neusubstanz: Q3 | D21: ='BNB-System'!G17 -> 50 | G21: =IF(AND(NOT(ISBLANK(K21)),NOT(ISBLANK(L21))),('Bewertung durch Anwender'!K21),IF(AND(NOT(ISBLANK(J21)),NOT(ISBLANK(I21))),('Bewertung durch Anwender'!I21),(Zielvereinbarung!G21))) -> 0 | H21: =Zielvereinbarung!G21 -> 0
C22: ='BNB-System'!F18 -> Altsubstanz: Q1 ; Neusubstanz: Q2 | D22: ='BNB-System'!G18 -> 25 | G22: =IF(AND(NOT(ISBLANK(K22)),NOT(ISBLANK(L22))),('Bewertung durch Anwender'!K22),IF(AND(NOT(ISBLANK(J22)),NOT(ISBLANK(I22))),('Bewertung durch Anwender'!I22),(Zielvereinbarung!G22))) -> 0 | H22: =Zielvereinbarung!G22 -> 0
C23: ='BNB-System'!F19 -> Altsubstanz: Q1 ; Neusubstanz: Q1 | D23: ='BNB-System'!G19 -> 10 | G23: =IF(AND(NOT(ISBLANK(K23)),NOT(ISBLANK(L23))),('Bewertung durch Anwender'!K23),IF(AND(NOT(ISBLANK(J23)),NOT(ISBLANK(I23))),('Bewertung durch Anwender'!I23),(Zielvereinbarung!G23))) -> 0 | H23: =Zielvereinbarung!G23 -> 0
B24: ='BNB-System'!E20 -> 1.1.7 | C24: ='BNB-System'!F20 -> Nachhaltige Materialgewinnung / Biodiversität | D24: ='BNB-System'!G20 -> 100 | E24: ='BNB-System'!J20 -> 0.0125 | G24: =IF(AND(NOT(ISBLANK(K24)),NOT(ISBLANK(L24))),('Bewertung durch Anwender'!K24),IF(AND(NOT(ISBLANK(J24)),NOT(ISBLANK(I24))),('Bewertung durch Anwender'!I24),(Zielvereinbarung!G24))) -> 0 | H24: =Zielvereinbarung!G24 -> 0 | P24: ='BNB-System'!K20 -> 100 | Q24: =IF(ISNUMBER(E24*N24/100),E24*N24/100,0) -> 0
C25: ='BNB-System'!F21 -> Ressourceninanspruchnahme | P25: ='BNB-System'!K21 -> 0
B26: ='BNB-System'!E22 -> 1.2.1 | C26: ='BNB-System'!F22 -> Primärenergiebedarf | D26: ='BNB-System'!G22 -> 100 | E26: ='BNB-System'!J22 -> 0.0375 | G26: =IF(AND(NOT(ISBLANK(K26)),NOT(ISBLANK(L26))),('Bewertung durch Anwender'!K26),IF(AND(NOT(ISBLANK(J26)),NOT(ISBLANK(I26))),('Bewertung durch Anwender'!I26),(Zielvereinbarung!G26))) -> 0 | H26: =Zielvereinbarung!G26 -> 0 | M26: =SUM(M27:M29) -> 0 | N26: =SUM(N27:N29) -> 0 | P26: ='BNB-System'!K22 -> 300 | Q26: =IF(ISNUMBER(E26*N26/100),E26*N26/100,0) -> 0
C27: ='BNB-System'!F23 -> Primärenergiebedarf nicht erneuerbar (PEne) | D27: ='BNB-System'!G23 -> 60 | G27: =IF(AND(NOT(ISBLANK(K27)),NOT(ISBLANK(L27))),('Bewertung durch Anwender'!K27),IF(AND(NOT(ISBLANK(J27)),NOT(ISBLANK(I27))),('Bewertung durch Anwender'!I27),(Zielvereinbarung!G27))) -> 0 | H27: =Zielvereinbarung!G27 -> 0 | P27: ='BNB-System'!K23 -> 0
C28: ='BNB-System'!F24 -> Gesamtprimärenergiebedarf (PEges) | D28: ='BNB-System'!G24 -> 40 | G28: =IF(AND(NOT(ISBLANK(K28)),NOT(ISBLANK(L28))),('Bewertung durch Anwender'!K28),IF(AND(NOT(ISBLANK(J28)),NOT(ISBLANK(I28))),('Bewertung durch Anwender'!I28),(Zielvereinbarung!G28))) -> 0 | H28: =Zielvereinbarung!G28 -> 0
C29: ='BNB-System'!F25 -> Anteil der erneuerbaren Primärenergie (Pee) | D29: ='BNB-System'!G25 -> 20 | G29: =IF(AND(NOT(ISBLANK(K29)),NOT(ISBLANK(L29))),('Bewertung durch Anwender'!K29),IF(AND(NOT(ISBLANK(J29)),NOT(ISBLANK(I29))),('Bewertung durch Anwender'!I29),(Zielvereinbarung!G29))) -> 0 | H29: =Zielvereinbarung!G29 -> 0 | P29: ='BNB-System'!K25 -> 0
B30: ='BNB-System'!E26 -> 1.2.3 | C30: ='BNB-System'!F26 -> Trinkwasserbedarf und Abwasseraufkommen | D30: ='BNB-System'!G26 -> 100 | E30: ='BNB-System'!J26 -> 0.025 | G30: =IF(AND(NOT(ISBLANK(K30)),NOT(ISBLANK(L30))),('Bewertung durch Anwender'!K30),IF(AND(NOT(ISBLANK(J30)),NOT(ISBLANK(I30))),('Bewertung durch Anwender'!I30),(Zielvereinbarung!G30))) -> 0 | H30: =Zielvereinbarung!G30 -> 0 | P30: ='BNB-System'!K26 -> 200 | Q30: =IF(ISNUMBER(E30*N30/100),E30*N30/100,0) -> 0
B31: ='BNB-System'!E27 -> 1.2.4 | C31: ='BNB-System'!F27 -> Flächeninanspruchnahme | D31: ='BNB-System'!G27 -> 100 | E31: ='BNB-System'!J27 -> 0.025 | G31: =IF(AND(NOT(ISBLANK(K31)),NOT(ISBLANK(L31))),('Bewertung durch Anwender'!K31),IF(AND(NOT(ISBLANK(J31)),NOT(ISBLANK(I31))),('Bewertung durch Anwender'!I31),(Zielvereinbarung!G31))) -> 0 | H31: =Zielvereinbarung!G31 -> 0 | M31: =SUM(M32:M33) -> 0 | N31: =SUM(N32:N33) -> 0 | P31: ='BNB-System'!K27 -> 200 | Q31: =IF(ISNUMBER(E31*N31/100),E31*N31/100,0) -> 0
C32: ='BNB-System'!F28 -> Veränderung der Flächeninanspruchnahme | D32: ='BNB-System'!G28 -> 100 | G32: =IF(AND(NOT(ISBLANK(K32)),NOT(ISBLANK(L32))),('Bewertung durch Anwender'!K32),IF(AND(NOT(ISBLANK(J32)),NOT(ISBLANK(I32))),('Bewertung durch Anwender'!I32),(Zielvereinbarung!G32))) -> 0 | H32: =Zielvereinbarung!G32 -> 0
C33: ='BNB-System'!F29 -> Ausgleichsmaßnahmen und Flächenrecycling | D33: ='BNB-System'!G29 -> 40 | G33: =IF(AND(NOT(ISBLANK(K33)),NOT(ISBLANK(L33))),('Bewertung durch Anwender'!K33),IF(AND(NOT(ISBLANK(J33)),NOT(ISBLANK(I33))),('Bewertung durch Anwender'!I33),(Zielvereinbarung!G33))) -> 0 | H33: =Zielvereinbarung!G33 -> 0
P34: ='BNB-System'!K30 -> 0
B35: ='BNB-System'!E31 -> Ökonomische Qualität | E35: ='BNB-System'!J31 -> 0.225 | G35: =IF(AND(NOT(ISBLANK(K35)),NOT(ISBLANK(L35))),('Bewertung durch Anwender'!K35),IF(AND(NOT(ISBLANK(J35)),NOT(ISBLANK(I35))),('Bewertung durch Anwender'!I35),(Zielvereinbarung!G35))) -> 0 | H35: =Zielvereinbarung!G35 -> 0 | M35: =M38*($E$38/100)+M40*($E$40/100)+M41*($E$41/100) -> 0 | N35: =N38*($E$38/100)+N40*($E$40/100)+N41*($E$41/100) -> 0 | P35: ='BNB-System'!K31 -> 600
P36: ='BNB-System'!K32 -> 0
C37: ='BNB-System'!F33 -> Lebenszykluskosten | P37: ='BNB-System'!K33 -> 0
B38: ='BNB-System'!E34 -> 2.1.1 | C38: ='BNB-System'!F34 -> Gebäudebezogene Kosten im Lebenszyklus | D38: ='BNB-System'!G34 -> 100 | E38: ='BNB-System'!J34 -> 0.1125 | G38: =IF(AND(NOT(ISBLANK(K38)),NOT(ISBLANK(L38))),('Bewertung durch Anwender'!K38),IF(AND(NOT(ISBLANK(J38)),NOT(ISBLANK(I38))),('Bewertung durch Anwender'!I38),(Zielvereinbarung!G38))) -> 0 | H38: =Zielvereinbarung!G38 -> 0 | P38: ='BNB-System'!K34 -> 300 | Q38: =IF(ISNUMBER(E38*N38/100),E38*N38/100,0) -> 0
C39: ='BNB-System'!F35 -> Wirtschaftlichkeit und Wertstabilität | P39: ='BNB-System'!K35 -> 0
B40: ='BNB-System'!E36 -> 2.2.1 | C40: ='BNB-System'!F36 -> Flächeneffizienz | D40: ='BNB-System'!G36 -> 100 | E40: ='BNB-System'!J36 -> 0.0375 | G40: =IF(AND(NOT(ISBLANK(K40)),NOT(ISBLANK(L40))),('Bewertung durch Anwender'!K40),IF(AND(NOT(ISBLANK(J40)),NOT(ISBLANK(I40))),('Bewertung durch Anwender'!I40),(Zielvereinbarung!G40))) -> 0 | H40: =Zielvereinbarung!G40 -> 0 | P40: ='BNB-System'!K36 -> 100 | Q40: =IF(ISNUMBER(E40*N40/100),E40*N40/100,0) -> 0
B41: ='BNB-System'!E37 -> 2.2.2 | C41: ='BNB-System'!F37 -> Anpassungsfähigkeit | D41: ='BNB-System'!G37 -> 100 | E41: ='BNB-System'!J37 -> 0.075 | F41: o | G41: =IF(AND(NOT(ISBLANK(K41)),NOT(ISBLANK(L41))),('Bewertung durch Anwender'!K41),IF(AND(NOT(ISBLANK(J41)),NOT(ISBLANK(I41))),('Bewertung durch Anwender'!I41),(Zielvereinbarung!G41))) -> 0 | H41: =Zielvereinbarung!G41 -> 0 | M41: =SUM(M42:M47) -> 0 | N41: =SUM(N42:N47) -> 0 | P41: ='BNB-System'!K37 -> 200 | Q41: =IF(ISNUMBER(E41*N41/100),E41*N41/100,0) -> 0
C42: ='BNB-System'!F38 -> Lichte Raumhöhe | D42: ='BNB-System'!G38 -> 15 | G42: =IF(AND(NOT(ISBLANK(K42)),NOT(ISBLANK(L42))),('Bewertung durch Anwender'!K42),IF(AND(NOT(ISBLANK(J42)),NOT(ISBLANK(I42))),('Bewertung durch Anwender'!I42),(Zielvereinbarung!G42))) -> 0 | H42: =Zielvereinbarung!G42 -> 0 | P42: ='BNB-System'!K38 -> 0
C43: ='BNB-System'!F39 -> Gebäudetiefe | D43: ='BNB-System'!G39 -> 15 | G43: =IF(AND(NOT(ISBLANK(K43)),NOT(ISBLANK(L43))),('Bewertung durch Anwender'!K43),IF(AND(NOT(ISBLANK(J43)),NOT(ISBLANK(I43))),('Bewertung durch Anwender'!I43),(Zielvereinbarung!G43))) -> 0 | H43: =Zielvereinbarung!G43 -> 0 | P43: ='BNB-System'!K39 -> 0
C44: ='BNB-System'!F40 -> Vertikale Erschließung | D44: ='BNB-System'!G40 -> 15 | G44: =IF(AND(NOT(ISBLANK(K44)),NOT(ISBLANK(L44))),('Bewertung durch Anwender'!K44),IF(AND(NOT(ISBLANK(J44)),NOT(ISBLANK(I44))),('Bewertung durch Anwender'!I44),(Zielvereinbarung!G44))) -> 0 | H44: =Zielvereinbarung!G44 -> 0 | P44: ='BNB-System'!K40 -> 0
C45: ='BNB-System'!F41 -> Grundrisse | D45: ='BNB-System'!G41 -> 25 | G45: =IF(AND(NOT(ISBLANK(K45)),NOT(ISBLANK(L45))),('Bewertung durch Anwender'!K45),IF(AND(NOT(ISBLANK(J45)),NOT(ISBLANK(I45))),('Bewertung durch Anwender'!I45),(Zielvereinbarung!G45))) -> 0 | H45: =Zielvereinbarung!G45 -> 0 | P45: ='BNB-System'!K41 -> 0
C46: ='BNB-System'!F42 -> Konstruktion | D46: ='BNB-System'!G42 -> 20 | G46: =IF(AND(NOT(ISBLANK(K46)),NOT(ISBLANK(L46))),('Bewertung durch Anwender'!K46),IF(AND(NOT(ISBLANK(J46)),NOT(ISBLANK(I46))),('Bewertung durch Anwender'!I46),(Zielvereinbarung!G46))) -> 0 | H46: =Zielvereinbarung!G46 -> 0 | P46: ='BNB-System'!K42 -> 0
C47: ='BNB-System'!F43 -> Technische Ausstattung | D47: ='BNB-System'!G43 -> 18 | G47: =IF(AND(NOT(ISBLANK(K47)),NOT(ISBLANK(L47))),('Bewertung durch Anwender'!K47),IF(AND(NOT(ISBLANK(J47)),NOT(ISBLANK(I47))),('Bewertung durch Anwender'!I47),(Zielvereinbarung!G47))) -> 0 | H47: =Zielvereinbarung!G47 -> 0 | P47: ='BNB-System'!K43 -> 0
P48: ='BNB-System'!K44 -> 0
B49: ='BNB-System'!E45 -> Soziokulturelle und funktionale Qualität | E49: ='BNB-System'!J45 -> 0.225 | G49: =IF(AND(NOT(ISBLANK(K49)),NOT(ISBLANK(L49))),('Bewertung durch Anwender'!K49),IF(AND(NOT(ISBLANK(J49)),NOT(ISBLANK(I49))),('Bewertung durch Anwender'!I49),(Zielvereinbarung!G49))) -> 0 | H49: =Zielvereinbarung!G49 -> 0 | M49: =M52*($E$52/100)+M63*($E$63/100)+M66*($E$66/100)+M76*($E$76/100)+M84*($E$84/100)+M93*($E$93/100)+M107*($E$107/100)+M109*($E$109/100)+M110*($E$110/100)+M116*($E$116/100)+M121*($E$121/100)+M128*($E$128/100) -> 0 | N49: =N52*($E$52/100)+N63*($E$63/100)+N66*($E$66/100)+N76*($E$76/100)+N84*($E$84/100)+N93*($E$93/100)+N107*($E$107/100)+N109*($E$109/100)+N110*($E$110/100)+N116*($E$116/100)+N121*($E$121/100)+N128*($E$128/100) -> 0 | P49: ='BNB-System'!K45 -> 2300
P50: ='BNB-System'!K46 -> 0
C51: ='BNB-System'!F47 -> Gesundheit, Behaglichkeit und Nutzerzufriedenheit | P51: ='BNB-System'!K47 -> 0
B52: ='BNB-System'!E48 -> 3.1.1 | C52: ='BNB-System'!F48 -> Thermischer Komfort | D52: ='BNB-System'!G48 -> 100 | E52: ='BNB-System'!J48 -> 0.02934782609 | G52: =IF(AND(NOT(ISBLANK(K52)),NOT(ISBLANK(L52))),('Bewertung durch Anwender'!K52),IF(AND(NOT(ISBLANK(J52)),NOT(ISBLANK(I52))),('Bewertung durch Anwender'!I52),(Zielvereinbarung!G52))) -> 0 | H52: =Zielvereinbarung!G52 -> 0 | M52: =SUM(M54:M57,M59:M62) -> 0 | N52: =SUM(N54:N57,N59:N62) -> 0 | P52: ='BNB-System'!K48 -> 300 | Q52: =IF(ISNUMBER(E52*N52/100),E52*N52/100,0) -> 0
C53: ='BNB-System'!F49 -> Winter | G53: =IF(Zielvereinbarung!E53=0,"",Zielvereinbarung!E53) ->  | P53: ='BNB-System'!K50 -> 0
C54: ='BNB-System'!F50 -> Operative Temperatur | D54: ='BNB-System'!G50 -> 10 | G54: =IF(AND(NOT(ISBLANK(K54)),NOT(ISBLANK(L54))),('Bewertung durch Anwender'!K54),IF(AND(NOT(ISBLANK(J54)),NOT(ISBLANK(I54))),('Bewertung durch Anwender'!I54),(Zielvereinbarung!G54))) -> 0 | H54: =Zielvereinbarung!G54 -> 0 | P54: ='BNB-System'!#REF! -> 
C55: ='BNB-System'!F51 -> Zugluft | D55: ='BNB-System'!G51 -> 10 | G55: =IF(AND(NOT(ISBLANK(K55)),NOT(ISBLANK(L55))),('Bewertung durch Anwender'!K55),IF(AND(NOT(ISBLANK(J55)),NOT(ISBLANK(I55))),('Bewertung durch Anwender'!I55),(Zielvereinbarung!G55))) -> 0 | H55: =Zielvereinbarung!G55 -> 0
C56: ='BNB-System'!F52 -> Stahlungstemperaturasymmetrie und Fußbodentemperatur | D56: ='BNB-System'!G52 -> 10 | G56: =IF(AND(NOT(ISBLANK(K56)),NOT(ISBLANK(L56))),('Bewertung durch Anwender'!K56),IF(AND(NOT(ISBLANK(J56)),NOT(ISBLANK(I56))),('Bewertung durch Anwender'!I56),(Zielvereinbarung!G56))) -> 0 | H56: =Zielvereinbarung!G56 -> 0
C57: ='BNB-System'!F53 -> Luftfeuchte | D57: ='BNB-System'!G53 -> 10 | G57: =IF(AND(NOT(ISBLANK(K57)),NOT(ISBLANK(L57))),('Bewertung durch Anwender'!K57),IF(AND(NOT(ISBLANK(J57)),NOT(ISBLANK(I57))),('Bewertung durch Anwender'!I57),(Zielvereinbarung!G57))) -> 0 | H57: =Zielvereinbarung!G57 -> 0
C58: ='BNB-System'!F54 -> Sommer | G58: =IF(Zielvereinbarung!E58=0,"",Zielvereinbarung!E58) -> 
C59: ='BNB-System'!F55 -> Operative Temperatur | D59: ='BNB-System'!G55 -> 30 | G59: =IF(AND(NOT(ISBLANK(K59)),NOT(ISBLANK(L59))),('Bewertung durch Anwender'!K59),IF(AND(NOT(ISBLANK(J59)),NOT(ISBLANK(I59))),('Bewertung durch Anwender'!I59),(Zielvereinbarung!G59))) -> 0 | H59: =Zielvereinbarung!G59 -> 0
C60: ='BNB-System'!F56 -> Zugluft | D60: ='BNB-System'!G56 -> 10 | G60: =IF(AND(NOT(ISBLANK(K60)),NOT(ISBLANK(L60))),('Bewertung durch Anwender'!K60),IF(AND(NOT(ISBLANK(J60)),NOT(ISBLANK(I60))),('Bewertung durch Anwender'!I60),(Zielvereinbarung!G60))) -> 0 | H60: =Zielvereinbarung!G60 -> 0
C61: ='BNB-System'!F57 -> Stahlungstemperaturasymmetrie und Fußbodentemperatur | D61: ='BNB-System'!G57 -> 10 | G61: =IF(AND(NOT(ISBLANK(K61)),NOT(ISBLANK(L61))),('Bewertung durch Anwender'!K61),IF(AND(NOT(ISBLANK(J61)),NOT(ISBLANK(I61))),('Bewertung durch Anwender'!I61),(Zielvereinbarung!G61))) -> 0 | H61: =Zielvereinbarung!G61 -> 0
C62: ='BNB-System'!F58 -> Luftfeuchte | D62: ='BNB-System'!G58 -> 10 | G62: =IF(AND(NOT(ISBLANK(K62)),NOT(ISBLANK(L62))),('Bewertung durch Anwender'!K62),IF(AND(NOT(ISBLANK(J62)),NOT(ISBLANK(I62))),('Bewertung durch Anwender'!I62),(Zielvereinbarung!G62))) -> 0 | H62: =Zielvereinbarung!G62 -> 0
B63: ='BNB-System'!E59 -> 3.1.3 | C63: ='BNB-System'!F59 -> Innenraumlufthygiene | D63: ='BNB-System'!G59 -> 100 | E63: ='BNB-System'!J59 -> 0.02934782609 | G63: =IF(AND(NOT(ISBLANK(K63)),NOT(ISBLANK(L63))),('Bewertung durch Anwender'!K63),IF(AND(NOT(ISBLANK(J63)),NOT(ISBLANK(I63))),('Bewertung durch Anwender'!I63),(Zielvereinbarung!G63))) -> 0 | H63: =Zielvereinbarung!G63 -> 0 | M63: =SUM(M64:M65) -> 0 | N63: =SUM(N64:N65) -> 0 | P63: ='BNB-System'!K59 -> 300 | Q63: =IF(ISNUMBER(E63*N63/100),E63*N63/100,0) -> 0
C64: ='BNB-System'!F60 -> Flüchtige organische Stoffe (VOC) und Formaldehyd | D64: ='BNB-System'!G60 -> 50 | G64: =IF(AND(NOT(ISBLANK(K64)),NOT(ISBLANK(L64))),('Bewertung durch Anwender'!K64),IF(AND(NOT(ISBLANK(J64)),NOT(ISBLANK(I64))),('Bewertung durch Anwender'!I64),(Zielvereinbarung!G64))) -> 0 | H64: =Zielvereinbarung!G64 -> 0 | P64: ='BNB-System'!K60 -> 0
C65: ='BNB-System'!F61 -> Personenbezogene Lüftungsrate | D65: ='BNB-System'!G61 -> 50 | G65: =IF(AND(NOT(ISBLANK(K65)),NOT(ISBLANK(L65))),('Bewertung durch Anwender'!K65),IF(AND(NOT(ISBLANK(J65)),NOT(ISBLANK(I65))),('Bewertung durch Anwender'!I65),(Zielvereinbarung!G65))) -> 0 | H65: =Zielvereinbarung!G65 -> 0 | P65: ='BNB-System'!K61 -> 0
B66: ='BNB-System'!E62 -> 3.1.4 | C66: ='BNB-System'!F62 -> Akustischer Komfort | D66: ='BNB-System'!G62 -> 100 | E66: ='BNB-System'!J62 -> 0.009782608696 | G66: =IF(AND(NOT(ISBLANK(K66)),NOT(ISBLANK(L66))),('Bewertung durch Anwender'!K66),IF(AND(NOT(ISBLANK(J66)),NOT(ISBLANK(I66))),('Bewertung durch Anwender'!I66),(Zielvereinbarung!G66))) -> 0 | H66: =Zielvereinbarung!G66 -> 0 | M66: =SUM(M68:M75) -> 0 | N66: =SUM(N68:N75) -> 0 | P66: ='BNB-System'!K62 -> 100 | Q66: =IF(ISNUMBER(E66*N66/100),E66*N66/100,0) -> 0
C67: ='BNB-System'!F63 -> Räume Gruppe A | H67: =Zielvereinbarung!G67 -> 0 | P67: ='BNB-System'!K63 -> 0
C68: ='BNB-System'!F64 -> Musik | D68: ='BNB-System'!G64 -> 100 | G68: =IF(AND(NOT(ISBLANK(K68)),NOT(ISBLANK(L68))),('Bewertung durch Anwender'!K68),IF(AND(NOT(ISBLANK(J68)),NOT(ISBLANK(I68))),('Bewertung durch Anwender'!I68),(Zielvereinbarung!G68))) -> 0
C69: ='BNB-System'!F65 -> Sprache/ Vortrag | D69: ='BNB-System'!G65 -> 100 | G69: =IF(AND(NOT(ISBLANK(K69)),NOT(ISBLANK(L69))),('Bewertung durch Anwender'!K69),IF(AND(NOT(ISBLANK(J69)),NOT(ISBLANK(I69))),('Bewertung durch Anwender'!I69),(Zielvereinbarung!G69))) -> 0 | H69: =Zielvereinbarung!G69 -> 0 | P69: ='BNB-System'!K65 -> 0
C70: ='BNB-System'!F66 -> Unterricht/ Kommunikation | D70: ='BNB-System'!G66 -> 100 | G70: =IF(AND(NOT(ISBLANK(K70)),NOT(ISBLANK(L70))),('Bewertung durch Anwender'!K70),IF(AND(NOT(ISBLANK(J70)),NOT(ISBLANK(I70))),('Bewertung durch Anwender'!I70),(Zielvereinbarung!G70))) -> 0 | H70: =Zielvereinbarung!G70 -> 0 | P70: ='BNB-System'!K66 -> 0
C71: ='BNB-System'!F67 -> Sport | D71: ='BNB-System'!G67 -> 100 | G71: =IF(AND(NOT(ISBLANK(K71)),NOT(ISBLANK(L71))),('Bewertung durch Anwender'!K71),IF(AND(NOT(ISBLANK(J71)),NOT(ISBLANK(I71))),('Bewertung durch Anwender'!I71),(Zielvereinbarung!G71))) -> 0 | H71: =Zielvereinbarung!G71 -> 0 | P71: ='BNB-System'!K67 -> 0
C72: ='BNB-System'!F68 -> Räume Gruppe B
C73: ='BNB-System'!F69 -> Einzel- und Mehrpersonenbüros bis 100 m³ | D73: ='BNB-System'!G69 -> 100 | G73: =IF(AND(NOT(ISBLANK(K73)),NOT(ISBLANK(L73))),('Bewertung durch Anwender'!K73),IF(AND(NOT(ISBLANK(J73)),NOT(ISBLANK(I73))),('Bewertung durch Anwender'!I73),(Zielvereinbarung!G73))) -> 0 | H73: =Zielvereinbarung!G73 -> 0 | P73: ='BNB-System'!K69 -> 0
C74: ='BNB-System'!F70 -> Mehrpersonenbüros über 100 m³ | D74: ='BNB-System'!G70 -> 100 | G74: =IF(AND(NOT(ISBLANK(K74)),NOT(ISBLANK(L74))),('Bewertung durch Anwender'!K74),IF(AND(NOT(ISBLANK(J74)),NOT(ISBLANK(I74))),('Bewertung durch Anwender'!I74),(Zielvereinbarung!G74))) -> 0 | H74: =Zielvereinbarung!G74 -> 0 | P74: ='BNB-System'!K70 -> 0
C75: ='BNB-System'!F71 -> Weitere Räume | D75: ='BNB-System'!G71 -> 100 | G75: =IF(AND(NOT(ISBLANK(K75)),NOT(ISBLANK(L75))),('Bewertung durch Anwender'!K75),IF(AND(NOT(ISBLANK(J75)),NOT(ISBLANK(I75))),('Bewertung durch Anwender'!I75),(Zielvereinbarung!G75))) -> 0 | H75: =Zielvereinbarung!G75 -> 0 | P75: ='BNB-System'!K71 -> 0
B76: ='BNB-System'!E72 -> 3.1.5 | C76: ='BNB-System'!F72 -> Visueller Komfort | D76: ='BNB-System'!G72 -> 100 | E76: ='BNB-System'!J72 -> 0.02934782609 | G76: =IF(AND(NOT(ISBLANK(K76)),NOT(ISBLANK(L76))),('Bewertung durch Anwender'!K76),IF(AND(NOT(ISBLANK(J76)),NOT(ISBLANK(I76))),('Bewertung durch Anwender'!I76),(Zielvereinbarung!G76))) -> 0 | H76: =Zielvereinbarung!G76 -> 0 | M76: =SUM(M77:M83) -> 0 | N76: =SUM(N77:N83) -> 0 | P76: ='BNB-System'!K72 -> 300 | Q76: =IF(ISNUMBER(E76*N76/100),E76*N76/100,0) -> 0
C77: ='BNB-System'!F73 -> Tageslichtverfügbarkeit Gesamtgebäude | D77: ='BNB-System'!G73 -> 15 | G77: =IF(AND(NOT(ISBLANK(K77)),NOT(ISBLANK(L77))),('Bewertung durch Anwender'!K77),IF(AND(NOT(ISBLANK(J77)),NOT(ISBLANK(I77))),('Bewertung durch Anwender'!I77),(Zielvereinbarung!G77))) -> 0 | H77: =Zielvereinbarung!G77 -> 0 | P77: ='BNB-System'!K73 -> 0
C78: ='BNB-System'!F74 -> Tageslichtverfügbarkeit ständige Arbeitsplätze | D78: ='BNB-System'!G74 -> 15 | G78: =IF(AND(NOT(ISBLANK(K78)),NOT(ISBLANK(L78))),('Bewertung durch Anwender'!K78),IF(AND(NOT(ISBLANK(J78)),NOT(ISBLANK(I78))),('Bewertung durch Anwender'!I78),(Zielvereinbarung!G78))) -> 0 | H78: =Zielvereinbarung!G78 -> 0 | P78: ='BNB-System'!K74 -> 0
C79: ='BNB-System'!F75 -> Nachweis de Sichtverbindung außen | D79: ='BNB-System'!G75 -> 15 | G79: =IF(AND(NOT(ISBLANK(K79)),NOT(ISBLANK(L79))),('Bewertung durch Anwender'!K79),IF(AND(NOT(ISBLANK(J79)),NOT(ISBLANK(I79))),('Bewertung durch Anwender'!I79),(Zielvereinbarung!G79))) -> 0 | H79: =Zielvereinbarung!G79 -> 0 | P79: ='BNB-System'!K75 -> 0
C80: ='BNB-System'!F76 -> Blendfreiheit Tageslicht | D80: ='BNB-System'!G76 -> 15 | G80: =IF(AND(NOT(ISBLANK(K80)),NOT(ISBLANK(L80))),('Bewertung durch Anwender'!K80),IF(AND(NOT(ISBLANK(J80)),NOT(ISBLANK(I80))),('Bewertung durch Anwender'!I80),(Zielvereinbarung!G80))) -> 0 | H80: =Zielvereinbarung!G80 -> 0 | P80: ='BNB-System'!K76 -> 0
C81: ='BNB-System'!F77 -> Blendfreiheit Kunstlicht | D81: ='BNB-System'!G77 -> 10 | G81: =IF(AND(NOT(ISBLANK(K81)),NOT(ISBLANK(L81))),('Bewertung durch Anwender'!K81),IF(AND(NOT(ISBLANK(J81)),NOT(ISBLANK(I81))),('Bewertung durch Anwender'!I81),(Zielvereinbarung!G81))) -> 0 | H81: =Zielvereinbarung!G81 -> 0 | P81: ='BNB-System'!K77 -> 0
C82: ='BNB-System'!F78 -> Lichtverteilung | D82: ='BNB-System'!G78 -> 15 | G82: =IF(AND(NOT(ISBLANK(K82)),NOT(ISBLANK(L82))),('Bewertung durch Anwender'!K82),IF(AND(NOT(ISBLANK(J82)),NOT(ISBLANK(I82))),('Bewertung durch Anwender'!I82),(Zielvereinbarung!G82))) -> 0 | H82: =Zielvereinbarung!G82 -> 0 | P82: ='BNB-System'!K78 -> 0
C83: ='BNB-System'!F79 -> Farbwiedergabe | D83: ='BNB-System'!G79 -> 15 | G83: =IF(AND(NOT(ISBLANK(K83)),NOT(ISBLANK(L83))),('Bewertung durch Anwender'!K83),IF(AND(NOT(ISBLANK(J83)),NOT(ISBLANK(I83))),('Bewertung durch Anwender'!I83),(Zielvereinbarung!G83))) -> 0 | H83: =Zielvereinbarung!G83 -> 0 | P83: ='BNB-System'!K79 -> 0
B84: ='BNB-System'!E80 -> 3.1.6 | C84: ='BNB-System'!F80 -> Einflussnahmemöglichkeiten durch Nutzer | D84: ='BNB-System'!G80 -> 100 | E84: ='BNB-System'!J80 -> 0.01956521739 | G84: =IF(AND(NOT(ISBLANK(K84)),NOT(ISBLANK(L84))),('Bewertung durch Anwender'!K84),IF(AND(NOT(ISBLANK(J84)),NOT(ISBLANK(I84))),('Bewertung durch Anwender'!I84),(Zielvereinbarung!G84))) -> 0 | H84: =Zielvereinbarung!G84 -> 0 | M84: =SUM(M85:M92) -> 0 | N84: =SUM(N85:N92) -> 0 | P84: ='BNB-System'!K80 -> 200 | Q84: =IF(ISNUMBER(E84*N84/100),E84*N84/100,0) -> 0
C85: ='BNB-System'!F81 -> Lüftung | D85: ='BNB-System'!G81 -> 10 | G85: =IF(AND(NOT(ISBLANK(K85)),NOT(ISBLANK(L85))),('Bewertung durch Anwender'!K85),IF(AND(NOT(ISBLANK(J85)),NOT(ISBLANK(I85))),('Bewertung durch Anwender'!I85),(Zielvereinbarung!G85))) -> 0 | H85: =Zielvereinbarung!G85 -> 0 | P85: ='BNB-System'!K81 -> 0
C86: ='BNB-System'!F82 -> Sonnenschutz | D86: ='BNB-System'!G82 -> 10 | G86: =IF(AND(NOT(ISBLANK(K86)),NOT(ISBLANK(L86))),('Bewertung durch Anwender'!K86),IF(AND(NOT(ISBLANK(J86)),NOT(ISBLANK(I86))),('Bewertung durch Anwender'!I86),(Zielvereinbarung!G86))) -> 0 | H86: =Zielvereinbarung!G86 -> 0 | P86: ='BNB-System'!K82 -> 0
C87: ='BNB-System'!F83 -> Blendschutz | D87: ='BNB-System'!G83 -> 10 | G87: =IF(AND(NOT(ISBLANK(K87)),NOT(ISBLANK(L87))),('Bewertung durch Anwender'!K87),IF(AND(NOT(ISBLANK(J87)),NOT(ISBLANK(I87))),('Bewertung durch Anwender'!I87),(Zielvereinbarung!G87))) -> 0 | H87: =Zielvereinbarung!G87 -> 0 | P87: ='BNB-System'!K83 -> 0
C88: ='BNB-System'!F84 -> Temperaturen während der Heizperiode | D88: ='BNB-System'!G84 -> 10 | G88: =IF(AND(NOT(ISBLANK(K88)),NOT(ISBLANK(L88))),('Bewertung durch Anwender'!K88),IF(AND(NOT(ISBLANK(J88)),NOT(ISBLANK(I88))),('Bewertung durch Anwender'!I88),(Zielvereinbarung!G88))) -> 0 | H88: =Zielvereinbarung!G88 -> 0 | P88: ='BNB-System'!K84 -> 0
C89: ='BNB-System'!F85 -> Temperaturen außerhalb der Heizperiode | D89: ='BNB-System'!G85 -> 15 | G89: =IF(AND(NOT(ISBLANK(K89)),NOT(ISBLANK(L89))),('Bewertung durch Anwender'!K89),IF(AND(NOT(ISBLANK(J89)),NOT(ISBLANK(I89))),('Bewertung durch Anwender'!I89),(Zielvereinbarung!G89))) -> 0 | H89: =Zielvereinbarung!G89 -> 0 | P89: ='BNB-System'!K85 -> 0
C90: ='BNB-System'!F86 -> Steuerung von Tageslicht | D90: ='BNB-System'!G86 -> 15 | G90: =IF(AND(NOT(ISBLANK(K90)),NOT(ISBLANK(L90))),('Bewertung durch Anwender'!K90),IF(AND(NOT(ISBLANK(J90)),NOT(ISBLANK(I90))),('Bewertung durch Anwender'!I90),(Zielvereinbarung!G90))) -> 0 | H90: =Zielvereinbarung!G90 -> 0 | P90: ='BNB-System'!K86 -> 0
C91: ='BNB-System'!F87 -> Steuerung von Kunstlicht | D91: ='BNB-System'!G87 -> 15 | G91: =IF(AND(NOT(ISBLANK(K91)),NOT(ISBLANK(L91))),('Bewertung durch Anwender'!K91),IF(AND(NOT(ISBLANK(J91)),NOT(ISBLANK(I91))),('Bewertung durch Anwender'!I91),(Zielvereinbarung!G91))) -> 0 | H91: =Zielvereinbarung!G91 -> 0 | P91: ='BNB-System'!K87 -> 0
C92: ='BNB-System'!F88 -> Bedienfreundlichkeit | D92: ='BNB-System'!G88 -> 15 | G92: =IF(AND(NOT(ISBLANK(K92)),NOT(ISBLANK(L92))),('Bewertung durch Anwender'!K92),IF(AND(NOT(ISBLANK(J92)),NOT(ISBLANK(I92))),('Bewertung durch Anwender'!I92),(Zielvereinbarung!G92))) -> 0 | H92: =Zielvereinbarung!G92 -> 0 | P92: ='BNB-System'!K88 -> 0
B93: ='BNB-System'!E89 -> 3.1.7 | C93: ='BNB-System'!F89 -> Aufenthaltsqualitäten | D93: ='BNB-System'!G89 -> 100 | E93: ='BNB-System'!J89 -> 0.009782608696 | G93: =IF(AND(NOT(ISBLANK(K93)),NOT(ISBLANK(L93))),('Bewertung durch Anwender'!K93),IF(AND(NOT(ISBLANK(J93)),NOT(ISBLANK(I93))),('Bewertung durch Anwender'!I93),(Zielvereinbarung!G93))) -> 0 | H93: =Zielvereinbarung!G93 -> 0 | M93: =SUM(M94:M106) -> 0 | N93: =SUM(N94:N106) -> 0 | P93: ='BNB-System'!K89 -> 100 | Q93: =IF(ISNUMBER(E93*N93/100),E93*N93/100,0) -> 0
C94: ='BNB-System'!F90 -> Anzahl der Aufenthaltsbereiche im Gebäude | D94: ='BNB-System'!G90 -> 10 | G94: =IF(AND(NOT(ISBLANK(K94)),NOT(ISBLANK(L94))),('Bewertung durch Anwender'!K94),IF(AND(NOT(ISBLANK(J94)),NOT(ISBLANK(I94))),('Bewertung durch Anwender'!I94),(Zielvereinbarung!G94))) -> 0 | H94: =Zielvereinbarung!G94 -> 0 | P94: ='BNB-System'!K90 -> 0
C95: ='BNB-System'!F91 -> Anzahl der Aufenthaltsbereiche im Außenraum | D95: ='BNB-System'!G91 -> 10 | G95: =IF(AND(NOT(ISBLANK(K95)),NOT(ISBLANK(L95))),('Bewertung durch Anwender'!K95),IF(AND(NOT(ISBLANK(J95)),NOT(ISBLANK(I95))),('Bewertung durch Anwender'!I95),(Zielvereinbarung!G95))) -> 0 | H95: =Zielvereinbarung!G95 -> 0 | P95: ='BNB-System'!K91 -> 0
C96: ='BNB-System'!F92 -> Anzahl der Sitzmöglichkeiten in diesen Bereichen | D96: ='BNB-System'!G92 -> 40 | G96: =IF(AND(NOT(ISBLANK(K96)),NOT(ISBLANK(L96))),('Bewertung durch Anwender'!K96),IF(AND(NOT(ISBLANK(J96)),NOT(ISBLANK(I96))),('Bewertung durch Anwender'!I96),(Zielvereinbarung!G96))) -> 0 | H96: =Zielvereinbarung!G96 -> 0 | P96: ='BNB-System'!K92 -> 0
C97: ='BNB-System'!F93 -> uneingeschränkte Nutzbarkeit der Erschließungsflächen als Aufenthaltsflächen | D97: ='BNB-System'!G93 -> 10 | G97: =IF(AND(NOT(ISBLANK(K97)),NOT(ISBLANK(L97))),('Bewertung durch Anwender'!K97),IF(AND(NOT(ISBLANK(J97)),NOT(ISBLANK(I97))),('Bewertung durch Anwender'!I97),(Zielvereinbarung!G97))) -> 0 | H97: =Zielvereinbarung!G97 -> 0 | P97: ='BNB-System'!K93 -> 0
C98: ='BNB-System'!F94 -> Sichtbeziehungen | D98: ='BNB-System'!G94 -> 10 | G98: =IF(AND(NOT(ISBLANK(K98)),NOT(ISBLANK(L98))),('Bewertung durch Anwender'!K98),IF(AND(NOT(ISBLANK(J98)),NOT(ISBLANK(I98))),('Bewertung durch Anwender'!I98),(Zielvereinbarung!G98))) -> 0 | H98: =Zielvereinbarung!G98 -> 0 | P98: ='BNB-System'!K94 -> 0
C99: ='BNB-System'!F95 -> Außenbezug | D99: ='BNB-System'!G95 -> 10 | G99: =IF(AND(NOT(ISBLANK(K99)),NOT(ISBLANK(L99))),('Bewertung durch Anwender'!K99),IF(AND(NOT(ISBLANK(J99)),NOT(ISBLANK(I99))),('Bewertung durch Anwender'!I99),(Zielvereinbarung!G99))) -> 0 | H99: =Zielvereinbarung!G99 -> 0 | P99: ='BNB-System'!K95 -> 0
C100: ='BNB-System'!F96 -> Ausstattungsqualität der Aufenthaltsbereiche im Außenraum | P100: ='BNB-System'!K96 -> 0
C101: ='BNB-System'!F97 -> Beleuchtung | D101: ='BNB-System'!G97 -> 2 | G101: =IF(AND(NOT(ISBLANK(K101)),NOT(ISBLANK(L101))),('Bewertung durch Anwender'!K101),IF(AND(NOT(ISBLANK(J101)),NOT(ISBLANK(I101))),('Bewertung durch Anwender'!I101),(Zielvereinbarung!G101))) -> 0 | H101: =Zielvereinbarung!G101 -> 0 | P101: ='BNB-System'!K97 -> 0
C102: ='BNB-System'!F98 -> Windschutz | D102: ='BNB-System'!G98 -> 2 | G102: =IF(AND(NOT(ISBLANK(K102)),NOT(ISBLANK(L102))),('Bewertung durch Anwender'!K102),IF(AND(NOT(ISBLANK(J102)),NOT(ISBLANK(I102))),('Bewertung durch Anwender'!I102),(Zielvereinbarung!G102))) -> 0 | H102: =Zielvereinbarung!G102 -> 0 | P102: ='BNB-System'!K98 -> 0
C103: ='BNB-System'!F99 -> Überdachung / Regenschutz | D103: ='BNB-System'!G99 -> 2 | G103: =IF(AND(NOT(ISBLANK(K103)),NOT(ISBLANK(L103))),('Bewertung durch Anwender'!K103),IF(AND(NOT(ISBLANK(J103)),NOT(ISBLANK(I103))),('Bewertung durch Anwender'!I103),(Zielvereinbarung!G103))) -> 0 | H103: =Zielvereinbarung!G103 -> 0 | P103: ='BNB-System'!K99 -> 0
C104: ='BNB-System'!F100 -> Sonnenschutz | D104: ='BNB-System'!G100 -> 2 | G104: =IF(AND(NOT(ISBLANK(K104)),NOT(ISBLANK(L104))),('Bewertung durch Anwender'!K104),IF(AND(NOT(ISBLANK(J104)),NOT(ISBLANK(I104))),('Bewertung durch Anwender'!I104),(Zielvereinbarung!G104))) -> 0 | H104: =Zielvereinbarung!G104 -> 0 | P104: ='BNB-System'!K100 -> 0
C105: ='BNB-System'!F101 -> Stromversorgung für Außenarbeitsplätze | D105: ='BNB-System'!G101 -> 1 | G105: =IF(AND(NOT(ISBLANK(K105)),NOT(ISBLANK(L105))),('Bewertung durch Anwender'!K105),IF(AND(NOT(ISBLANK(J105)),NOT(ISBLANK(I105))),('Bewertung durch Anwender'!I105),(Zielvereinbarung!G105))) -> 0 | H105: =Zielvereinbarung!G105 -> 0 | P105: ='BNB-System'!K101 -> 0
C106: ='BNB-System'!F102 -> Bepflanzung / Begrünung | D106: ='BNB-System'!G102 -> 1 | G106: =IF(AND(NOT(ISBLANK(K106)),NOT(ISBLANK(L106))),('Bewertung durch Anwender'!K106),IF(AND(NOT(ISBLANK(J106)),NOT(ISBLANK(I106))),('Bewertung durch Anwender'!I106),(Zielvereinbarung!G106))) -> 0 | H106: =Zielvereinbarung!G106 -> 0 | P106: ='BNB-System'!K102 -> 0
B107: ='BNB-System'!E103 -> 3.1.8 | C107: ='BNB-System'!F103 -> Sicherheit | D107: ='BNB-System'!G103 -> 100 | E107: ='BNB-System'!J103 -> 0.009782608696 | G107: =IF(AND(NOT(ISBLANK(K107)),NOT(ISBLANK(L107))),('Bewertung durch Anwender'!K107),IF(AND(NOT(ISBLANK(J107)),NOT(ISBLANK(I107))),('Bewertung durch Anwender'!I107),(Zielvereinbarung!G107))) -> 0 | H107: =Zielvereinbarung!G107 -> 0 | P107: ='BNB-System'!K103 -> 100 | Q107: =IF(ISNUMBER(E107*N107/100),E107*N107/100,0) -> 0
C108: ='BNB-System'!F104 -> Funktionalität | P108: ='BNB-System'!K104 -> 0
B109: ='BNB-System'!E105 -> 3.2.1 | C109: ='BNB-System'!F105 -> Barrierefreiheit | D109: ='BNB-System'!G105 -> 100 | E109: ='BNB-System'!J105 -> 0.01956521739 | G109: =IF(AND(NOT(ISBLANK(K109)),NOT(ISBLANK(L109))),('Bewertung durch Anwender'!K109),IF(AND(NOT(ISBLANK(J109)),NOT(ISBLANK(I109))),('Bewertung durch Anwender'!I109),(Zielvereinbarung!G109))) -> 0 | H109: =Zielvereinbarung!G109 -> 0 | P109: ='BNB-System'!K105 -> 200 | Q109: =IF(ISNUMBER(E109*N109/100),E109*N109/100,0) -> 0
B110: ='BNB-System'!E106 -> 3.2.4 | C110: ='BNB-System'!F106 -> Zugänglichkeit | D110: ='BNB-System'!G106 -> 100 | E110: ='BNB-System'!J106 -> 0.01956521739 | G110: =IF(AND(NOT(ISBLANK(K110)),NOT(ISBLANK(L110))),('Bewertung durch Anwender'!K110),IF(AND(NOT(ISBLANK(J110)),NOT(ISBLANK(I110))),('Bewertung durch Anwender'!I110),(Zielvereinbarung!G110))) -> 0 | H110: =Zielvereinbarung!G110 -> 0 | M110: =SUM(M111:M115) -> 0 | N110: =SUM(N111:N115) -> 0 | P110: ='BNB-System'!K106 -> 200 | Q110: =IF(ISNUMBER(E110*N110/100),E110*N110/100,0) -> 0
C111: ='BNB-System'!F107 -> Grundsätzliche Zugänglichkeit des Gebäudes | D111: ='BNB-System'!G107 -> 25 | G111: =IF(AND(NOT(ISBLANK(K111)),NOT(ISBLANK(L111))),('Bewertung durch Anwender'!K111),IF(AND(NOT(ISBLANK(J111)),NOT(ISBLANK(I111))),('Bewertung durch Anwender'!I111),(Zielvereinbarung!G111))) -> 0 | H111: =Zielvereinbarung!G111 -> 0 | P111: ='BNB-System'!K107 -> 0
C112: ='BNB-System'!F108 -> Öffnung der Außenanlagen für die Öffentlichkeit | D112: ='BNB-System'!G108 -> 25 | G112: =IF(AND(NOT(ISBLANK(K112)),NOT(ISBLANK(L112))),('Bewertung durch Anwender'!K112),IF(AND(NOT(ISBLANK(J112)),NOT(ISBLANK(I112))),('Bewertung durch Anwender'!I112),(Zielvereinbarung!G112))) -> 0 | H112: =Zielvereinbarung!G112 -> 0 | P112: ='BNB-System'!K108 -> 0
C113: ='BNB-System'!F109 -> Öffnung gebäudeinterner Einrichtungen für die Öffentlichkeit | D113: ='BNB-System'!G109 -> 25 | G113: =IF(AND(NOT(ISBLANK(K113)),NOT(ISBLANK(L113))),('Bewertung durch Anwender'!K113),IF(AND(NOT(ISBLANK(J113)),NOT(ISBLANK(I113))),('Bewertung durch Anwender'!I113),(Zielvereinbarung!G113))) -> 0 | H113: =Zielvereinbarung!G113 -> 0 | P113: ='BNB-System'!K109 -> 0
C114: ='BNB-System'!F110 -> Möglichkeit der Anmietung von Räumlichkeiten | D114: ='BNB-System'!G110 -> 15 | G114: =IF(AND(NOT(ISBLANK(K114)),NOT(ISBLANK(L114))),('Bewertung durch Anwender'!K114),IF(AND(NOT(ISBLANK(J114)),NOT(ISBLANK(I114))),('Bewertung durch Anwender'!I114),(Zielvereinbarung!G114))) -> 0 | H114: =Zielvereinbarung!G114 -> 0 | P114: ='BNB-System'!K110 -> 0
C115: ='BNB-System'!F111 -> Nutzungsvielfalt der öffentlich zugänglichen Bereiche | D115: ='BNB-System'!G111 -> 10 | G115: =IF(AND(NOT(ISBLANK(K115)),NOT(ISBLANK(L115))),('Bewertung durch Anwender'!K115),IF(AND(NOT(ISBLANK(J115)),NOT(ISBLANK(I115))),('Bewertung durch Anwender'!I115),(Zielvereinbarung!G115))) -> 0 | H115: =Zielvereinbarung!G115 -> 0 | P115: ='BNB-System'!K111 -> 0
B116: ='BNB-System'!E112 -> 3.2.5 | C116: ='BNB-System'!F112 -> Mobilitätsinfrastruktur | D116: ='BNB-System'!G112 -> 100 | E116: ='BNB-System'!J112 -> 0.009782608696 | G116: =IF(AND(NOT(ISBLANK(K116)),NOT(ISBLANK(L116))),('Bewertung durch Anwender'!K116),IF(AND(NOT(ISBLANK(J116)),NOT(ISBLANK(I116))),('Bewertung durch Anwender'!I116),(Zielvereinbarung!G116))) -> 0 | H116: =Zielvereinbarung!G116 -> 0 | M116: =IF(SUM(M117:M119)>100,100,SUM(M117:M119)) -> 0 | N116: =IF(SUM(N117:N119)>100,100,SUM(N117:N119)) -> 0 | P116: ='BNB-System'!K112 -> 100 | Q116: =IF(ISNUMBER(E116*N116/100),E116*N116/100,0) -> 0
C117: ='BNB-System'!F113 -> Anzahl der Fahrradstellplätze | G117: =IF(AND(NOT(ISBLANK(K117)),NOT(ISBLANK(L117))),('Bewertung durch Anwender'!K117),IF(AND(NOT(ISBLANK(J117)),NOT(ISBLANK(I117))),('Bewertung durch Anwender'!I117),(Zielvereinbarung!G117))) -> 0 | P117: ='BNB-System'!K113 -> 0
C118: ='BNB-System'!F114 -> Anzahl der Lademöglichkeiten und Carsharing-Stellplätze | G118: =IF(AND(NOT(ISBLANK(K118)),NOT(ISBLANK(L118))),('Bewertung durch Anwender'!K118),IF(AND(NOT(ISBLANK(J118)),NOT(ISBLANK(I118))),('Bewertung durch Anwender'!I118),(Zielvereinbarung!G118))) -> 0 | P118: ='BNB-System'!K114 -> 0
C119: ='BNB-System'!F115 -> Qualitative Anforderungen an Fahrradstellplätze | G119: =IF(AND(NOT(ISBLANK(K119)),NOT(ISBLANK(L119))),('Bewertung durch Anwender'!K119),IF(AND(NOT(ISBLANK(J119)),NOT(ISBLANK(I119))),('Bewertung durch Anwender'!I119),(Zielvereinbarung!G119))) -> 0 | P119: ='BNB-System'!K115 -> 0
C120: ='BNB-System'!F116 -> Sicherung der Gestaltungsqualität | P120: ='BNB-System'!K116 -> 0
B121: ='BNB-System'!E117 -> 3.3.1 | C121: ='BNB-System'!F117 -> Gestalterische und städtebauliche Qualität | D121: ='BNB-System'!G117 -> 100 | E121: ='BNB-System'!J117 -> 0.02934782609 | G121: =IF(AND(NOT(ISBLANK(K121)),NOT(ISBLANK(L121))),('Bewertung durch Anwender'!K121),IF(AND(NOT(ISBLANK(J121)),NOT(ISBLANK(I121))),('Bewertung durch Anwender'!I121),(Zielvereinbarung!G121))) -> 0 | H121: =Zielvereinbarung!G121 -> 0 | M121: =IF(AND(M122>0,M126<=M127),SUM(M122:M125),IF(AND(M122>0,M127<=M126),SUM(M122:M125),IF(M126>0,M126,IF(M127>0,M127,)))) -> 0 | N121: =IF(AND(N122>0,N126<=N127),SUM(N122:N125),IF(AND(N122>0,N127<=N126),SUM(N122:N125),IF(N126>0,N126,IF(N127>0,N127,)))) -> 0 | P121: ='BNB-System'!K117 -> 300 | Q121: =IF(ISNUMBER(E121*N121/100),E121*N121/100,0) -> 0
C122: ='BNB-System'!F118 -> Erfassung und Fortentwicklung der gestalterischen und städtebaulichen Qualität des Bestandsgebäudes | D122: ='BNB-System'!G118 -> 40 | G122: =IF(AND(NOT(ISBLANK(K122)),NOT(ISBLANK(L122))),('Bewertung durch Anwender'!K122),IF(AND(NOT(ISBLANK(J122)),NOT(ISBLANK(I122))),('Bewertung durch Anwender'!I122),(Zielvereinbarung!G122))) -> 0 | H122: =Zielvereinbarung!G122 -> 0 | P122: ='BNB-System'!K118 -> 0
C123: ='BNB-System'!F119 -> Wettbewerbsverfahren | D123: ='BNB-System'!G119 -> 35 | G123: =IF(AND(NOT(ISBLANK(K123)),NOT(ISBLANK(L123))),('Bewertung durch Anwender'!K123),IF(AND(NOT(ISBLANK(J123)),NOT(ISBLANK(I123))),('Bewertung durch Anwender'!I123),(Zielvereinbarung!G123))) -> 0 | H123: =Zielvereinbarung!G123 -> 0 | P123: ='BNB-System'!K119 -> 0
C124: ='BNB-System'!F120 -> Ausführung des Entwurfs eines der Preisträger | D124: ='BNB-System'!G120 -> 20 | G124: =IF(AND(NOT(ISBLANK(K124)),NOT(ISBLANK(L124))),('Bewertung durch Anwender'!K124),IF(AND(NOT(ISBLANK(J124)),NOT(ISBLANK(I124))),('Bewertung durch Anwender'!I124),(Zielvereinbarung!G124))) -> 0 | H124: =Zielvereinbarung!G124 -> 0 | P124: ='BNB-System'!K120 -> 0
C125: ='BNB-System'!F121 -> Beauftragung des Planungsteams | D125: ='BNB-System'!G121 -> 5 | G125: =IF(AND(NOT(ISBLANK(K125)),NOT(ISBLANK(L125))),('Bewertung durch Anwender'!K125),IF(AND(NOT(ISBLANK(J125)),NOT(ISBLANK(I125))),('Bewertung durch Anwender'!I125),(Zielvereinbarung!G125))) -> 0 | H125: =Zielvereinbarung!G125 -> 0 | P125: ='BNB-System'!K121 -> 0
C126: ='BNB-System'!F122 -> Auszeichnung mit einem Architekturpreis | D126: ='BNB-System'!G122 -> 40 | G126: =IF(AND(NOT(ISBLANK(K126)),NOT(ISBLANK(L126))),('Bewertung durch Anwender'!K126),IF(AND(NOT(ISBLANK(J126)),NOT(ISBLANK(I126))),('Bewertung durch Anwender'!I126),(Zielvereinbarung!G126))) -> 0 | H126: =Zielvereinbarung!G126 -> 0 | P126: ='BNB-System'!K122 -> 0
C127: ='BNB-System'!F123 -> Unabhängiges Expertengremium | D127: ='BNB-System'!G123 -> 30 | G127: =IF(AND(NOT(ISBLANK(K127)),NOT(ISBLANK(L127))),('Bewertung durch Anwender'!K127),IF(AND(NOT(ISBLANK(J127)),NOT(ISBLANK(I127))),('Bewertung durch Anwender'!I127),(Zielvereinbarung!G127))) -> 0 | H127: =Zielvereinbarung!G127 -> 0 | P127: ='BNB-System'!K123 -> 0
B128: ='BNB-System'!E124 -> 3.3.2 | C128: ='BNB-System'!F124 -> Kunst am Bau | D128: ='BNB-System'!G124 -> 100 | E128: ='BNB-System'!J124 -> 0.009782608696 | G128: =IF(AND(NOT(ISBLANK(K128)),NOT(ISBLANK(L128))),('Bewertung durch Anwender'!K128),IF(AND(NOT(ISBLANK(J128)),NOT(ISBLANK(I128))),('Bewertung durch Anwender'!I128),(Zielvereinbarung!G128))) -> 0 | H128: =Zielvereinbarung!G128 -> 0 | M128: =SUM(M129:M132) -> 0 | N128: =SUM(N129:N132) -> 0 | P128: ='BNB-System'!K124 -> 100 | Q128: =IF(ISNUMBER(E128*N128/100),E128*N128/100,0) -> 0
C129: ='BNB-System'!F125 -> Mindestanforderung | D129: ='BNB-System'!G125 -> 10 | G129: =IF(AND(NOT(ISBLANK(K129)),NOT(ISBLANK(L129))),('Bewertung durch Anwender'!K129),IF(AND(NOT(ISBLANK(J129)),NOT(ISBLANK(I129))),('Bewertung durch Anwender'!I129),(Zielvereinbarung!G129))) -> 0 | H129: =Zielvereinbarung!G129 -> 0 | P129: ='BNB-System'!K125 -> 0
C130: ='BNB-System'!F126 -> Bereitstellung von Mitteln im Rahmen der Bauaufgabe | D130: ='BNB-System'!G126 -> 30 | G130: =IF(AND(NOT(ISBLANK(K130)),NOT(ISBLANK(L130))),('Bewertung durch Anwender'!K130),IF(AND(NOT(ISBLANK(J130)),NOT(ISBLANK(I130))),('Bewertung durch Anwender'!I130),(Zielvereinbarung!G130))) -> 0 | H130: =Zielvereinbarung!G130 -> 0 | P130: ='BNB-System'!K126 -> 0
C131: ='BNB-System'!F127 -> Umsetzung des Leitfadens Kunst am Bau | D131: ='BNB-System'!G127 -> 40 | G131: =IF(AND(NOT(ISBLANK(K131)),NOT(ISBLANK(L131))),('Bewertung durch Anwender'!K131),IF(AND(NOT(ISBLANK(J131)),NOT(ISBLANK(I131))),('Bewertung durch Anwender'!I131),(Zielvereinbarung!G131))) -> 0 | H131: =Zielvereinbarung!G131 -> 0 | P131: ='BNB-System'!K127 -> 0
C132: ='BNB-System'!F128 -> Öffentlichkeitsarbeit, Rezeption der Kunst am Bau | D132: ='BNB-System'!G128 -> 20 | G132: =IF(AND(NOT(ISBLANK(K132)),NOT(ISBLANK(L132))),('Bewertung durch Anwender'!K132),IF(AND(NOT(ISBLANK(J132)),NOT(ISBLANK(I132))),('Bewertung durch Anwender'!I132),(Zielvereinbarung!G132))) -> 0 | H132: =Zielvereinbarung!G132 -> 0 | P132: ='BNB-System'!K128 -> 0
P133: ='BNB-System'!K129 -> 0
B134: ='BNB-System'!E130 -> Technische Qualität | E134: ='BNB-System'!J130 -> 0.225 | G134: =IF(AND(NOT(ISBLANK(K134)),NOT(ISBLANK(L134))),('Bewertung durch Anwender'!K134),IF(AND(NOT(ISBLANK(J134)),NOT(ISBLANK(I134))),('Bewertung durch Anwender'!I134),(Zielvereinbarung!G134))) -> 0 | H134: =Zielvereinbarung!G134 -> 0 | M134: =M137*($E$137/100)+M142*($E$142/100)+M149*($E$149/100)+M159*($E$159/100)+M160*($E$160/100)+M161*($E$161/100) -> 0 | N134: =N137*($E$137/100)+N142*($E$142/100)+N149*($E$149/100)+N159*($E$159/100)+N160*($E$160/100)+N161*($E$161/100) -> 0 | P134: ='BNB-System'!K130 -> 1000
P135: ='BNB-System'!K131 -> 0
C136: ='BNB-System'!F132 -> technische Ausführung | P136: ='BNB-System'!K132 -> 0
B137: ='BNB-System'!E133 -> 4.1.1 | C137: ='BNB-System'!F133 -> Schallschutz | D137: ='BNB-System'!G133 -> 100 | E137: ='BNB-System'!J133 -> 0.045 | G137: =IF(AND(NOT(ISBLANK(K137)),NOT(ISBLANK(L137))),('Bewertung durch Anwender'!K137),IF(AND(NOT(ISBLANK(J137)),NOT(ISBLANK(I137))),('Bewertung durch Anwender'!I137),(Zielvereinbarung!G137))) -> 0 | H137: =Zielvereinbarung!G137 -> 0 | M137: =SUM(M138:M141) -> 0 | N137: =SUM(N138:N141) -> 0 | P137: ='BNB-System'!K133 -> 200 | Q137: =IF(ISNUMBER(E137*N137/100),E137*N137/100,0) -> 0
C138: ='BNB-System'!F134 -> Luftschallschutz gegen Außenlärm | D138: ='BNB-System'!G134 -> 20 | G138: =IF(AND(NOT(ISBLANK(K138)),NOT(ISBLANK(L138))),('Bewertung durch Anwender'!K138),IF(AND(NOT(ISBLANK(J138)),NOT(ISBLANK(I138))),('Bewertung durch Anwender'!I138),(Zielvereinbarung!G138))) -> 0 | H138: =Zielvereinbarung!G138 -> 0 | P138: ='BNB-System'!K134 -> 0
C139: ='BNB-System'!F135 -> Luftschallschutz gegenüber fremden und eigenen Arbeitsbereichen | D139: ='BNB-System'!G135 -> 30 | G139: =IF(AND(NOT(ISBLANK(K139)),NOT(ISBLANK(L139))),('Bewertung durch Anwender'!K139),IF(AND(NOT(ISBLANK(J139)),NOT(ISBLANK(I139))),('Bewertung durch Anwender'!I139),(Zielvereinbarung!G139))) -> 0 | H139: =Zielvereinbarung!G139 -> 0 | P139: ='BNB-System'!K135 -> 0
C140: ='BNB-System'!F136 -> Trittschallschutz gegenüber fremden und eigenen Arbeitsbereichen | D140: ='BNB-System'!G136 -> 30 | G140: =IF(AND(NOT(ISBLANK(K140)),NOT(ISBLANK(L140))),('Bewertung durch Anwender'!K140),IF(AND(NOT(ISBLANK(J140)),NOT(ISBLANK(I140))),('Bewertung durch Anwender'!I140),(Zielvereinbarung!G140))) -> 0 | H140: =Zielvereinbarung!G140 -> 0 | P140: ='BNB-System'!K136 -> 0
C141: ='BNB-System'!F137 -> Schallschutz gegenüber haustechnischen Anlagen | D141: ='BNB-System'!G137 -> 20 | G141: =IF(AND(NOT(ISBLANK(K141)),NOT(ISBLANK(L141))),('Bewertung durch Anwender'!K141),IF(AND(NOT(ISBLANK(J141)),NOT(ISBLANK(I141))),('Bewertung durch Anwender'!I141),(Zielvereinbarung!G141))) -> 0 | H141: =Zielvereinbarung!G141 -> 0 | P141: ='BNB-System'!K137 -> 0
B142: ='BNB-System'!E138 -> 4.1.2 | C142: ='BNB-System'!F138 -> Wärme- und Tauwasserschutz | D142: ='BNB-System'!G138 -> 100 | E142: ='BNB-System'!J138 -> 0.045 | G142: =IF(AND(NOT(ISBLANK(K142)),NOT(ISBLANK(L142))),('Bewertung durch Anwender'!K142),IF(AND(NOT(ISBLANK(J142)),NOT(ISBLANK(I142))),('Bewertung durch Anwender'!I142),(Zielvereinbarung!G142))) -> 0 | H142: =Zielvereinbarung!G142 -> 0 | M142: =SUM(M143:M148) -> 0 | N142: =SUM(N143:N148) -> 0 | P142: ='BNB-System'!K138 -> 200 | Q142: =IF(ISNUMBER(E142*N142/100),E142*N142/100,0) -> 0
C143: ='BNB-System'!F139 -> Mittlere Wärmeduchgangskoeffizienten | D143: ='BNB-System'!G139 -> 30 | G143: =IF(AND(NOT(ISBLANK(K143)),NOT(ISBLANK(L143))),('Bewertung durch Anwender'!K143),IF(AND(NOT(ISBLANK(J143)),NOT(ISBLANK(I143))),('Bewertung durch Anwender'!I143),(Zielvereinbarung!G143))) -> 0 | H143: =Zielvereinbarung!G143 -> 0 | P143: ='BNB-System'!K139 -> 0
C144: ='BNB-System'!F140 -> Wärmebrückenzuschlag | D144: ='BNB-System'!G140 -> 15 | G144: =IF(AND(NOT(ISBLANK(K144)),NOT(ISBLANK(L144))),('Bewertung durch Anwender'!K144),IF(AND(NOT(ISBLANK(J144)),NOT(ISBLANK(I144))),('Bewertung durch Anwender'!I144),(Zielvereinbarung!G144))) -> 0 | H144: =Zielvereinbarung!G144 -> 0 | P144: ='BNB-System'!K140 -> 0
C145: ='BNB-System'!F141 -> Klassen der Luftdurchlässigkeit (Fugendurchlässigkeit) | D145: ='BNB-System'!G141 -> 15 | G145: =IF(AND(NOT(ISBLANK(K145)),NOT(ISBLANK(L145))),('Bewertung durch Anwender'!K145),IF(AND(NOT(ISBLANK(J145)),NOT(ISBLANK(I145))),('Bewertung durch Anwender'!I145),(Zielvereinbarung!G145))) -> 0 | H145: =Zielvereinbarung!G145 -> 0 | P145: ='BNB-System'!K141 -> 0
C146: ='BNB-System'!F142 -> Tauwasserbildung | D146: ='BNB-System'!G142 -> 10 | G146: =IF(AND(NOT(ISBLANK(K146)),NOT(ISBLANK(L146))),('Bewertung durch Anwender'!K146),IF(AND(NOT(ISBLANK(J146)),NOT(ISBLANK(I146))),('Bewertung durch Anwender'!I146),(Zielvereinbarung!G146))) -> 0 | H146: =Zielvereinbarung!G146 -> 0 | P146: ='BNB-System'!K142 -> 0
C147: ='BNB-System'!F143 -> Luftwechsel | D147: ='BNB-System'!G143 -> 15 | G147: =IF(AND(NOT(ISBLANK(K147)),NOT(ISBLANK(L147))),('Bewertung durch Anwender'!K147),IF(AND(NOT(ISBLANK(J147)),NOT(ISBLANK(I147))),('Bewertung durch Anwender'!I147),(Zielvereinbarung!G147))) -> 0 | H147: =Zielvereinbarung!G147 -> 0 | P147: ='BNB-System'!K143 -> 0
C148: ='BNB-System'!F144 -> Sonneneintragswert | D148: ='BNB-System'!G144 -> 15 | G148: =IF(AND(NOT(ISBLANK(K148)),NOT(ISBLANK(L148))),('Bewertung durch Anwender'!K148),IF(AND(NOT(ISBLANK(J148)),NOT(ISBLANK(I148))),('Bewertung durch Anwender'!I148),(Zielvereinbarung!G148))) -> 0 | H148: =Zielvereinbarung!G148 -> 0 | P148: ='BNB-System'!K144 -> 0
B149: ='BNB-System'!E145 -> 4.1.3 | C149: ='BNB-System'!F145 -> Reinigungs- und Instandhaltungsfreundlichkeit | D149: ='BNB-System'!G145 -> 100 | E149: ='BNB-System'!J145 -> 0.045 | G149: =IF(AND(NOT(ISBLANK(K149)),NOT(ISBLANK(L149))),('Bewertung durch Anwender'!K149),IF(AND(NOT(ISBLANK(J149)),NOT(ISBLANK(I149))),('Bewertung durch Anwender'!I149),(Zielvereinbarung!G149))) -> 0 | H149: =Zielvereinbarung!G149 -> 0 | M149: =SUM(M150:M158) -> 0 | N149: =SUM(N150:N158) -> 0 | P149: ='BNB-System'!K145 -> 200 | Q149: =IF(ISNUMBER(E149*N149/100),E149*N149/100,0) -> 0
C150: ='BNB-System'!F146 -> Tragkonstruktion | D150: ='BNB-System'!G146 -> 15 | G150: =IF(AND(NOT(ISBLANK(K150)),NOT(ISBLANK(L150))),('Bewertung durch Anwender'!K150),IF(AND(NOT(ISBLANK(J150)),NOT(ISBLANK(I150))),('Bewertung durch Anwender'!I150),(Zielvereinbarung!G150))) -> 0 | H150: =Zielvereinbarung!G150 -> 0 | P150: ='BNB-System'!K146 -> 0
C151: ='BNB-System'!F147 -> Zugänglichkeit der Außenglasflächen | D151: ='BNB-System'!G147 -> 15 | G151: =IF(AND(NOT(ISBLANK(K151)),NOT(ISBLANK(L151))),('Bewertung durch Anwender'!K151),IF(AND(NOT(ISBLANK(J151)),NOT(ISBLANK(I151))),('Bewertung durch Anwender'!I151),(Zielvereinbarung!G151))) -> 0 | H151: =Zielvereinbarung!G151 -> 0 | P151: ='BNB-System'!K147 -> 0
C152: ='BNB-System'!F148 -> Außenbauteile | D152: ='BNB-System'!G148 -> 9 | G152: =IF(AND(NOT(ISBLANK(K152)),NOT(ISBLANK(L152))),('Bewertung durch Anwender'!K152),IF(AND(NOT(ISBLANK(J152)),NOT(ISBLANK(I152))),('Bewertung durch Anwender'!I152),(Zielvereinbarung!G152))) -> 0 | H152: =Zielvereinbarung!G152 -> 0 | P152: ='BNB-System'!K148 -> 0
C153: ='BNB-System'!F149 -> Bodenbelag | D153: ='BNB-System'!G149 -> 9 | G153: =IF(AND(NOT(ISBLANK(K153)),NOT(ISBLANK(L153))),('Bewertung durch Anwender'!K153),IF(AND(NOT(ISBLANK(J153)),NOT(ISBLANK(I153))),('Bewertung durch Anwender'!I153),(Zielvereinbarung!G153))) -> 0 | H153: =Zielvereinbarung!G153 -> 0 | P153: ='BNB-System'!K149 -> 0
C154: ='BNB-System'!F150 -> Schmutzfangzone | D154: ='BNB-System'!G150 -> 9 | G154: =IF(AND(NOT(ISBLANK(K154)),NOT(ISBLANK(L154))),('Bewertung durch Anwender'!K154),IF(AND(NOT(ISBLANK(J154)),NOT(ISBLANK(I154))),('Bewertung durch Anwender'!I154),(Zielvereinbarung!G154))) -> 0 | H154: =Zielvereinbarung!G154 -> 0 | P154: ='BNB-System'!K150 -> 0
C155: ='BNB-System'!F151 -> Fußbodenleisten | D155: ='BNB-System'!G151 -> 9 | G155: =IF(AND(NOT(ISBLANK(K155)),NOT(ISBLANK(L155))),('Bewertung durch Anwender'!K155),IF(AND(NOT(ISBLANK(J155)),NOT(ISBLANK(I155))),('Bewertung durch Anwender'!I155),(Zielvereinbarung!G155))) -> 0 | H155: =Zielvereinbarung!G155 -> 0 | P155: ='BNB-System'!K151 -> 0
C156: ='BNB-System'!F152 -> Hindernisfreie Grundrissgestaltung | D156: ='BNB-System'!G152 -> 9 | G156: =IF(AND(NOT(ISBLANK(K156)),NOT(ISBLANK(L156))),('Bewertung durch Anwender'!K156),IF(AND(NOT(ISBLANK(J156)),NOT(ISBLANK(I156))),('Bewertung durch Anwender'!I156),(Zielvereinbarung!G156))) -> 0 | H156: =Zielvereinbarung!G156 -> 0 | P156: ='BNB-System'!K152 -> 0
C157: ='BNB-System'!F153 -> Einbauten | D157: ='BNB-System'!G153 -> 10 | G157: =IF(AND(NOT(ISBLANK(K157)),NOT(ISBLANK(L157))),('Bewertung durch Anwender'!K157),IF(AND(NOT(ISBLANK(J157)),NOT(ISBLANK(I157))),('Bewertung durch Anwender'!I157),(Zielvereinbarung!G157))) -> 0 | H157: =Zielvereinbarung!G157 -> 0 | P157: ='BNB-System'!K153 -> 0
C158: ='BNB-System'!F154 -> Zugänglichkeit der Innenglasflächen | D158: ='BNB-System'!G154 -> 15 | G158: =IF(AND(NOT(ISBLANK(K158)),NOT(ISBLANK(L158))),('Bewertung durch Anwender'!K158),IF(AND(NOT(ISBLANK(J158)),NOT(ISBLANK(I158))),('Bewertung durch Anwender'!I158),(Zielvereinbarung!G158))) -> 0 | H158: =Zielvereinbarung!G158 -> 0 | P158: ='BNB-System'!K154 -> 0
B159: ='BNB-System'!E155 -> 4.1.4 | C159: ='BNB-System'!F155 -> Rückbau, Trennung und Verwertung | D159: ='BNB-System'!G155 -> 100 | E159: ='BNB-System'!J155 -> 0.045 | G159: =IF(AND(NOT(ISBLANK(K159)),NOT(ISBLANK(L159))),('Bewertung durch Anwender'!K159),IF(AND(NOT(ISBLANK(J159)),NOT(ISBLANK(I159))),('Bewertung durch Anwender'!I159),(Zielvereinbarung!G159))) -> 0 | H159: =Zielvereinbarung!G159 -> 0 | P159: ='BNB-System'!K155 -> 200 | Q159: =IF(ISNUMBER(E159*N159/100),E159*N159/100,0) -> 0
B160: ='BNB-System'!E156 -> 4.1.5 | C160: ='BNB-System'!F156 -> Widerstandsfähigkeit gegen Naturgefahren | D160: ='BNB-System'!G156 -> 100 | E160: ='BNB-System'!J156 -> 0.0225 | G160: =IF(AND(NOT(ISBLANK(K160)),NOT(ISBLANK(L160))),('Bewertung durch Anwender'!K160),IF(AND(NOT(ISBLANK(J160)),NOT(ISBLANK(I160))),('Bewertung durch Anwender'!I160),(Zielvereinbarung!G160))) -> 0 | H160: =Zielvereinbarung!G160 -> 0 | P160: ='BNB-System'!K156 -> 100 | Q160: =IF(ISNUMBER(E160*N160/100),E160*N160/100,0) -> 0
B161: ='BNB-System'!E157 -> 4.1.6 | C161: ='BNB-System'!F157 -> Bedienungs- und Instandhaltungsfreundlichkeit der TGA | D161: ='BNB-System'!G157 -> 100 | E161: ='BNB-System'!J157 -> 0.0225 | G161: =IF(AND(NOT(ISBLANK(K161)),NOT(ISBLANK(L161))),('Bewertung durch Anwender'!K161),IF(AND(NOT(ISBLANK(J161)),NOT(ISBLANK(I161))),('Bewertung durch Anwender'!I161),(Zielvereinbarung!G161))) -> 0 | H161: =Zielvereinbarung!G161 -> 0 | P161: ='BNB-System'!K157 -> 100 | Q161: =IF(ISNUMBER(E161*N161/100),E161*N161/100,0) -> 0
P162: ='BNB-System'!K158 -> 0
B163: ='BNB-System'!E159 -> Prozessqualität | E163: ='BNB-System'!J159 -> 0.1 | G163: =IF(AND(NOT(ISBLANK(K163)),NOT(ISBLANK(L163))),('Bewertung durch Anwender'!K163),IF(AND(NOT(ISBLANK(J163)),NOT(ISBLANK(I163))),('Bewertung durch Anwender'!I163),(Zielvereinbarung!G163))) -> 0 | H163: =Zielvereinbarung!G163 -> 0 | M163: =M166*($E$166/100)+M170*($E$170/100)+M176*($E$176/100)+M192*($E$192/100)+M193*($E$193/100)+M213*($E$213/100)+M218*($E$218/100)+M221*($E$221/100) -> 0 | N163: =N166*($E$166/100)+N170*($E$170/100)+N176*($E$176/100)+N192*($E$192/100)+N193*($E$193/100)+N213*($E$213/100)+N218*($E$218/100)+N221*($E$221/100) -> 0 | P163: ='BNB-System'!K159 -> 2500
P164: ='BNB-System'!K160 -> 0
C165: ='BNB-System'!F161 -> Planung | P165: ='BNB-System'!K161 -> 0
B166: ='BNB-System'!E162 -> 5.1.1 | C166: ='BNB-System'!F162 -> Projektvorbereitung | D166: ='BNB-System'!G162 -> 100 | E166: ='BNB-System'!J162 -> 0.012 | G166: =IF(AND(NOT(ISBLANK(K166)),NOT(ISBLANK(L166))),('Bewertung durch Anwender'!K166),IF(AND(NOT(ISBLANK(J166)),NOT(ISBLANK(I166))),('Bewertung durch Anwender'!I166),(Zielvereinbarung!G166))) -> 0 | H166: =Zielvereinbarung!G166 -> 0 | P166: ='BNB-System'!K162 -> 300 | Q166: =IF(ISNUMBER(E166*N166/100),E166*N166/100,0) -> 0
C167: ='BNB-System'!F163 -> Bedarfsplanung oder vergleichbare Planung | D167: ='BNB-System'!G163 -> 35 | E167: ='BNB-System'!J163 -> 0 | G167: =IF(AND(NOT(ISBLANK(K167)),NOT(ISBLANK(L167))),('Bewertung durch Anwender'!K167),IF(AND(NOT(ISBLANK(J167)),NOT(ISBLANK(I167))),('Bewertung durch Anwender'!I167),(Zielvereinbarung!G167))) -> 0 | H167: =Zielvereinbarung!G167 -> 0 | P167: ='BNB-System'!K163 -> 0
C168: ='BNB-System'!F164 -> Zielvereinbarung | D168: ='BNB-System'!G164 -> 35 | E168: ='BNB-System'!J164 -> 0 | G168: =IF(AND(NOT(ISBLANK(K168)),NOT(ISBLANK(L168))),('Bewertung durch Anwender'!K168),IF(AND(NOT(ISBLANK(J168)),NOT(ISBLANK(I168))),('Bewertung durch Anwender'!I168),(Zielvereinbarung!G168))) -> 0 | H168: =Zielvereinbarung!G168 -> 0 | P168: ='BNB-System'!K164 -> 0
C169: ='BNB-System'!F165 -> Architektenwettbewerb | D169: ='BNB-System'!G165 -> 30 | E169: ='BNB-System'!J165 -> 0 | G169: =IF(AND(NOT(ISBLANK(K169)),NOT(ISBLANK(L169))),('Bewertung durch Anwender'!K169),IF(AND(NOT(ISBLANK(J169)),NOT(ISBLANK(I169))),('Bewertung durch Anwender'!I169),(Zielvereinbarung!G169))) -> 0 | H169: =Zielvereinbarung!G169 -> 0 | P169: ='BNB-System'!K165 -> 0
B170: ='BNB-System'!E166 -> 5.1.2 | C170: ='BNB-System'!F166 -> Integrale Planung | D170: ='BNB-System'!G166 -> 100 | E170: ='BNB-System'!J166 -> 0.012 | G170: =IF(AND(NOT(ISBLANK(K170)),NOT(ISBLANK(L170))),('Bewertung durch Anwender'!K170),IF(AND(NOT(ISBLANK(J170)),NOT(ISBLANK(I170))),('Bewertung durch Anwender'!I170),(Zielvereinbarung!G170))) -> 0 | H170: =Zielvereinbarung!G170 -> 0 | M170: =SUM(M171:M175) -> 0 | N170: =SUM(N171:N175) -> 0 | P170: ='BNB-System'!K166 -> 300 | Q170: =IF(ISNUMBER(E170*N170/100),E170*N170/100,0) -> 0
C171: ='BNB-System'!F167 -> Integrales Planungsteam | D171: ='BNB-System'!G167 -> 30 | G171: =IF(AND(NOT(ISBLANK(K171)),NOT(ISBLANK(L171))),('Bewertung durch Anwender'!K171),IF(AND(NOT(ISBLANK(J171)),NOT(ISBLANK(I171))),('Bewertung durch Anwender'!I171),(Zielvereinbarung!G171))) -> 0 | H171: =Zielvereinbarung!G171 -> 0 | P171: ='BNB-System'!K167 -> 0
C172: ='BNB-System'!F168 -> Qualifikation des Planungsteams | D172: ='BNB-System'!G168 -> 20 | G172: =IF(AND(NOT(ISBLANK(K172)),NOT(ISBLANK(L172))),('Bewertung durch Anwender'!K172),IF(AND(NOT(ISBLANK(J172)),NOT(ISBLANK(I172))),('Bewertung durch Anwender'!I172),(Zielvereinbarung!G172))) -> 0 | H172: =Zielvereinbarung!G172 -> 0 | P172: ='BNB-System'!K168 -> 0
C173: ='BNB-System'!F169 -> Integraler Planungsprozess | D173: ='BNB-System'!G169 -> 20 | G173: =IF(AND(NOT(ISBLANK(K173)),NOT(ISBLANK(L173))),('Bewertung durch Anwender'!K173),IF(AND(NOT(ISBLANK(J173)),NOT(ISBLANK(I173))),('Bewertung durch Anwender'!I173),(Zielvereinbarung!G173))) -> 0 | H173: =Zielvereinbarung!G173 -> 0 | P173: ='BNB-System'!K169 -> 0
C174: ='BNB-System'!F170 -> Nutzerbeteiligung | D174: ='BNB-System'!G170 -> 20 | G174: =IF(AND(NOT(ISBLANK(K174)),NOT(ISBLANK(L174))),('Bewertung durch Anwender'!K174),IF(AND(NOT(ISBLANK(J174)),NOT(ISBLANK(I174))),('Bewertung durch Anwender'!I174),(Zielvereinbarung!G174))) -> 0 | H174: =Zielvereinbarung!G174 -> 0 | P174: ='BNB-System'!K170 -> 0
C175: ='BNB-System'!F171 -> Öffentlichkeitsbeteiligung | D175: ='BNB-System'!G171 -> 10 | G175: =IF(AND(NOT(ISBLANK(K175)),NOT(ISBLANK(L175))),('Bewertung durch Anwender'!K175),IF(AND(NOT(ISBLANK(J175)),NOT(ISBLANK(I175))),('Bewertung durch Anwender'!I175),(Zielvereinbarung!G175))) -> 0 | H175: =Zielvereinbarung!G175 -> 0 | P175: ='BNB-System'!K171 -> 0
B176: ='BNB-System'!E172 -> 5.1.3 | C176: ='BNB-System'!F172 -> Komplexität und Optimierung der Planung | D176: ='BNB-System'!G172 -> 100 | E176: ='BNB-System'!J172 -> 0.012 | G176: =IF(AND(NOT(ISBLANK(K176)),NOT(ISBLANK(L176))),('Bewertung durch Anwender'!K176),IF(AND(NOT(ISBLANK(J176)),NOT(ISBLANK(I176))),('Bewertung durch Anwender'!I176),(Zielvereinbarung!G176))) -> 0 | H176: =Zielvereinbarung!G176 -> 0 | M176: =IF(SUM(M177:M191)>100,100,SUM(M177:M191)) -> 0 | N176: =IF(SUM(N177:N191)>100,100,SUM(N177:N191)) -> 0 | P176: ='BNB-System'!K172 -> 300 | Q176: =IF(ISNUMBER(E176*N176/100),E176*N176/100,0) -> 0
C177: ='BNB-System'!F173 -> SiGe-Plan | D177: ='BNB-System'!G173 -> 10 | G177: =IF(AND(NOT(ISBLANK(K177)),NOT(ISBLANK(L177))),('Bewertung durch Anwender'!K177),IF(AND(NOT(ISBLANK(J177)),NOT(ISBLANK(I177))),('Bewertung durch Anwender'!I177),(Zielvereinbarung!G177))) -> 0 | H177: =Zielvereinbarung!G177 -> 0 | P177: ='BNB-System'!K173 -> 0
C178: ='BNB-System'!F174 -> Ver- und Entsiegelungskonzept | D178: ='BNB-System'!G174 -> 10 | G178: =IF(AND(NOT(ISBLANK(K178)),NOT(ISBLANK(L178))),('Bewertung durch Anwender'!K178),IF(AND(NOT(ISBLANK(J178)),NOT(ISBLANK(I178))),('Bewertung durch Anwender'!I178),(Zielvereinbarung!G178))) -> 0 | H178: =Zielvereinbarung!G178 -> 0 | P178: ='BNB-System'!K174 -> 0
C179: ='BNB-System'!F175 -> Energiekonzept | D179: ='BNB-System'!G175 -> 15 | G179: =IF(AND(NOT(ISBLANK(K179)),NOT(ISBLANK(L179))),('Bewertung durch Anwender'!K179),IF(AND(NOT(ISBLANK(J179)),NOT(ISBLANK(I179))),('Bewertung durch Anwender'!I179),(Zielvereinbarung!G179))) -> 0 | H179: =Zielvereinbarung!G179 -> 0 | P179: ='BNB-System'!K175 -> 0
C180: ='BNB-System'!F176 -> Mess- und Monitoringkonzept | D180: ='BNB-System'!G176 -> 15 | G180: =IF(AND(NOT(ISBLANK(K180)),NOT(ISBLANK(L180))),('Bewertung durch Anwender'!K180),IF(AND(NOT(ISBLANK(J180)),NOT(ISBLANK(I180))),('Bewertung durch Anwender'!I180),(Zielvereinbarung!G180))) -> 0 | H180: =Zielvereinbarung!G180 -> 0 | P180: ='BNB-System'!K176 -> 0
C181: ='BNB-System'!F177 -> Wasserkonzept | D181: ='BNB-System'!G177 -> 10 | G181: =IF(AND(NOT(ISBLANK(K181)),NOT(ISBLANK(L181))),('Bewertung durch Anwender'!K181),IF(AND(NOT(ISBLANK(J181)),NOT(ISBLANK(I181))),('Bewertung durch Anwender'!I181),(Zielvereinbarung!G181))) -> 0 | H181: =Zielvereinbarung!G181 -> 0 | P181: ='BNB-System'!K177 -> 0
C182: ='BNB-System'!F178 -> Konzept zur Vermeidung von Umwelt- und Gesundheitsrisiken aus Bauprodukten | D182: ='BNB-System'!G178 -> 10 | G182: =IF(AND(NOT(ISBLANK(K182)),NOT(ISBLANK(L182))),('Bewertung durch Anwender'!K182),IF(AND(NOT(ISBLANK(J182)),NOT(ISBLANK(I182))),('Bewertung durch Anwender'!I182),(Zielvereinbarung!G182))) -> 0 | H182: =Zielvereinbarung!G182 -> 0 | P182: ='BNB-System'!K178 -> 0
C183: ='BNB-System'!F179 -> Lüftungskonzept | D183: ='BNB-System'!G179 -> 10 | G183: =IF(AND(NOT(ISBLANK(K183)),NOT(ISBLANK(L183))),('Bewertung durch Anwender'!K183),IF(AND(NOT(ISBLANK(J183)),NOT(ISBLANK(I183))),('Bewertung durch Anwender'!I183),(Zielvereinbarung!G183))) -> 0 | H183: =Zielvereinbarung!G183 -> 0 | P183: ='BNB-System'!K179 -> 0
C184: ='BNB-System'!F180 -> Abfallkonzept / Wertstoffkonzept | D184: ='BNB-System'!G180 -> 5 | G184: =IF(AND(NOT(ISBLANK(K184)),NOT(ISBLANK(L184))),('Bewertung durch Anwender'!K184),IF(AND(NOT(ISBLANK(J184)),NOT(ISBLANK(I184))),('Bewertung durch Anwender'!I184),(Zielvereinbarung!G184))) -> 0 | H184: =Zielvereinbarung!G184 -> 0 | P184: ='BNB-System'!K180 -> 0
C185: ='BNB-System'!F181 -> Tages- / Kunstlichtoptimierung | D185: ='BNB-System'!G181 -> 10 | G185: =IF(AND(NOT(ISBLANK(K185)),NOT(ISBLANK(L185))),('Bewertung durch Anwender'!K185),IF(AND(NOT(ISBLANK(J185)),NOT(ISBLANK(I185))),('Bewertung durch Anwender'!I185),(Zielvereinbarung!G185))) -> 0 | H185: =Zielvereinbarung!G185 -> 0 | P185: ='BNB-System'!K181 -> 0
C186: ='BNB-System'!F182 -> Konzept zur Sicherung der Reinigungs- und Instandhaltungsfreundlichkeit | D186: ='BNB-System'!G182 -> 10 | G186: =IF(AND(NOT(ISBLANK(K186)),NOT(ISBLANK(L186))),('Bewertung durch Anwender'!K186),IF(AND(NOT(ISBLANK(J186)),NOT(ISBLANK(I186))),('Bewertung durch Anwender'!I186),(Zielvereinbarung!G186))) -> 0 | H186: =Zielvereinbarung!G186 -> 0 | P186: ='BNB-System'!K182 -> 0
C187: ='BNB-System'!F183 -> Anpassbarkeits-, Rückbau- und Recyclingkonzept | D187: ='BNB-System'!G183 -> 10 | G187: =IF(AND(NOT(ISBLANK(K187)),NOT(ISBLANK(L187))),('Bewertung durch Anwender'!K187),IF(AND(NOT(ISBLANK(J187)),NOT(ISBLANK(I187))),('Bewertung durch Anwender'!I187),(Zielvereinbarung!G187))) -> 0 | H187: =Zielvereinbarung!G187 -> 0 | P187: ='BNB-System'!K183 -> 0
C188: ='BNB-System'!F184 -> Konzept zur Vermeidung und Beherrschung von Risiken | D188: ='BNB-System'!G184 -> 10 | G188: =IF(AND(NOT(ISBLANK(K188)),NOT(ISBLANK(L188))),('Bewertung durch Anwender'!K188),IF(AND(NOT(ISBLANK(J188)),NOT(ISBLANK(I188))),('Bewertung durch Anwender'!I188),(Zielvereinbarung!G188))) -> 0 | H188: =Zielvereinbarung!G188 -> 0 | P188: ='BNB-System'!K184 -> 0
C189: ='BNB-System'!F185 -> Sonstige Konzepte zum Nachhaltigen Bauen | D189: ='BNB-System'!G185 -> 10 | G189: =IF(AND(NOT(ISBLANK(K189)),NOT(ISBLANK(L189))),('Bewertung durch Anwender'!K189),IF(AND(NOT(ISBLANK(J189)),NOT(ISBLANK(I189))),('Bewertung durch Anwender'!I189),(Zielvereinbarung!G189))) -> 0 | H189: =Zielvereinbarung!G189 -> 0 | P189: ='BNB-System'!K185 -> 0
C190: ='BNB-System'!F186 -> Prüfung der Planungsunterlagen durch unabhängige Dritte | D190: ='BNB-System'!G186 -> 5 | G190: =IF(AND(NOT(ISBLANK(K190)),NOT(ISBLANK(L190))),('Bewertung durch Anwender'!K190),IF(AND(NOT(ISBLANK(J190)),NOT(ISBLANK(I190))),('Bewertung durch Anwender'!I190),(Zielvereinbarung!G190))) -> 0 | H190: =Zielvereinbarung!G190 -> 0 | P190: ='BNB-System'!K186 -> 0
C191: ='BNB-System'!F187 -> Durchführung von Variantenvergleichen | D191: ='BNB-System'!G187 -> 10 | G191: =IF(AND(NOT(ISBLANK(K191)),NOT(ISBLANK(L191))),('Bewertung durch Anwender'!K191),IF(AND(NOT(ISBLANK(J191)),NOT(ISBLANK(I191))),('Bewertung durch Anwender'!I191),(Zielvereinbarung!G191))) -> 0 | H191: =Zielvereinbarung!G191 -> 0 | P191: ='BNB-System'!K187 -> 0
B192: ='BNB-System'!E188 -> 5.1.4 | C192: ='BNB-System'!F188 -> Ausschreibung und Vergabe | D192: ='BNB-System'!G188 -> 100 | E192: ='BNB-System'!J188 -> 0.008 | G192: =IF(AND(NOT(ISBLANK(K192)),NOT(ISBLANK(L192))),('Bewertung durch Anwender'!K192),IF(AND(NOT(ISBLANK(J192)),NOT(ISBLANK(I192))),('Bewertung durch Anwender'!I192),(Zielvereinbarung!G192))) -> 0 | H192: =Zielvereinbarung!G192 -> 0 | P192: ='BNB-System'!K188 -> 200 | Q192: =IF(ISNUMBER(E192*N192/100),E192*N192/100,0) -> 0
B193: ='BNB-System'!E189 -> 5.1.5 | C193: ='BNB-System'!F189 -> Voraussetzungen für eine optimale Bewirtschaftung | D193: ='BNB-System'!G189 -> 100 | E193: ='BNB-System'!J189 -> 0.008 | G193: =IF(AND(NOT(ISBLANK(K193)),NOT(ISBLANK(L193))),('Bewertung durch Anwender'!K193),IF(AND(NOT(ISBLANK(J193)),NOT(ISBLANK(I193))),('Bewertung durch Anwender'!I193),(Zielvereinbarung!G193))) -> 0 | H193: =Zielvereinbarung!G193 -> 0 | M193: =SUM(M194:M197) -> 0 | N193: =SUM(N194:N197) -> 0 | P193: ='BNB-System'!K189 -> 200 | Q193: =IF(ISNUMBER(E193*N193/100),E193*N193/100,0) -> 0
C194: ='BNB-System'!F190 -> Erstellung einer Gebäudeakte / Objektdokumentation | D194: ='BNB-System'!G190 -> 25 | G194: =IF(AND(NOT(ISBLANK(K194)),NOT(ISBLANK(L194))),('Bewertung durch Anwender'!K194),IF(AND(NOT(ISBLANK(J194)),NOT(ISBLANK(I194))),('Bewertung durch Anwender'!I194),(Zielvereinbarung!G194))) -> 0 | H194: =Zielvereinbarung!G194 -> 0 | P194: ='BNB-System'!K190 -> 0
C195: ='BNB-System'!F191 -> Erstellung von Wartungs-, Inspektions-, Betriebs-, und Pflegeanleitungen | D195: ='BNB-System'!G191 -> 25 | G195: =IF(AND(NOT(ISBLANK(K195)),NOT(ISBLANK(L195))),('Bewertung durch Anwender'!K195),IF(AND(NOT(ISBLANK(J195)),NOT(ISBLANK(I195))),('Bewertung durch Anwender'!I195),(Zielvereinbarung!G195))) -> 0 | H195: =Zielvereinbarung!G195 -> 0 | P195: ='BNB-System'!K191 -> 0
C196: ='BNB-System'!F192 -> Anpassung der Pläne und Berechnungen an das realisierte Gebäude | D196: ='BNB-System'!G192 -> 25 | G196: =IF(AND(NOT(ISBLANK(K196)),NOT(ISBLANK(L196))),('Bewertung durch Anwender'!K196),IF(AND(NOT(ISBLANK(J196)),NOT(ISBLANK(I196))),('Bewertung durch Anwender'!I196),(Zielvereinbarung!G196))) -> 0 | H196: =Zielvereinbarung!G196 -> 0 | P196: ='BNB-System'!K192 -> 0
C197: ='BNB-System'!F193 -> Erstellung eines Nutzerhandbuches | D197: ='BNB-System'!G193 -> 25 | G197: =IF(AND(NOT(ISBLANK(K197)),NOT(ISBLANK(L197))),('Bewertung durch Anwender'!K197),IF(AND(NOT(ISBLANK(J197)),NOT(ISBLANK(I197))),('Bewertung durch Anwender'!I197),(Zielvereinbarung!G197))) -> 0 | H197: =Zielvereinbarung!G197 -> 0 | P197: ='BNB-System'!K193 -> 0
B198: ='BNB-System'!E194 -> 5.1.6 | C198: ='BNB-System'!F194 -> Bestandsanalyse | D198: ='BNB-System'!G194 -> 100 | E198: ='BNB-System'!J194 -> 0.012 | G198: =IF(AND(NOT(ISBLANK(K198)),NOT(ISBLANK(L198))),('Bewertung durch Anwender'!K198),IF(AND(NOT(ISBLANK(J198)),NOT(ISBLANK(I198))),('Bewertung durch Anwender'!I198),(Zielvereinbarung!G198))) -> 0 | H198: =Zielvereinbarung!G198 -> 0 | M198: =SUM(M199:M207) -> 0 | N198: =SUM(N199:N207) -> 0
C199: ='BNB-System'!F195 -> Bestandsaufnahme Geometrie | D199: ='BNB-System'!G195 -> 10 | G199: =IF(AND(NOT(ISBLANK(K199)),NOT(ISBLANK(L199))),('Bewertung durch Anwender'!K199),IF(AND(NOT(ISBLANK(J199)),NOT(ISBLANK(I199))),('Bewertung durch Anwender'!I199),(Zielvereinbarung!G199))) -> 0 | H199: =Zielvereinbarung!G199 -> 0
C200: ='BNB-System'!F196 -> Bestandsaufnahme Baukonstruktion und Baustoffe | D200: ='BNB-System'!G196 -> 20 | G200: =IF(AND(NOT(ISBLANK(K200)),NOT(ISBLANK(L200))),('Bewertung durch Anwender'!K200),IF(AND(NOT(ISBLANK(J200)),NOT(ISBLANK(I200))),('Bewertung durch Anwender'!I200),(Zielvereinbarung!G200))) -> 0 | H200: =Zielvereinbarung!G200 -> 0
C201: ='BNB-System'!F197 -> Bestandsaufnahme Haustechnik | D201: ='BNB-System'!G197 -> 10 | G201: =IF(AND(NOT(ISBLANK(K201)),NOT(ISBLANK(L201))),('Bewertung durch Anwender'!K201),IF(AND(NOT(ISBLANK(J201)),NOT(ISBLANK(I201))),('Bewertung durch Anwender'!I201),(Zielvereinbarung!G201))) -> 0 | H201: =Zielvereinbarung!G201 -> 0
C202: ='BNB-System'!F198 -> Bestandsaufnahme Bau- und Nutzungsgeschichte | D202: ='BNB-System'!G198 -> 5 | G202: =IF(AND(NOT(ISBLANK(K202)),NOT(ISBLANK(L202))),('Bewertung durch Anwender'!K202),IF(AND(NOT(ISBLANK(J202)),NOT(ISBLANK(I202))),('Bewertung durch Anwender'!I202),(Zielvereinbarung!G202))) -> 0 | H202: =Zielvereinbarung!G202 -> 0
... 61 more rows

Sheet Konformitätsprüfung (hidden)
B1: ='BNB-System'!B1 -> Projekt: | C1: =Zielvereinbarung!C1 -> Projektbezeichnung
B2: ='BNB-System'!B2 -> Bewertungssystem Nachhaltiges Bauen (BNB)
B3: ='BNB-System'!B3 -> Systemvariante Büro- und Verwaltungsgebäude, Modul Komplettmodernisierung (BNB_BK) - Version 2017
B4: Nachhaltigkeitskriterien | D4: maximale Punktzahl | E4: Gewichtung Gesamt- bewertung | F4: Punkt- zahl | G4: Eingereichte Endbewertung | I4: Bemerkung Konformitätsprüfung Prüfung vom: | J4: Bearbeiter | L4: Zielwert | M4: Gesamt-bewertung Anwender | N4: Gesamt-bewertung Konformitäts- prüfung
F5: Ziel- vereinbarung | G5: Anwender | H5: Konformitätsprüfung | I5: =TODAY() -> 2017-11-23
B7: Gesamterfüllungsgrad | F7: =Zielvereinbarung!$G$7 -> 0 | G7: ='Bewertung durch Anwender'!N7 -> 0 | H7: =H10+H35+H49+H134+H163 -> 0
H8: ende | K8: qwertz
B10: ='BNB-System'!E6 -> Ökologische Qualität | E10: ='BNB-System'!J6 -> 0.225 | F10: ='Bewertung durch Anwender'!G10 -> 0 | G10: ='Bewertung durch Anwender'!N10 -> 0 | H10: =H13*(E13/100)+H14*(E14/100)+H15*(E15/100)+H16*(E16/100)+H17*(E17/100)+H18*(E18/100)+H24*(E24/100)+H26*(E26/100)+H30*(E30/100)+H31*(E31/100) -> 0 | L10: ='BNB-System'!K6 -> 1800
L11: ='BNB-System'!K7 -> 0
C12: Wirkungen auf die globale und lokale Umwelt | L12: ='BNB-System'!K8 -> 0
B13: ='BNB-System'!E9 -> 1.1.1 | C13: ='BNB-System'!F9 -> Treibhauspotenzial (GWP) | D13: ='BNB-System'!G9 -> 100 | E13: ='BNB-System'!J9 -> 0.0375 | F13: ='Bewertung durch Anwender'!G13 -> 0 | G13: ='Bewertung durch Anwender'!N13 -> 0 | L13: ='BNB-System'!K9 -> 300 | M13: =IF(ISNUMBER(G13*E13/100),G13*E13/100,0) -> 0 | N13: =IF(ISNUMBER(H13*E13/100),H13*E13/100,0) -> 0
B14: ='BNB-System'!E10 -> 1.1.2 | C14: ='BNB-System'!F10 -> Ozonschichtabbaupotenzial (ODP) | D14: ='BNB-System'!G10 -> 100 | E14: ='BNB-System'!J10 -> 0.0125 | F14: ='Bewertung durch Anwender'!G14 -> 0 | G14: ='Bewertung durch Anwender'!N14 -> 0 | L14: ='BNB-System'!K10 -> 100 | M14: =IF(ISNUMBER(G14*E14/100),G14*E14/100,0) -> 0 | N14: 0
B15: ='BNB-System'!E11 -> 1.1.3 | C15: ='BNB-System'!F11 -> Ozonbildungspotenzial (POCP) | D15: ='BNB-System'!G11 -> 100 | E15: ='BNB-System'!J11 -> 0.0125 | F15: ='Bewertung durch Anwender'!G15 -> 0 | G15: ='Bewertung durch Anwender'!N15 -> 0 | L15: ='BNB-System'!K11 -> 100 | M15: 0 | N15: 0
B16: ='BNB-System'!E12 -> 1.1.4 | C16: ='BNB-System'!F12 -> Versauerungspotenzial (AP) | D16: ='BNB-System'!G12 -> 100 | E16: ='BNB-System'!J12 -> 0.0125 | F16: ='Bewertung durch Anwender'!G16 -> 0 | G16: ='Bewertung durch Anwender'!N16 -> 0 | L16: ='BNB-System'!K12 -> 100 | M16: 0 | N16: 0
B17: ='BNB-System'!E13 -> 1.1.5 | C17: ='BNB-System'!F13 -> Überdüngungspotenzial (EP) | D17: ='BNB-System'!G13 -> 100 | E17: ='BNB-System'!J13 -> 0.0125 | F17: ='Bewertung durch Anwender'!G17 -> 0 | G17: ='Bewertung durch Anwender'!N17 -> 0 | L17: ='BNB-System'!K13 -> 100 | M17: 0 | N17: 0
B18: ='BNB-System'!E14 -> 1.1.6 | C18: ='BNB-System'!F14 -> Risiken für die lokale Umwelt | D18: ='BNB-System'!G14 -> 100 | E18: ='BNB-System'!J14 -> 0.0375 | F18: ='Bewertung durch Anwender'!G18 -> 0 | G18: ='Bewertung durch Anwender'!N18 -> 0 | H18: =IF(SUM(H19:H23)>100,100,SUM(H19:H23)) -> 0 | L18: ='BNB-System'!K14 -> 300 | M18: 0 | N18: 0
C19: ='BNB-System'!F15 -> Altsubstanz: Q4 ; Neusubstanz: Q5 | D19: ='BNB-System'!G15 -> 100 | F19: ='Bewertung durch Anwender'!G19 -> 0 | G19: ='Bewertung durch Anwender'!N19 -> 0
C20: ='BNB-System'!F16 -> Altsubstanz: Q3 ; Neusubstanz: Q4 | D20: ='BNB-System'!G16 -> 75 | F20: ='Bewertung durch Anwender'!G20 -> 0 | G20: ='Bewertung durch Anwender'!N20 -> 0
C21: ='BNB-System'!F17 -> Altsubstanz: Q2 ; Neusubstanz: Q3 | D21: ='BNB-System'!G17 -> 50 | F21: ='Bewertung durch Anwender'!G21 -> 0 | G21: ='Bewertung durch Anwender'!N21 -> 0
C22: ='BNB-System'!F18 -> Altsubstanz: Q1 ; Neusubstanz: Q2 | D22: ='BNB-System'!G18 -> 25 | F22: ='Bewertung durch Anwender'!G22 -> 0 | G22: ='Bewertung durch Anwender'!N22 -> 0
C23: ='BNB-System'!F19 -> Altsubstanz: Q1 ; Neusubstanz: Q1 | D23: ='BNB-System'!G19 -> 10 | F23: ='Bewertung durch Anwender'!G23 -> 0 | G23: ='Bewertung durch Anwender'!N23 -> 0
B24: ='BNB-System'!E20 -> 1.1.7 | C24: ='BNB-System'!F20 -> Nachhaltige Materialgewinnung / Biodiversität | D24: ='BNB-System'!G20 -> 100 | E24: ='BNB-System'!J20 -> 0.0125 | F24: ='Bewertung durch Anwender'!G24 -> 0 | G24: ='Bewertung durch Anwender'!N24 -> 0 | L24: ='BNB-System'!K20 -> 100 | M24: 0 | N24: 0
C25: ='BNB-System'!F21 -> Ressourceninanspruchnahme | L25: ='BNB-System'!K21 -> 0
B26: ='BNB-System'!E22 -> 1.2.1 | C26: ='BNB-System'!F22 -> Primärenergiebedarf | D26: ='BNB-System'!G22 -> 100 | E26: ='BNB-System'!J22 -> 0.0375 | F26: ='Bewertung durch Anwender'!G26 -> 0 | G26: ='Bewertung durch Anwender'!N26 -> 0 | H26: =IF(SUM(H27:H29)>100,100,SUM(H27:H29)) -> 0 | L26: ='BNB-System'!K22 -> 300 | M26: =IF(ISNUMBER(G26*E26/100),G26*E26/100,0) -> 0 | N26: =IF(ISNUMBER(H26*E26/100),H26*E26/100,0) -> 0
C27: ='BNB-System'!F23 -> Primärenergiebedarf nicht erneuerbar (PEne) | D27: ='BNB-System'!G23 -> 60 | F27: ='Bewertung durch Anwender'!G27 -> 0 | G27: ='Bewertung durch Anwender'!N27 -> 0 | L27: ='BNB-System'!K23 -> 0
C28: ='BNB-System'!F24 -> Gesamtprimärenergiebedarf (PEges) | D28: ='BNB-System'!G24 -> 40 | F28: ='Bewertung durch Anwender'!G29 -> 0 | G28: ='Bewertung durch Anwender'!N29 -> 0
C29: ='BNB-System'!F25 -> Anteil der erneuerbaren Primärenergie (Pee) | D29: ='BNB-System'!G25 -> 20 | F29: ='Bewertung durch Anwender'!G30 -> 0 | G29: ='Bewertung durch Anwender'!N30 -> 0 | L29: ='BNB-System'!K25 -> 0
B30: ='BNB-System'!E26 -> 1.2.3 | C30: ='BNB-System'!F26 -> Trinkwasserbedarf und Abwasseraufkommen | D30: ='BNB-System'!G26 -> 100 | E30: ='BNB-System'!J26 -> 0.025 | F30: ='Bewertung durch Anwender'!G30 -> 0 | G30: ='Bewertung durch Anwender'!N30 -> 0 | L30: ='BNB-System'!K26 -> 200 | M30: =IF(ISNUMBER(G30*E30/100),G30*E30/100,0) -> 0 | N30: =IF(ISNUMBER(H30*E30/100),H30*E30/100,0) -> 0
B31: ='BNB-System'!E27 -> 1.2.4 | C31: ='BNB-System'!F27 -> Flächeninanspruchnahme | D31: ='BNB-System'!G27 -> 100 | E31: ='BNB-System'!J27 -> 0.025 | F31: ='Bewertung durch Anwender'!G31 -> 0 | G31: ='Bewertung durch Anwender'!N31 -> 0 | H31: =SUM(H32:H33) -> 0 | L31: ='BNB-System'!K27 -> 200 | M31: =IF(ISNUMBER(G31*E31/100),G31*E31/100,0) -> 0 | N31: =IF(ISNUMBER(H31*E31/100),H31*E31/100,0) -> 0
C32: ='BNB-System'!F28 -> Veränderung der Flächeninanspruchnahme | D32: ='BNB-System'!G28 -> 100 | F32: ='Bewertung durch Anwender'!G32 -> 0 | G32: ='Bewertung durch Anwender'!N32 -> 0
C33: ='BNB-System'!F29 -> Ausgleichsmaßnahmen und Flächenrecycling | D33: ='BNB-System'!G29 -> 40 | F33: ='Bewertung durch Anwender'!G33 -> 0 | G33: ='Bewertung durch Anwender'!N33 -> 0
L34: ='BNB-System'!K30 -> 0
B35: ='BNB-System'!E31 -> Ökonomische Qualität | E35: ='BNB-System'!J31 -> 0.225 | F35: ='Bewertung durch Anwender'!G35 -> 0 | G35: ='Bewertung durch Anwender'!N35 -> 0 | H35: =H38*($E$38/100)+H40*($E$40/100)+H41*($E$41/100) -> 0 | L35: ='BNB-System'!K31 -> 600
L36: ='BNB-System'!K32 -> 0
C37: ='BNB-System'!F33 -> Lebenszykluskosten | L37: ='BNB-System'!K33 -> 0
B38: ='BNB-System'!E34 -> 2.1.1 | C38: ='BNB-System'!F34 -> Gebäudebezogene Kosten im Lebenszyklus | D38: ='BNB-System'!G34 -> 100 | E38: ='BNB-System'!J34 -> 0.1125 | F38: ='Bewertung durch Anwender'!G38 -> 0 | G38: ='Bewertung durch Anwender'!N38 -> 0 | L38: ='BNB-System'!K34 -> 300 | M38: =IF(ISNUMBER(G38*E38/100),G38*E38/100,0) -> 0 | N38: =IF(ISNUMBER(H38*E38/100),H38*E38/100,0) -> 0
C39: ='BNB-System'!F35 -> Wirtschaftlichkeit und Wertstabilität | L39: ='BNB-System'!K35 -> 0
B40: ='BNB-System'!E36 -> 2.2.1 | C40: ='BNB-System'!F36 -> Flächeneffizienz | D40: ='BNB-System'!G36 -> 100 | E40: ='BNB-System'!J36 -> 0.0375 | F40: ='Bewertung durch Anwender'!G40 -> 0 | G40: ='Bewertung durch Anwender'!N40 -> 0 | L40: ='BNB-System'!K36 -> 100 | M40: =IF(ISNUMBER(G40*E40/100),G40*E40/100,0) -> 0 | N40: 0
B41: ='BNB-System'!E37 -> 2.2.2 | C41: ='BNB-System'!F37 -> Anpassungsfähigkeit | D41: ='BNB-System'!G37 -> 100 | E41: ='BNB-System'!J37 -> 0.075 | F41: ='Bewertung durch Anwender'!G41 -> 0 | G41: ='Bewertung durch Anwender'!N41 -> 0 | H41: =SUM(H42:H47) -> 0 | L41: ='BNB-System'!K37 -> 200 | M41: =IF(ISNUMBER(G41*E41/100),G41*E41/100,0) -> 0 | N41: =IF(ISNUMBER(H41*E41/100),H41*E41/100,0) -> 0
C42: ='BNB-System'!F38 -> Lichte Raumhöhe | D42: ='BNB-System'!G38 -> 15 | F42: ='Bewertung durch Anwender'!G42 -> 0 | G42: ='Bewertung durch Anwender'!N42 -> 0 | L42: ='BNB-System'!K38 -> 0
C43: ='BNB-System'!F39 -> Gebäudetiefe | D43: ='BNB-System'!G39 -> 15 | F43: ='Bewertung durch Anwender'!G43 -> 0 | G43: ='Bewertung durch Anwender'!N43 -> 0 | L43: ='BNB-System'!K39 -> 0
C44: ='BNB-System'!F40 -> Vertikale Erschließung | D44: ='BNB-System'!G40 -> 15 | F44: ='Bewertung durch Anwender'!G44 -> 0 | G44: ='Bewertung durch Anwender'!N44 -> 0 | L44: ='BNB-System'!K40 -> 0
C45: ='BNB-System'!F41 -> Grundrisse | D45: ='BNB-System'!G41 -> 25 | F45: ='Bewertung durch Anwender'!G45 -> 0 | G45: ='Bewertung durch Anwender'!N45 -> 0 | L45: ='BNB-System'!K41 -> 0
C46: ='BNB-System'!F42 -> Konstruktion | D46: ='BNB-System'!G42 -> 20 | F46: ='Bewertung durch Anwender'!G46 -> 0 | G46: ='Bewertung durch Anwender'!N46 -> 0 | L46: ='BNB-System'!K42 -> 0
C47: ='BNB-System'!F43 -> Technische Ausstattung | D47: ='BNB-System'!G43 -> 18 | F47: ='Bewertung durch Anwender'!G47 -> 0 | G47: ='Bewertung durch Anwender'!N47 -> 0 | L47: ='BNB-System'!K43 -> 0
L48: ='BNB-System'!K44 -> 0
B49: ='BNB-System'!E45 -> Soziokulturelle und funktionale Qualität | E49: ='BNB-System'!J45 -> 0.225 | F49: ='Bewertung durch Anwender'!G49 -> 0 | G49: ='Bewertung durch Anwender'!N49 -> 0 | H49: =H52*($E$52/100)+H63*($E$63/100)+H66*($E$66/100)+H76*($E$76/100)+H84*($E$84/100)+H93*($E$93/100)+H107*($E$107/100)+H109*($E$109/100)+H110*($E$110/100)+H116*($E$116/100)+H121*($E$121/100)+H128*($E$128/100) -> 0 | L49: ='BNB-System'!K45 -> 2300
L50: ='BNB-System'!K46 -> 0
C51: ='BNB-System'!F47 -> Gesundheit, Behaglichkeit und Nutzerzufriedenheit | L51: ='BNB-System'!K47 -> 0
B52: ='BNB-System'!E48 -> 3.1.1 | C52: ='BNB-System'!F48 -> Thermischer Komfort | D52: ='BNB-System'!G48 -> 100 | E52: ='BNB-System'!J48 -> 0.02934782609 | F52: ='Bewertung durch Anwender'!G52 -> 0 | G52: ='Bewertung durch Anwender'!N52 -> 0 | H52: =SUM(H54:H57,H59:H62) -> 0 | L52: ='BNB-System'!K48 -> 300 | M52: =IF(ISNUMBER(G52*E52/100),G52*E52/100,0) -> 0 | N52: =IF(ISNUMBER(H52*E52/100),H52*E52/100,0) -> 0
C53: ='BNB-System'!F49 -> Winter
C54: ='BNB-System'!F50 -> Operative Temperatur | D54: ='BNB-System'!G50 -> 10 | F54: ='Bewertung durch Anwender'!G54 -> 0 | G54: ='Bewertung durch Anwender'!N54 -> 0
C55: ='BNB-System'!F51 -> Zugluft | D55: ='BNB-System'!G51 -> 10 | F55: ='Bewertung durch Anwender'!G55 -> 0 | G55: ='Bewertung durch Anwender'!N55 -> 0
C56: ='BNB-System'!F52 -> Stahlungstemperaturasymmetrie und Fußbodentemperatur | D56: ='BNB-System'!G52 -> 10 | F56: ='Bewertung durch Anwender'!G56 -> 0 | G56: ='Bewertung durch Anwender'!N56 -> 0
C57: ='BNB-System'!F53 -> Luftfeuchte | D57: ='BNB-System'!G53 -> 10 | F57: ='Bewertung durch Anwender'!G57 -> 0 | G57: ='Bewertung durch Anwender'!N57 -> 0
C58: ='BNB-System'!F54 -> Sommer | F58: ='Bewertung durch Anwender'!G58 -> 
C59: ='BNB-System'!F55 -> Operative Temperatur | D59: ='BNB-System'!G55 -> 30 | F59: ='Bewertung durch Anwender'!G59 -> 0 | G59: ='Bewertung durch Anwender'!N59 -> 0
C60: ='BNB-System'!F56 -> Zugluft | D60: ='BNB-System'!G56 -> 10 | F60: ='Bewertung durch Anwender'!G60 -> 0 | G60: ='Bewertung durch Anwender'!N60 -> 0
C61: ='BNB-System'!F57 -> Stahlungstemperaturasymmetrie und Fußbodentemperatur | D61: ='BNB-System'!G57 -> 10 | F61: ='Bewertung durch Anwender'!G61 -> 0 | G61: ='Bewertung durch Anwender'!N61 -> 0 | L61: ='BNB-System'!K50 -> 0
C62: ='BNB-System'!F58 -> Luftfeuchte | D62: ='BNB-System'!G58 -> 10 | F62: ='Bewertung durch Anwender'!G62 -> 0 | G62: ='Bewertung durch Anwender'!N62 -> 0 | L62: ='BNB-System'!#REF! -> 
B63: ='BNB-System'!E59 -> 3.1.3 | C63: ='BNB-System'!F59 -> Innenraumlufthygiene | D63: ='BNB-System'!G59 -> 100 | E63: ='BNB-System'!J59 -> 0.02934782609 | F63: ='Bewertung durch Anwender'!G63 -> 0 | G63: ='Bewertung durch Anwender'!N63 -> 0 | H63: =SUM(H64:H65) -> 0 | L63: ='BNB-System'!K59 -> 300 | M63: =IF(ISNUMBER(G63*E63/100),G63*E63/100,0) -> 0 | N63: =IF(ISNUMBER(H63*E63/100),H63*E63/100,0) -> 0
C64: ='BNB-System'!F60 -> Flüchtige organische Stoffe (VOC) und Formaldehyd | D64: ='BNB-System'!G60 -> 50 | F64: ='Bewertung durch Anwender'!G64 -> 0 | G64: ='Bewertung durch Anwender'!N64 -> 0 | L64: ='BNB-System'!K60 -> 0
C65: ='BNB-System'!F61 -> Personenbezogene Lüftungsrate | D65: ='BNB-System'!G61 -> 50 | F65: ='Bewertung durch Anwender'!G65 -> 0 | G65: ='Bewertung durch Anwender'!N65 -> 0 | L65: ='BNB-System'!K61 -> 0
B66: ='BNB-System'!E62 -> 3.1.4 | C66: ='BNB-System'!F62 -> Akustischer Komfort | D66: ='BNB-System'!G62 -> 100 | E66: ='BNB-System'!J62 -> 0.009782608696 | F66: ='Bewertung durch Anwender'!G66 -> 0 | G66: ='Bewertung durch Anwender'!N66 -> 0 | H66: =SUM(H68:H75) -> 0 | L66: ='BNB-System'!K62 -> 100 | M66: =IF(ISNUMBER(G66*E66/100),G66*E66/100,0) -> 0 | N66: =IF(ISNUMBER(H66*E66/100),H66*E66/100,0) -> 0
C67: ='BNB-System'!F63 -> Räume Gruppe A | L67: ='BNB-System'!K63 -> 0
C68: ='BNB-System'!F64 -> Musik | D68: ='BNB-System'!G64 -> 100 | F68: ='Bewertung durch Anwender'!G68 -> 0 | G68: ='Bewertung durch Anwender'!N68 -> 0
C69: ='BNB-System'!F65 -> Sprache/ Vortrag | D69: ='BNB-System'!G65 -> 100 | F69: ='Bewertung durch Anwender'!G69 -> 0 | G69: ='Bewertung durch Anwender'!N69 -> 0 | L69: ='BNB-System'!K65 -> 0
C70: ='BNB-System'!F66 -> Unterricht/ Kommunikation | D70: ='BNB-System'!G66 -> 100 | F70: ='Bewertung durch Anwender'!G70 -> 0 | G70: ='Bewertung durch Anwender'!N70 -> 0 | L70: ='BNB-System'!K66 -> 0
C71: ='BNB-System'!F67 -> Sport | D71: ='BNB-System'!G67 -> 100 | F71: ='Bewertung durch Anwender'!G71 -> 0 | G71: ='Bewertung durch Anwender'!N71 -> 0 | L71: ='BNB-System'!K67 -> 0
C72: ='BNB-System'!F68 -> Räume Gruppe B
C73: ='BNB-System'!F69 -> Einzel- und Mehrpersonenbüros bis 100 m³ | D73: ='BNB-System'!G69 -> 100 | F73: ='Bewertung durch Anwender'!G73 -> 0 | G73: ='Bewertung durch Anwender'!N73 -> 0 | L73: ='BNB-System'!K69 -> 0
C74: ='BNB-System'!F70 -> Mehrpersonenbüros über 100 m³ | D74: ='BNB-System'!G70 -> 100 | F74: ='Bewertung durch Anwender'!G74 -> 0 | G74: ='Bewertung durch Anwender'!N74 -> 0 | L74: ='BNB-System'!K70 -> 0
C75: ='BNB-System'!F71 -> Weitere Räume | D75: ='BNB-System'!G71 -> 100 | F75: ='Bewertung durch Anwender'!G75 -> 0 | G75: ='Bewertung durch Anwender'!N75 -> 0 | L75: ='BNB-System'!K71 -> 0
B76: ='BNB-System'!E72 -> 3.1.5 | C76: ='BNB-System'!F72 -> Visueller Komfort | D76: ='BNB-System'!G72 -> 100 | E76: ='BNB-System'!J72 -> 0.02934782609 | F76: ='Bewertung durch Anwender'!G76 -> 0 | G76: ='Bewertung durch Anwender'!N76 -> 0 | H76: =SUM(H77:H83) -> 0 | L76: ='BNB-System'!K72 -> 300 | M76: =IF(ISNUMBER(G76*E76/100),G76*E76/100,0) -> 0 | N76: =IF(ISNUMBER(#REF!*E76/100),#REF!*E76/100,0) -> 0
C77: ='BNB-System'!F73 -> Tageslichtverfügbarkeit Gesamtgebäude | D77: ='BNB-System'!G73 -> 15 | F77: ='Bewertung durch Anwender'!G77 -> 0 | G77: ='Bewertung durch Anwender'!N77 -> 0 | L77: ='BNB-System'!K73 -> 0
C78: ='BNB-System'!F74 -> Tageslichtverfügbarkeit ständige Arbeitsplätze | D78: ='BNB-System'!G74 -> 15 | F78: ='Bewertung durch Anwender'!G78 -> 0 | G78: ='Bewertung durch Anwender'!N78 -> 0 | L78: ='BNB-System'!K74 -> 0
C79: ='BNB-System'!F75 -> Nachweis de Sichtverbindung außen | D79: ='BNB-System'!G75 -> 15 | F79: ='Bewertung durch Anwender'!G79 -> 0 | G79: ='Bewertung durch Anwender'!N79 -> 0 | L79: ='BNB-System'!K75 -> 0
C80: ='BNB-System'!F76 -> Blendfreiheit Tageslicht | D80: ='BNB-System'!G76 -> 15 | F80: ='Bewertung durch Anwender'!G80 -> 0 | G80: ='Bewertung durch Anwender'!N80 -> 0 | L80: ='BNB-System'!K76 -> 0
C81: ='BNB-System'!F77 -> Blendfreiheit Kunstlicht | D81: ='BNB-System'!G77 -> 10 | F81: ='Bewertung durch Anwender'!G81 -> 0 | G81: ='Bewertung durch Anwender'!N81 -> 0 | L81: ='BNB-System'!K77 -> 0
C82: ='BNB-System'!F78 -> Lichtverteilung | D82: ='BNB-System'!G78 -> 15 | F82: ='Bewertung durch Anwender'!G82 -> 0 | G82: ='Bewertung durch Anwender'!N82 -> 0 | L82: ='BNB-System'!K78 -> 0
C83: ='BNB-System'!F79 -> Farbwiedergabe | D83: ='BNB-System'!G79 -> 15 | F83: ='Bewertung durch Anwender'!G83 -> 0 | G83: ='Bewertung durch Anwender'!N83 -> 0 | L83: ='BNB-System'!K79 -> 0
B84: ='BNB-System'!E80 -> 3.1.6 | C84: ='BNB-System'!F80 -> Einflussnahmemöglichkeiten durch Nutzer | D84: ='BNB-System'!G80 -> 100 | E84: ='BNB-System'!J80 -> 0.01956521739 | F84: ='Bewertung durch Anwender'!G84 -> 0 | G84: ='Bewertung durch Anwender'!N84 -> 0 | H84: =SUM(H85:H92) -> 0 | L84: ='BNB-System'!K80 -> 200 | M84: =IF(ISNUMBER(G84*E84/100),G84*E84/100,0) -> 0 | N84: =IF(ISNUMBER(H84*E84/100),H84*E84/100,0) -> 0
C85: ='BNB-System'!F81 -> Lüftung | D85: ='BNB-System'!G81 -> 10 | F85: ='Bewertung durch Anwender'!G85 -> 0 | G85: ='Bewertung durch Anwender'!N85 -> 0 | L85: ='BNB-System'!K81 -> 0
C86: ='BNB-System'!F82 -> Sonnenschutz | D86: ='BNB-System'!G82 -> 10 | F86: ='Bewertung durch Anwender'!G86 -> 0 | G86: ='Bewertung durch Anwender'!N86 -> 0 | L86: ='BNB-System'!K82 -> 0
C87: ='BNB-System'!F83 -> Blendschutz | D87: ='BNB-System'!G83 -> 10 | F87: ='Bewertung durch Anwender'!G87 -> 0 | G87: ='Bewertung durch Anwender'!N87 -> 0 | L87: ='BNB-System'!K83 -> 0
C88: ='BNB-System'!F84 -> Temperaturen während der Heizperiode | D88: ='BNB-System'!G84 -> 10 | F88: ='Bewertung durch Anwender'!G88 -> 0 | G88: ='Bewertung durch Anwender'!N88 -> 0 | L88: ='BNB-System'!K84 -> 0
C89: ='BNB-System'!F85 -> Temperaturen außerhalb der Heizperiode | D89: ='BNB-System'!G85 -> 15 | F89: ='Bewertung durch Anwender'!G89 -> 0 | G89: ='Bewertung durch Anwender'!N89 -> 0 | L89: ='BNB-System'!K85 -> 0
C90: ='BNB-System'!F86 -> Steuerung von Tageslicht | D90: ='BNB-System'!G86 -> 15 | F90: ='Bewertung durch Anwender'!G90 -> 0 | G90: ='Bewertung durch Anwender'!N90 -> 0 | L90: ='BNB-System'!K86 -> 0
C91: ='BNB-System'!F87 -> Steuerung von Kunstlicht | D91: ='BNB-System'!G87 -> 15 | F91: ='Bewertung durch Anwender'!G91 -> 0 | G91: ='Bewertung durch Anwender'!N91 -> 0 | L91: ='BNB-System'!K87 -> 0
C92: ='BNB-System'!F88 -> Bedienfreundlichkeit | D92: ='BNB-System'!G88 -> 15 | F92: ='Bewertung durch Anwender'!G92 -> 0 | G92: ='Bewertung durch Anwender'!N92 -> 0 | L92: ='BNB-System'!K88 -> 0
B93: ='BNB-System'!E89 -> 3.1.7 | C93: ='BNB-System'!F89 -> Aufenthaltsqualitäten | D93: ='BNB-System'!G89 -> 100 | E93: ='BNB-System'!J89 -> 0.009782608696 | F93: ='Bewertung durch Anwender'!G93 -> 0 | G93: ='Bewertung durch Anwender'!N93 -> 0 | H93: =SUM(H94:H106) -> 0 | L93: ='BNB-System'!K89 -> 100 | M93: =IF(ISNUMBER(G93*E93/100),G93*E93/100,0) -> 0 | N93: =IF(ISNUMBER(H93*E93/100),H93*E93/100,0) -> 0
C94: ='BNB-System'!F90 -> Anzahl der Aufenthaltsbereiche im Gebäude | D94: ='BNB-System'!G90 -> 10 | F94: ='Bewertung durch Anwender'!G94 -> 0 | G94: ='Bewertung durch Anwender'!N94 -> 0 | L94: ='BNB-System'!K90 -> 0
C95: ='BNB-System'!F91 -> Anzahl der Aufenthaltsbereiche im Außenraum | D95: ='BNB-System'!G91 -> 10 | F95: ='Bewertung durch Anwender'!G95 -> 0 | G95: ='Bewertung durch Anwender'!N95 -> 0 | L95: ='BNB-System'!K91 -> 0
C96: ='BNB-System'!F92 -> Anzahl der Sitzmöglichkeiten in diesen Bereichen | D96: ='BNB-System'!G92 -> 40 | F96: ='Bewertung durch Anwender'!G96 -> 0 | G96: ='Bewertung durch Anwender'!N96 -> 0 | L96: ='BNB-System'!K92 -> 0
C97: ='BNB-System'!F93 -> uneingeschränkte Nutzbarkeit der Erschließungsflächen als Aufenthaltsflächen | D97: ='BNB-System'!G93 -> 10 | F97: ='Bewertung durch Anwender'!G97 -> 0 | G97: ='Bewertung durch Anwender'!N97 -> 0 | L97: ='BNB-System'!K93 -> 0
C98: ='BNB-System'!F94 -> Sichtbeziehungen | D98: ='BNB-System'!G94 -> 10 | F98: ='Bewertung durch Anwender'!G98 -> 0 | G98: ='Bewertung durch Anwender'!N98 -> 0 | L98: ='BNB-System'!K94 -> 0
C99: ='BNB-System'!F95 -> Außenbezug | D99: ='BNB-System'!G95 -> 10 | F99: ='Bewertung durch Anwender'!G99 -> 0 | G99: ='Bewertung durch Anwender'!N99 -> 0 | L99: ='BNB-System'!K95 -> 0
C100: ='BNB-System'!F96 -> Ausstattungsqualität der Aufenthaltsbereiche im Außenraum | F100: ='Bewertung durch Anwender'!G100 -> 0 | G100: ='Bewertung durch Anwender'!N100 -> 0 | L100: ='BNB-System'!K96 -> 0
C101: ='BNB-System'!F97 -> Beleuchtung | D101: ='BNB-System'!G97 -> 2 | F101: ='Bewertung durch Anwender'!G101 -> 0 | G101: ='Bewertung durch Anwender'!N101 -> 0 | L101: ='BNB-System'!K97 -> 0
C102: ='BNB-System'!F98 -> Windschutz | D102: ='BNB-System'!G98 -> 2 | F102: ='Bewertung durch Anwender'!G102 -> 0 | G102: ='Bewertung durch Anwender'!N102 -> 0 | L102: ='BNB-System'!K98 -> 0
C103: ='BNB-System'!F99 -> Überdachung / Regenschutz | D103: ='BNB-System'!G99 -> 2 | F103: ='Bewertung durch Anwender'!G103 -> 0 | G103: ='Bewertung durch Anwender'!N103 -> 0 | L103: ='BNB-System'!K99 -> 0
C104: ='BNB-System'!F100 -> Sonnenschutz | D104: ='BNB-System'!G100 -> 2 | F104: ='Bewertung durch Anwender'!G104 -> 0 | G104: ='Bewertung durch Anwender'!N104 -> 0 | L104: ='BNB-System'!K100 -> 0
C105: ='BNB-System'!F101 -> Stromversorgung für Außenarbeitsplätze | D105: ='BNB-System'!G101 -> 1 | F105: ='Bewertung durch Anwender'!G105 -> 0 | G105: ='Bewertung durch Anwender'!N105 -> 0 | L105: ='BNB-System'!K101 -> 0
C106: ='BNB-System'!F102 -> Bepflanzung / Begrünung | D106: ='BNB-System'!G102 -> 1 | F106: ='Bewertung durch Anwender'!G106 -> 0 | G106: ='Bewertung durch Anwender'!N106 -> 0 | L106: ='BNB-System'!K102 -> 0
B107: ='BNB-System'!E103 -> 3.1.8 | C107: ='BNB-System'!F103 -> Sicherheit | D107: ='BNB-System'!G103 -> 100 | E107: ='BNB-System'!J103 -> 0.009782608696 | F107: ='Bewertung durch Anwender'!G107 -> 0 | G107: ='Bewertung durch Anwender'!N107 -> 0 | L107: ='BNB-System'!K103 -> 100 | M107: =IF(ISNUMBER(G107*E107/100),G107*E107/100,0) -> 0 | N107: =IF(ISNUMBER(H107*E107/100),H107*E107/100,0) -> 0
C108: ='BNB-System'!F104 -> Funktionalität | L108: ='BNB-System'!K104 -> 0
B109: ='BNB-System'!E105 -> 3.2.1 | C109: ='BNB-System'!F105 -> Barrierefreiheit | D109: ='BNB-System'!G105 -> 100 | E109: ='BNB-System'!J105 -> 0.01956521739 | F109: ='Bewertung durch Anwender'!G109 -> 0 | G109: ='Bewertung durch Anwender'!N109 -> 0 | L109: ='BNB-System'!K105 -> 200 | M109: =IF(ISNUMBER(G109*E109/100),G109*E109/100,0) -> 0 | N109: 0
B110: ='BNB-System'!E106 -> 3.2.4 | C110: ='BNB-System'!F106 -> Zugänglichkeit | D110: ='BNB-System'!G106 -> 100 | E110: ='BNB-System'!J106 -> 0.01956521739 | F110: ='Bewertung durch Anwender'!G110 -> 0 | G110: ='Bewertung durch Anwender'!N110 -> 0 | H110: =SUM(H111:H115) -> 0 | L110: ='BNB-System'!K106 -> 200 | M110: =IF(ISNUMBER(G110*E110/100),G110*E110/100,0) -> 0 | N110: =IF(ISNUMBER(H110*E110/100),H110*E110/100,0) -> 0
C111: ='BNB-System'!F107 -> Grundsätzliche Zugänglichkeit des Gebäudes | D111: ='BNB-System'!G107 -> 25 | F111: ='Bewertung durch Anwender'!G111 -> 0 | G111: ='Bewertung durch Anwender'!N111 -> 0 | L111: ='BNB-System'!K107 -> 0
C112: ='BNB-System'!F108 -> Öffnung der Außenanlagen für die Öffentlichkeit | D112: ='BNB-System'!G108 -> 25 | F112: ='Bewertung durch Anwender'!G112 -> 0 | G112: ='Bewertung durch Anwender'!N112 -> 0 | L112: ='BNB-System'!K108 -> 0
C113: ='BNB-System'!F109 -> Öffnung gebäudeinterner Einrichtungen für die Öffentlichkeit | D113: ='BNB-System'!G109 -> 25 | F113: ='Bewertung durch Anwender'!G113 -> 0 | G113: ='Bewertung durch Anwender'!N113 -> 0 | L113: ='BNB-System'!K109 -> 0
C114: ='BNB-System'!F110 -> Möglichkeit der Anmietung von Räumlichkeiten | D114: ='BNB-System'!G110 -> 15 | F114: ='Bewertung durch Anwender'!G114 -> 0 | G114: ='Bewertung durch Anwender'!N114 -> 0 | L114: ='BNB-System'!K110 -> 0
C115: ='BNB-System'!F111 -> Nutzungsvielfalt der öffentlich zugänglichen Bereiche | D115: ='BNB-System'!G111 -> 10 | F115: ='Bewertung durch Anwender'!G115 -> 0 | G115: ='Bewertung durch Anwender'!N115 -> 0 | L115: ='BNB-System'!K111 -> 0
B116: ='BNB-System'!E112 -> 3.2.5 | C116: ='BNB-System'!F112 -> Mobilitätsinfrastruktur | D116: ='BNB-System'!G112 -> 100 | E116: ='BNB-System'!J112 -> 0.009782608696 | F116: ='Bewertung durch Anwender'!G116 -> 0 | G116: ='Bewertung durch Anwender'!N116 -> 0 | H116: =IF(SUM(H117:H119)>100,100,SUM(H117:H119)) -> 0 | L116: ='BNB-System'!K112 -> 100 | M116: =IF(ISNUMBER(G116*E116/100),G116*E116/100,0) -> 0 | N116: =IF(ISNUMBER(H116*E116/100),H116*E116/100,0) -> 0
C117: ='BNB-System'!F113 -> Anzahl der Fahrradstellplätze | D117: ='BNB-System'!G113 -> 40 | F117: ='Bewertung durch Anwender'!G117 -> 0 | G117: ='Bewertung durch Anwender'!N117 -> 0 | L117: ='BNB-System'!K113 -> 0
C118: ='BNB-System'!F114 -> Anzahl der Lademöglichkeiten und Carsharing-Stellplätze | D118: ='BNB-System'!G114 -> 20 | F118: ='Bewertung durch Anwender'!G118 -> 0 | G118: ='Bewertung durch Anwender'!N118 -> 0 | L118: ='BNB-System'!K114 -> 0
C119: ='BNB-System'!F115 -> Qualitative Anforderungen an Fahrradstellplätze | D119: ='BNB-System'!G115 -> 60 | F119: ='Bewertung durch Anwender'!G119 -> 0 | G119: ='Bewertung durch Anwender'!N119 -> 0 | L119: ='BNB-System'!K115 -> 0
C120: ='BNB-System'!F116 -> Sicherung der Gestaltungsqualität | L120: ='BNB-System'!K116 -> 0
B121: ='BNB-System'!E117 -> 3.3.1 | C121: ='BNB-System'!F117 -> Gestalterische und städtebauliche Qualität | D121: ='BNB-System'!G117 -> 100 | E121: ='BNB-System'!J117 -> 0.02934782609 | F121: ='Bewertung durch Anwender'!G121 -> 0 | G121: ='Bewertung durch Anwender'!N121 -> 0 | H121: =IF(AND(H122>0,H126<=H127),SUM(H122:H125),IF(AND(H122>0,H127<=H126),SUM(H122:H125),IF(H126>0,H126,IF(H127>0,H127,)))) -> 0 | L121: ='BNB-System'!K117 -> 300 | M121: =IF(ISNUMBER(G121*E121/100),G121*E121/100,0) -> 0 | N121: =IF(ISNUMBER(H121*E121/100),H121*E121/100,0) -> 0
C122: ='BNB-System'!F118 -> Erfassung und Fortentwicklung der gestalterischen und städtebaulichen Qualität des Bestandsgebäudes | D122: ='BNB-System'!G118 -> 40 | F122: ='Bewertung durch Anwender'!G122 -> 0 | G122: ='Bewertung durch Anwender'!N122 -> 0 | L122: ='BNB-System'!K118 -> 0
C123: ='BNB-System'!F119 -> Wettbewerbsverfahren | D123: ='BNB-System'!G119 -> 35 | F123: ='Bewertung durch Anwender'!G123 -> 0 | G123: ='Bewertung durch Anwender'!N123 -> 0 | L123: ='BNB-System'!K119 -> 0
C124: ='BNB-System'!F120 -> Ausführung des Entwurfs eines der Preisträger | D124: ='BNB-System'!G120 -> 20 | F124: ='Bewertung durch Anwender'!G124 -> 0 | G124: ='Bewertung durch Anwender'!N124 -> 0 | L124: ='BNB-System'!K120 -> 0
C125: ='BNB-System'!F121 -> Beauftragung des Planungsteams | D125: ='BNB-System'!G121 -> 5 | F125: ='Bewertung durch Anwender'!G125 -> 0 | G125: ='Bewertung durch Anwender'!N125 -> 0 | L125: ='BNB-System'!K121 -> 0
C126: ='BNB-System'!F122 -> Auszeichnung mit einem Architekturpreis | D126: ='BNB-System'!G122 -> 40 | F126: ='Bewertung durch Anwender'!G126 -> 0 | G126: ='Bewertung durch Anwender'!N126 -> 0 | L126: ='BNB-System'!K122 -> 0
C127: ='BNB-System'!F123 -> Unabhängiges Expertengremium | D127: ='BNB-System'!G123 -> 30 | F127: ='Bewertung durch Anwender'!G127 -> 0 | G127: ='Bewertung durch Anwender'!N127 -> 0 | L127: ='BNB-System'!K123 -> 0
B128: ='BNB-System'!E124 -> 3.3.2 | C128: ='BNB-System'!F124 -> Kunst am Bau | D128: ='BNB-System'!G124 -> 100 | E128: ='BNB-System'!J124 -> 0.009782608696 | F128: ='Bewertung durch Anwender'!G128 -> 0 | G128: ='Bewertung durch Anwender'!N128 -> 0 | H128: =SUM(H129:H132) -> 0 | L128: ='BNB-System'!K124 -> 100 | M128: =IF(ISNUMBER(G128*E128/100),G128*E128/100,0) -> 0 | N128: =IF(ISNUMBER(H128*E128/100),H128*E128/100,0) -> 0
C129: ='BNB-System'!F125 -> Mindestanforderung | D129: ='BNB-System'!G125 -> 10 | F129: ='Bewertung durch Anwender'!G129 -> 0 | G129: ='Bewertung durch Anwender'!N129 -> 0 | L129: ='BNB-System'!K125 -> 0
C130: ='BNB-System'!F126 -> Bereitstellung von Mitteln im Rahmen der Bauaufgabe | D130: ='BNB-System'!G126 -> 30 | F130: ='Bewertung durch Anwender'!G130 -> 0 | G130: ='Bewertung durch Anwender'!N130 -> 0 | L130: ='BNB-System'!K126 -> 0
C131: ='BNB-System'!F127 -> Umsetzung des Leitfadens Kunst am Bau | D131: ='BNB-System'!G127 -> 40 | F131: ='Bewertung durch Anwender'!G131 -> 0 | G131: ='Bewertung durch Anwender'!N131 -> 0 | L131: ='BNB-System'!K127 -> 0
C132: ='BNB-System'!F128 -> Öffentlichkeitsarbeit, Rezeption der Kunst am Bau | D132: ='BNB-System'!G128 -> 20 | F132: ='Bewertung durch Anwender'!G132 -> 0 | G132: ='Bewertung durch Anwender'!N132 -> 0 | L132: ='BNB-System'!K128 -> 0
L133: ='BNB-System'!K129 -> 0
B134: ='BNB-System'!E130 -> Technische Qualität | E134: ='BNB-System'!J130 -> 0.225 | F134: ='Bewertung durch Anwender'!G134 -> 0 | G134: ='Bewertung durch Anwender'!N134 -> 0 | H134: =H137*($E$137/100)+H142*($E$142/100)+H149*($E$149/100)+H159*($E$159/100)+H160*($E$160/100)+H161*($E$161/100) -> 0 | L134: ='BNB-System'!K130 -> 1000
L135: ='BNB-System'!K131 -> 0
C136: ='BNB-System'!F132 -> technische Ausführung | L136: ='BNB-System'!K132 -> 0
B137: ='BNB-System'!E133 -> 4.1.1 | C137: ='BNB-System'!F133 -> Schallschutz | D137: ='BNB-System'!G133 -> 100 | E137: ='BNB-System'!J133 -> 0.045 | F137: ='Bewertung durch Anwender'!G137 -> 0 | G137: ='Bewertung durch Anwender'!N137 -> 0 | H137: =SUM(H138:H141) -> 0 | L137: ='BNB-System'!K133 -> 200 | M137: =IF(ISNUMBER(G137*E137/100),G137*E137/100,0) -> 0 | N137: =IF(ISNUMBER(H137*E137/100),H137*E137/100,0) -> 0
C138: ='BNB-System'!F134 -> Luftschallschutz gegen Außenlärm | D138: ='BNB-System'!G134 -> 20 | F138: ='Bewertung durch Anwender'!G138 -> 0 | G138: ='Bewertung durch Anwender'!N138 -> 0 | L138: ='BNB-System'!K134 -> 0
C139: ='BNB-System'!F135 -> Luftschallschutz gegenüber fremden und eigenen Arbeitsbereichen | D139: ='BNB-System'!G135 -> 30 | F139: ='Bewertung durch Anwender'!G139 -> 0 | G139: ='Bewertung durch Anwender'!N139 -> 0 | L139: ='BNB-System'!K135 -> 0
C140: ='BNB-System'!F136 -> Trittschallschutz gegenüber fremden und eigenen Arbeitsbereichen | D140: ='BNB-System'!G136 -> 30 | F140: ='Bewertung durch Anwender'!G140 -> 0 | G140: ='Bewertung durch Anwender'!N140 -> 0 | L140: ='BNB-System'!K136 -> 0
C141: ='BNB-System'!F137 -> Schallschutz gegenüber haustechnischen Anlagen | D141: ='BNB-System'!G137 -> 20 | F141: ='Bewertung durch Anwender'!G141 -> 0 | G141: ='Bewertung durch Anwender'!N141 -> 0 | L141: ='BNB-System'!K137 -> 0
B142: ='BNB-System'!E138 -> 4.1.2 | C142: ='BNB-System'!F138 -> Wärme- und Tauwasserschutz | D142: ='BNB-System'!G138 -> 100 | E142: ='BNB-System'!J138 -> 0.045 | F142: ='Bewertung durch Anwender'!G142 -> 0 | G142: ='Bewertung durch Anwender'!N142 -> 0 | H142: =SUM(H143:H148) -> 0 | L142: ='BNB-System'!K138 -> 200 | M142: =IF(ISNUMBER(G142*E142/100),G142*E142/100,0) -> 0 | N142: =IF(ISNUMBER(H142*E142/100),H142*E142/100,0) -> 0
C143: ='BNB-System'!F139 -> Mittlere Wärmeduchgangskoeffizienten | D143: ='BNB-System'!G139 -> 30 | F143: ='Bewertung durch Anwender'!G143 -> 0 | G143: ='Bewertung durch Anwender'!N143 -> 0 | L143: ='BNB-System'!K139 -> 0
C144: ='BNB-System'!F140 -> Wärmebrückenzuschlag | D144: ='BNB-System'!G140 -> 15 | F144: ='Bewertung durch Anwender'!G144 -> 0 | G144: ='Bewertung durch Anwender'!N144 -> 0 | L144: ='BNB-System'!K140 -> 0
C145: ='BNB-System'!F141 -> Klassen der Luftdurchlässigkeit (Fugendurchlässigkeit) | D145: ='BNB-System'!G141 -> 15 | F145: ='Bewertung durch Anwender'!G145 -> 0 | G145: ='Bewertung durch Anwender'!N145 -> 0 | L145: ='BNB-System'!K141 -> 0
C146: ='BNB-System'!F142 -> Tauwasserbildung | D146: ='BNB-System'!G142 -> 10 | F146: ='Bewertung durch Anwender'!G146 -> 0 | G146: ='Bewertung durch Anwender'!N146 -> 0 | L146: ='BNB-System'!K142 -> 0
C147: ='BNB-System'!F143 -> Luftwechsel | D147: ='BNB-System'!G143 -> 15 | F147: ='Bewertung durch Anwender'!G147 -> 0 | G147: ='Bewertung durch Anwender'!N147 -> 0 | L147: ='BNB-System'!K143 -> 0
C148: ='BNB-System'!F144 -> Sonneneintragswert | D148: ='BNB-System'!G144 -> 15 | F148: ='Bewertung durch Anwender'!G148 -> 0 | G148: ='Bewertung durch Anwender'!N148 -> 0 | L148: ='BNB-System'!K144 -> 0
B149: ='BNB-System'!E145 -> 4.1.3 | C149: ='BNB-System'!F145 -> Reinigungs- und Instandhaltungsfreundlichkeit | D149: ='BNB-System'!G145 -> 100 | E149: ='BNB-System'!J145 -> 0.045 | F149: ='Bewertung durch Anwender'!G149 -> 0 | G149: ='Bewertung durch Anwender'!N149 -> 0 | H149: =SUM(H150:H158) -> 0 | L149: ='BNB-System'!K145 -> 200 | M149: =IF(ISNUMBER(G149*E149/100),G149*E149/100,0) -> 0 | N149: =IF(ISNUMBER(#REF!*E149/100),#REF!*E149/100,0) -> 0
C150: ='BNB-System'!F146 -> Tragkonstruktion | D150: ='BNB-System'!G146 -> 15 | F150: ='Bewertung durch Anwender'!G150 -> 0 | G150: ='Bewertung durch Anwender'!N150 -> 0 | L150: ='BNB-System'!K146 -> 0
C151: ='BNB-System'!F147 -> Zugänglichkeit der Außenglasflächen | D151: ='BNB-System'!G147 -> 15 | F151: ='Bewertung durch Anwender'!G151 -> 0 | G151: ='Bewertung durch Anwender'!N151 -> 0 | L151: ='BNB-System'!K147 -> 0
C152: ='BNB-System'!F148 -> Außenbauteile | D152: ='BNB-System'!G148 -> 9 | F152: ='Bewertung durch Anwender'!G152 -> 0 | G152: ='Bewertung durch Anwender'!N152 -> 0 | L152: ='BNB-System'!K148 -> 0
C153: ='BNB-System'!F149 -> Bodenbelag | D153: ='BNB-System'!G149 -> 9 | F153: ='Bewertung durch Anwender'!G153 -> 0 | G153: ='Bewertung durch Anwender'!N153 -> 0 | L153: ='BNB-System'!K149 -> 0
C154: ='BNB-System'!F150 -> Schmutzfangzone | D154: ='BNB-System'!G150 -> 9 | F154: ='Bewertung durch Anwender'!G154 -> 0 | G154: ='Bewertung durch Anwender'!N154 -> 0 | L154: ='BNB-System'!K150 -> 0
C155: ='BNB-System'!F151 -> Fußbodenleisten | D155: ='BNB-System'!G151 -> 9 | F155: ='Bewertung durch Anwender'!G155 -> 0 | G155: ='Bewertung durch Anwender'!N155 -> 0 | L155: ='BNB-System'!K151 -> 0
C156: ='BNB-System'!F152 -> Hindernisfreie Grundrissgestaltung | D156: ='BNB-System'!G152 -> 9 | F156: ='Bewertung durch Anwender'!G156 -> 0 | G156: ='Bewertung durch Anwender'!N156 -> 0 | L156: ='BNB-System'!K152 -> 0
C157: ='BNB-System'!F153 -> Einbauten | D157: ='BNB-System'!G153 -> 10 | F157: ='Bewertung durch Anwender'!G157 -> 0 | G157: ='Bewertung durch Anwender'!N157 -> 0 | L157: ='BNB-System'!K153 -> 0
C158: ='BNB-System'!F154 -> Zugänglichkeit der Innenglasflächen | D158: ='BNB-System'!G154 -> 15 | F158: ='Bewertung durch Anwender'!G158 -> 0 | G158: ='Bewertung durch Anwender'!N158 -> 0 | L158: ='BNB-System'!K154 -> 0
B159: ='BNB-System'!E155 -> 4.1.4 | C159: ='BNB-System'!F155 -> Rückbau, Trennung und Verwertung | D159: ='BNB-System'!G155 -> 100 | E159: ='BNB-System'!J155 -> 0.045 | F159: ='Bewertung durch Anwender'!G159 -> 0 | G159: ='Bewertung durch Anwender'!N159 -> 0 | L159: ='BNB-System'!K155 -> 200 | M159: =IF(ISNUMBER(G159*E159/100),G159*E159/100,0) -> 0 | N159: =IF(ISNUMBER(H159*E159/100),H159*E159/100,0) -> 0
B160: ='BNB-System'!E156 -> 4.1.5 | C160: ='BNB-System'!F156 -> Widerstandsfähigkeit gegen Naturgefahren | D160: ='BNB-System'!G156 -> 100 | E160: ='BNB-System'!J156 -> 0.0225 | F160: ='Bewertung durch Anwender'!G160 -> 0 | G160: ='Bewertung durch Anwender'!N160 -> 0 | L160: ='BNB-System'!K156 -> 100 | M160: =IF(ISNUMBER(G160*E160/100),G160*E160/100,0) -> 0 | N160: =IF(ISNUMBER(H160*E160/100),H160*E160/100,0) -> 0
B161: ='BNB-System'!E157 -> 4.1.6 | C161: ='BNB-System'!F157 -> Bedienungs- und Instandhaltungsfreundlichkeit der TGA | D161: ='BNB-System'!G157 -> 100 | E161: ='BNB-System'!J157 -> 0.0225 | F161: ='Bewertung durch Anwender'!G161 -> 0 | G161: ='Bewertung durch Anwender'!N161 -> 0 | L161: ='BNB-System'!K157 -> 100 | M161: =IF(ISNUMBER(G161*E161/100),G161*E161/100,0) -> 0 | N161: =IF(ISNUMBER(H161*E161/100),H161*E161/100,0) -> 0
L162: ='BNB-System'!K158 -> 0
B163: ='BNB-System'!E159 -> Prozessqualität | E163: ='BNB-System'!J159 -> 0.1 | F163: ='Bewertung durch Anwender'!G163 -> 0 | G163: ='Bewertung durch Anwender'!N163 -> 0 | H163: =H166*($E$166/100)+H170*($E$170/100)+H176*($E$176/100)+H192*($E$192/100)+H193*($E$193/100)+H213*($E$213/100)+H218*($E$218/100)+H221*($E$221/100) -> 0 | L163: ='BNB-System'!K159 -> 2500
L164: ='BNB-System'!K160 -> 0
C165: ='BNB-System'!F161 -> Planung | L165: ='BNB-System'!K161 -> 0
B166: ='BNB-System'!E162 -> 5.1.1 | C166: ='BNB-System'!F162 -> Projektvorbereitung | D166: ='BNB-System'!G162 -> 100 | E166: ='BNB-System'!J162 -> 0.012 | F166: ='Bewertung durch Anwender'!G166 -> 0 | G166: ='Bewertung durch Anwender'!N166 -> 0 | H166: =SUM(H167:H169) -> 0 | L166: ='BNB-System'!K162 -> 300 | M166: =IF(ISNUMBER(G166*E166/100),G166*E166/100,0) -> 0 | N166: =IF(ISNUMBER(H166*E166/100),H166*E166/100,0) -> 0
C167: ='BNB-System'!F163 -> Bedarfsplanung oder vergleichbare Planung | D167: ='BNB-System'!G163 -> 35 | F167: ='Bewertung durch Anwender'!G167 -> 0 | G167: ='Bewertung durch Anwender'!N167 -> 0 | L167: ='BNB-System'!K163 -> 0
C168: ='BNB-System'!F164 -> Zielvereinbarung | D168: ='BNB-System'!G164 -> 35 | F168: ='Bewertung durch Anwender'!G168 -> 0 | G168: ='Bewertung durch Anwender'!N168 -> 0 | L168: ='BNB-System'!K164 -> 0
C169: ='BNB-System'!F165 -> Architektenwettbewerb | D169: ='BNB-System'!G165 -> 30 | F169: ='Bewertung durch Anwender'!G169 -> 0 | G169: ='Bewertung durch Anwender'!N169 -> 0 | L169: ='BNB-System'!K165 -> 0
B170: ='BNB-System'!E166 -> 5.1.2 | C170: ='BNB-System'!F166 -> Integrale Planung | D170: ='BNB-System'!G166 -> 100 | E170: ='BNB-System'!J166 -> 0.012 | F170: ='Bewertung durch Anwender'!G170 -> 0 | G170: ='Bewertung durch Anwender'!N170 -> 0 | H170: =SUM(H171:H175) -> 0 | L170: ='BNB-System'!K166 -> 300 | M170: =IF(ISNUMBER(G170*E170/100),G170*E170/100,0) -> 0 | N170: =IF(ISNUMBER(H170*E170/100),H170*E170/100,0) -> 0
C171: ='BNB-System'!F167 -> Integrales Planungsteam | D171: ='BNB-System'!G167 -> 30 | F171: ='Bewertung durch Anwender'!G171 -> 0 | G171: ='Bewertung durch Anwender'!N171 -> 0 | L171: ='BNB-System'!K167 -> 0
C172: ='BNB-System'!F168 -> Qualifikation des Planungsteams | D172: ='BNB-System'!G168 -> 20 | F172: ='Bewertung durch Anwender'!G172 -> 0 | G172: ='Bewertung durch Anwender'!N172 -> 0 | L172: ='BNB-System'!K168 -> 0
C173: ='BNB-System'!F169 -> Integraler Planungsprozess | D173: ='BNB-System'!G169 -> 20 | F173: ='Bewertung durch Anwender'!G173 -> 0 | G173: ='Bewertung durch Anwender'!N173 -> 0 | L173: ='BNB-System'!K169 -> 0
C174: ='BNB-System'!F170 -> Nutzerbeteiligung | D174: ='BNB-System'!G170 -> 20 | F174: ='Bewertung durch Anwender'!G174 -> 0 | G174: ='Bewertung durch Anwender'!N174 -> 0 | L174: ='BNB-System'!K170 -> 0
C175: ='BNB-System'!F171 -> Öffentlichkeitsbeteiligung | D175: ='BNB-System'!G171 -> 10 | F175: ='Bewertung durch Anwender'!G175 -> 0 | G175: ='Bewertung durch Anwender'!N175 -> 0 | L175: ='BNB-System'!K171 -> 0
B176: ='BNB-System'!E172 -> 5.1.3 | C176: ='BNB-System'!F172 -> Komplexität und Optimierung der Planung | D176: ='BNB-System'!G172 -> 100 | E176: ='BNB-System'!J172 -> 0.012 | F176: ='Bewertung durch Anwender'!G176 -> 0 | G176: ='Bewertung durch Anwender'!N176 -> 0 | H176: =IF(SUM(H177:H191)>100,100,SUM(H177:H191)) -> 0 | L176: ='BNB-System'!K172 -> 300 | M176: =IF(ISNUMBER(G176*E176/100),G176*E176/100,0) -> 0 | N176: =IF(ISNUMBER(H176*E176/100),H176*E176/100,0) -> 0
C177: ='BNB-System'!F173 -> SiGe-Plan | D177: ='BNB-System'!G173 -> 10 | F177: ='Bewertung durch Anwender'!G177 -> 0 | G177: ='Bewertung durch Anwender'!N177 -> 0 | L177: ='BNB-System'!K173 -> 0
C178: ='BNB-System'!F174 -> Ver- und Entsiegelungskonzept | D178: ='BNB-System'!G174 -> 10 | F178: ='Bewertung durch Anwender'!G178 -> 0 | G178: ='Bewertung durch Anwender'!N178 -> 0 | L178: ='BNB-System'!K174 -> 0
C179: ='BNB-System'!F175 -> Energiekonzept | D179: ='BNB-System'!G175 -> 15 | F179: ='Bewertung durch Anwender'!G179 -> 0 | G179: ='Bewertung durch Anwender'!N179 -> 0 | L179: ='BNB-System'!K175 -> 0
C180: ='BNB-System'!F176 -> Mess- und Monitoringkonzept | D180: ='BNB-System'!G176 -> 15 | F180: ='Bewertung durch Anwender'!G180 -> 0 | G180: ='Bewertung durch Anwender'!N180 -> 0 | L180: ='BNB-System'!K176 -> 0
C181: ='BNB-System'!F177 -> Wasserkonzept | D181: ='BNB-System'!G177 -> 10 | F181: ='Bewertung durch Anwender'!G181 -> 0 | G181: ='Bewertung durch Anwender'!N181 -> 0 | L181: ='BNB-System'!K177 -> 0
C182: ='BNB-System'!F178 -> Konzept zur Vermeidung von Umwelt- und Gesundheitsrisiken aus Bauprodukten | D182: ='BNB-System'!G178 -> 10 | F182: ='Bewertung durch Anwender'!G182 -> 0 | G182: ='Bewertung durch Anwender'!N182 -> 0 | L182: ='BNB-System'!K178 -> 0
C183: ='BNB-System'!F179 -> Lüftungskonzept | D183: ='BNB-System'!G179 -> 10 | F183: ='Bewertung durch Anwender'!G183 -> 0 | G183: ='Bewertung durch Anwender'!N183 -> 0 | L183: ='BNB-System'!K179 -> 0
C184: ='BNB-System'!F180 -> Abfallkonzept / Wertstoffkonzept | D184: ='BNB-System'!G180 -> 5 | F184: ='Bewertung durch Anwender'!G184 -> 0 | G184: ='Bewertung durch Anwender'!N184 -> 0 | L184: ='BNB-System'!K180 -> 0
C185: ='BNB-System'!F181 -> Tages- / Kunstlichtoptimierung | D185: ='BNB-System'!G181 -> 10 | F185: ='Bewertung durch Anwender'!G185 -> 0 | G185: ='Bewertung durch Anwender'!N185 -> 0 | L185: ='BNB-System'!K181 -> 0
C186: ='BNB-System'!F182 -> Konzept zur Sicherung der Reinigungs- und Instandhaltungsfreundlichkeit | D186: ='BNB-System'!G182 -> 10 | F186: ='Bewertung durch Anwender'!G186 -> 0 | G186: ='Bewertung durch Anwender'!N186 -> 0 | L186: ='BNB-System'!K182 -> 0
C187: ='BNB-System'!F183 -> Anpassbarkeits-, Rückbau- und Recyclingkonzept | D187: ='BNB-System'!G183 -> 10 | F187: ='Bewertung durch Anwender'!G187 -> 0 | G187: ='Bewertung durch Anwender'!N187 -> 0 | L187: ='BNB-System'!K183 -> 0
C188: ='BNB-System'!F184 -> Konzept zur Vermeidung und Beherrschung von Risiken | D188: ='BNB-System'!G184 -> 10 | F188: ='Bewertung durch Anwender'!G188 -> 0 | G188: ='Bewertung durch Anwender'!N188 -> 0 | L188: ='BNB-System'!K184 -> 0
C189: ='BNB-System'!F185 -> Sonstige Konzepte zum Nachhaltigen Bauen | D189: ='BNB-System'!G185 -> 10 | F189: ='Bewertung durch Anwender'!G189 -> 0 | G189: ='Bewertung durch Anwender'!N189 -> 0 | L189: ='BNB-System'!K185 -> 0
C190: ='BNB-System'!F186 -> Prüfung der Planungsunterlagen durch unabhängige Dritte | D190: ='BNB-System'!G186 -> 5 | F190: ='Bewertung durch Anwender'!G190 -> 0 | G190: ='Bewertung durch Anwender'!N190 -> 0 | L190: ='BNB-System'!K186 -> 0
C191: ='BNB-System'!F187 -> Durchführung von Variantenvergleichen | D191: ='BNB-System'!G187 -> 10 | F191: ='Bewertung durch Anwender'!G191 -> 0 | G191: ='Bewertung durch Anwender'!N191 -> 0 | L191: ='BNB-System'!K187 -> 0
B192: ='BNB-System'!E188 -> 5.1.4 | C192: ='BNB-System'!F188 -> Ausschreibung und Vergabe | D192: ='BNB-System'!G188 -> 100 | E192: ='BNB-System'!J188 -> 0.008 | F192: ='Bewertung durch Anwender'!G192 -> 0 | G192: ='Bewertung durch Anwender'!N192 -> 0 | L192: ='BNB-System'!K188 -> 200 | M192: =IF(ISNUMBER(G192*E192/100),G192*E192/100,0) -> 0 | N192: =IF(ISNUMBER(H192*E192/100),H192*E192/100,0) -> 0
B193: ='BNB-System'!E189 -> 5.1.5 | C193: ='BNB-System'!F189 -> Voraussetzungen für eine optimale Bewirtschaftung | D193: ='BNB-System'!G189 -> 100 | E193: ='BNB-System'!J189 -> 0.008 | F193: ='Bewertung durch Anwender'!G193 -> 0 | G193: ='Bewertung durch Anwender'!N193 -> 0 | H193: =SUM(H194:H197) -> 0 | L193: ='BNB-System'!K189 -> 200 | M193: =IF(ISNUMBER(G193*E193/100),G193*E193/100,0) -> 0 | N193: =IF(ISNUMBER(H193*E193/100),H193*E193/100,0) -> 0
C194: ='BNB-System'!F190 -> Erstellung einer Gebäudeakte / Objektdokumentation | D194: ='BNB-System'!G190 -> 25 | F194: ='Bewertung durch Anwender'!G194 -> 0 | G194: ='Bewertung durch Anwender'!N194 -> 0 | L194: ='BNB-System'!K190 -> 0
C195: ='BNB-System'!F191 -> Erstellung von Wartungs-, Inspektions-, Betriebs-, und Pflegeanleitungen | D195: ='BNB-System'!G191 -> 25 | F195: ='Bewertung durch Anwender'!G195 -> 0 | G195: ='Bewertung durch Anwender'!N195 -> 0 | L195: ='BNB-System'!K191 -> 0
C196: ='BNB-System'!F192 -> Anpassung der Pläne und Berechnungen an das realisierte Gebäude | D196: ='BNB-System'!G192 -> 25 | F196: ='Bewertung durch Anwender'!G196 -> 0 | G196: ='Bewertung durch Anwender'!N196 -> 0 | L196: ='BNB-System'!K192 -> 0
C197: ='BNB-System'!F193 -> Erstellung eines Nutzerhandbuches | D197: ='BNB-System'!G193 -> 25 | F197: ='Bewertung durch Anwender'!G197 -> 0 | G197: ='Bewertung durch Anwender'!N197 -> 0 | L197: ='BNB-System'!K193 -> 0
B198: ='BNB-System'!E194 -> 5.1.6 | C198: ='BNB-System'!F194 -> Bestandsanalyse | D198: ='BNB-System'!G194 -> 100 | F198: ='Bewertung durch Anwender'!G198 -> 0 | G198: ='Bewertung durch Anwender'!N198 -> 0 | H198: =SUM(H199:H207) -> 0
C199: ='BNB-System'!F195 -> Bestandsaufnahme Geometrie | D199: ='BNB-System'!G195 -> 10 | F199: ='Bewertung durch Anwender'!G199 -> 0 | G199: ='Bewertung durch Anwender'!N199 -> 0
C200: ='BNB-System'!F196 -> Bestandsaufnahme Baukonstruktion und Baustoffe | D200: ='BNB-System'!G196 -> 20 | F200: ='Bewertung durch Anwender'!G200 -> 0 | G200: ='Bewertung durch Anwender'!N200 -> 0
C201: ='BNB-System'!F197 -> Bestandsaufnahme Haustechnik | D201: ='BNB-System'!G197 -> 10 | F201: ='Bewertung durch Anwender'!G201 -> 0 | G201: ='Bewertung durch Anwender'!N201 -> 0
C202: ='BNB-System'!F198 -> Bestandsaufnahme Bau- und Nutzungsgeschichte | D202: ='BNB-System'!G198 -> 5 | F202: ='Bewertung durch Anwender'!G202 -> 0 | G202: ='Bewertung durch Anwender'!N202 -> 0
... 61 more rows

Sheet BNB-System (hidden)
B1: Projekt:
B2: Bewertungssystem Nachhaltiges Bauen (BNB)
B3: Systemvariante Büro- und Verwaltungsgebäude, Modul Komplettmodernisierung (BNB_BK) - Version 2017
A4: Hinweis zu Denkmal-schutz | B4: identische Inhalte * | E4: Nachhaltigkeitskriterien | G4: Zielwert max. Punktzahl | H4: Punktzahl | I4: Bedeutungs-faktor | J4: Gewichtung Gesamt-bewertung | K4: Zielwert
E6: Ökologische Qualität | J6: 0.225 | K6: =SUM(K9:K27) -> 1800
F8: Wirkungen auf die globale und lokale Umwelt
A9: D | E9: 1.1.1 | F9: Treibhauspotenzial (GWP) | G9: 100 | I9: 3 | J9: =K9/$K6*J6 -> 0.0375 | K9: =G9*I9 -> 300
A10: D | E10: 1.1.2 | F10: Ozonschichtabbaupotenzial (ODP) | G10: 100 | I10: 1 | J10: =K10/K6*J6 -> 0.0125 | K10: 100
A11: D | E11: 1.1.3 | F11: Ozonbildungspotenzial (POCP) | G11: 100 | I11: 1 | J11: =K11/K6*J6 -> 0.0125 | K11: 100
A12: D | E12: 1.1.4 | F12: Versauerungspotenzial (AP) | G12: 100 | I12: 1 | J12: =K12/K6*J6 -> 0.0125 | K12: 100
A13: D | E13: 1.1.5 | F13: Überdüngungspotenzial (EP) | G13: 100 | I13: 1 | J13: =K13/K6*J6 -> 0.0125 | K13: 100
A14: D | C14: UK | E14: 1.1.6 | F14: Risiken für die lokale Umwelt | G14: 100 | I14: 3 | J14: =K14/K6*J6 -> 0.0375 | K14: 300
C15: UK | F15: Altsubstanz: Q4 ; Neusubstanz: Q5 | G15: 100
C16: UK | F16: Altsubstanz: Q3 ; Neusubstanz: Q4 | G16: 75
C17: UK | F17: Altsubstanz: Q2 ; Neusubstanz: Q3 | G17: 50
C18: UK | F18: Altsubstanz: Q1 ; Neusubstanz: Q2 | G18: 25
C19: UK | F19: Altsubstanz: Q1 ; Neusubstanz: Q1 | G19: 10
C20: UK | E20: 1.1.7 | F20: Nachhaltige Materialgewinnung / Biodiversität | G20: 100 | I20: 1 | J20: =K20/K6*J6 -> 0.0125 | K20: 100
F21: Ressourceninanspruchnahme
E22: 1.2.1 | F22: Primärenergiebedarf | G22: 100 | H22: =IF(SUM(H23:H25)>100,100,SUM(H23:H25)) -> 0 | I22: 3 | J22: =K22/$K6*J6 -> 0.0375 | K22: =G22*I22 -> 300
F23: Primärenergiebedarf nicht erneuerbar (PEne) | G23: 60
F24: Gesamtprimärenergiebedarf (PEges) | G24: 40
F25: Anteil der erneuerbaren Primärenergie (Pee) | G25: 20
E26: 1.2.3 | F26: Trinkwasserbedarf und Abwasseraufkommen | G26: 100 | I26: 2 | J26: =K26/$K$6*$J$6 -> 0.025 | K26: =G26*I26 -> 200
C27: UK | E27: 1.2.4 | F27: Flächeninanspruchnahme | G27: 100 | I27: 2 | J27: =K27/$K$6*$J$6 -> 0.025 | K27: =G27*I27 -> 200
F28: Veränderung der Flächeninanspruchnahme | G28: 100
F29: Ausgleichsmaßnahmen und Flächenrecycling | G29: 40
E31: Ökonomische Qualität | J31: 0.225 | K31: =SUM(K34:K37) -> 600
F33: Lebenszykluskosten
A34: D | E34: 2.1.1 | F34: Gebäudebezogene Kosten im Lebenszyklus | G34: 100 | I34: 3 | J34: =K34/$K31*J31 -> 0.1125 | K34: =G34*I34 -> 300
F35: Wirtschaftlichkeit und Wertstabilität
B36: BN | E36: 2.2.1 | F36: Flächeneffizienz | G36: 100 | I36: 1 | J36: =K36/$K$31*$J$31 -> 0.0375 | K36: =G36*I36 -> 100
A37: D | E37: 2.2.2 | F37: Anpassungsfähigkeit | G37: 100 | H37: =IF(SUM(H38:H43)>100,100,SUM(H38:H43)) -> 0 | I37: 2 | J37: =K37/$K$31*$J$31 -> 0.075 | K37: =G37*I37 -> 200
F38: Lichte Raumhöhe | G38: 15
F39: Gebäudetiefe | G39: 15
F40: Vertikale Erschließung | G40: 15
F41: Grundrisse | G41: 25
F42: Konstruktion | G42: 20
F43: Technische Ausstattung | G43: 18
E45: Soziokulturelle und funktionale Qualität | J45: 0.225 | K45: =SUM(K48:K128) -> 2300
F47: Gesundheit, Behaglichkeit und Nutzerzufriedenheit
B48: BN | C48: UK | D48: UN | E48: 3.1.1 | F48: Thermischer Komfort | G48: 100 | H48: =IF(SUM(H50:H58)>100,100,SUM(H50:H58)) -> 0 | I48: 3 | J48: =K48/$K$45*$J$45 -> 0.02934782609 | K48: =G48*I48 -> 300
F49: Winter
F50: Operative Temperatur | G50: 10
F51: Zugluft | G51: 10
F52: Stahlungstemperaturasymmetrie und Fußbodentemperatur | G52: 10
F53: Luftfeuchte | G53: 10
F54: Sommer
F55: Operative Temperatur | G55: 30
F56: Zugluft | G56: 10
F57: Stahlungstemperaturasymmetrie und Fußbodentemperatur | G57: 10
F58: Luftfeuchte | G58: 10
B59: BN | C59: UK | D59: UN | E59: 3.1.3 | F59: Innenraumlufthygiene | G59: 100 | H59: =IF(SUM(H60:H61)>100,100,SUM(H60:H61)) -> 0 | I59: 3 | J59: =K59/$K$45*$J$45 -> 0.02934782609 | K59: =G59*I59 -> 300
B60: BN | C60: UK | D60: UN | F60: Flüchtige organische Stoffe (VOC) und Formaldehyd | G60: 50
B61: BN | C61: UK | D61: UN | F61: Personenbezogene Lüftungsrate | G61: 50
B62: BN | C62: UK | D62: UN | E62: 3.1.4 | F62: Akustischer Komfort | G62: 100 | H62: =IF(SUM(H63:H71)>100,100,SUM(H63:H71)) -> 0 | I62: 1 | J62: =K62/$K$45*$J$45 -> 0.009782608696 | K62: =G62*I62 -> 100
F63: Räume Gruppe A
F64: Musik | G64: 100
F65: Sprache/ Vortrag | G65: 100
F66: Unterricht/ Kommunikation | G66: 100
F67: Sport | G67: 100
F68: Räume Gruppe B
F69: Einzel- und Mehrpersonenbüros bis 100 m³ | G69: 100
F70: Mehrpersonenbüros über 100 m³ | G70: 100
F71: Weitere Räume | G71: 100
B72: BN | E72: 3.1.5 | F72: Visueller Komfort | G72: 100 | H72: =IF(SUM(H73:H79)>100,100,SUM(H73:H79)) -> 0 | I72: 3 | J72: =K72/$K$45*$J$45 -> 0.02934782609 | K72: =G72*I72 -> 300
B73: BN | F73: Tageslichtverfügbarkeit Gesamtgebäude | G73: 15
B74: BN | F74: Tageslichtverfügbarkeit ständige Arbeitsplätze | G74: 15
B75: BN | F75: Nachweis de Sichtverbindung außen | G75: 15
B76: BN | F76: Blendfreiheit Tageslicht | G76: 15
B77: BN | F77: Blendfreiheit Kunstlicht | G77: 10
B78: BN | F78: Lichtverteilung | G78: 15
B79: BN | F79: Farbwiedergabe | G79: 15
B80: BN | E80: 3.1.6 | F80: Einflussnahmemöglichkeiten durch Nutzer | G80: 100 | H80: =IF(SUM(H81:H88)>100,100,SUM(H81:H88)) -> 0 | I80: 2 | J80: =K80/$K$45*$J$45 -> 0.01956521739 | K80: =G80*I80 -> 200
B81: BN | F81: Lüftung | G81: 10
B82: BN | F82: Sonnenschutz | G82: 10
B83: BN | F83: Blendschutz | G83: 10
B84: BN | F84: Temperaturen während der Heizperiode | G84: 10
B85: BN | F85: Temperaturen außerhalb der Heizperiode | G85: 15
B86: BN | F86: Steuerung von Tageslicht | G86: 15
B87: BN | F87: Steuerung von Kunstlicht | G87: 15
B88: BN | F88: Bedienfreundlichkeit | G88: 15
B89: BN | C89: UK | D89: UN | E89: 3.1.7 | F89: Aufenthaltsqualitäten | G89: 100 | H89: =IF(SUM(H90:H102)>100,100,SUM(H90:H102)) -> 0 | I89: 1 | J89: =K89/$K$45*$J$45 -> 0.009782608696 | K89: =G89*I89 -> 100
B90: BN | F90: Anzahl der Aufenthaltsbereiche im Gebäude | G90: 10
B91: BN | F91: Anzahl der Aufenthaltsbereiche im Außenraum | G91: 10
B92: BN | F92: Anzahl der Sitzmöglichkeiten in diesen Bereichen | G92: 40
B93: BN | F93: uneingeschränkte Nutzbarkeit der Erschließungsflächen als Aufenthaltsflächen | G93: 10
B94: BN | F94: Sichtbeziehungen | G94: 10
B95: BN | F95: Außenbezug | G95: 10
B96: BN | F96: Ausstattungsqualität der Aufenthaltsbereiche im Außenraum
B97: BN | F97: Beleuchtung | G97: 2
B98: BN | F98: Windschutz | G98: 2
B99: BN | F99: Überdachung / Regenschutz | G99: 2
B100: BN | F100: Sonnenschutz | G100: 2
B101: BN | F101: Stromversorgung für Außenarbeitsplätze | G101: 1
B102: BN | F102: Bepflanzung / Begrünung | G102: 1
B103: BN | E103: 3.1.8 | F103: Sicherheit | G103: 100 | I103: 1 | J103: =K103/$K$45*$J$45 -> 0.009782608696 | K103: =G103*I103 -> 100
F104: Funktionalität
B105: BN | E105: 3.2.1 | F105: Barrierefreiheit | G105: 100 | I105: 2 | J105: =K105/$K$45*$J$45 -> 0.01956521739 | K105: =G105*I105 -> 200
B106: BN | E106: 3.2.4 | F106: Zugänglichkeit | G106: =IF(SUM(G107:G111)>100,100,SUM(G107:G111)) -> 100 | H106: =IF(SUM(H107:H111)>100,100,SUM(H107:H111)) -> 0 | I106: 2 | J106: =K106/$K$45*$J$45 -> 0.01956521739 | K106: =G106*I106 -> 200
F107: Grundsätzliche Zugänglichkeit des Gebäudes | G107: 25
F108: Öffnung der Außenanlagen für die Öffentlichkeit | G108: 25
F109: Öffnung gebäudeinterner Einrichtungen für die Öffentlichkeit | G109: 25
F110: Möglichkeit der Anmietung von Räumlichkeiten | G110: 15
F111: Nutzungsvielfalt der öffentlich zugänglichen Bereiche | G111: 10
B112: BN | C112: UK | D112: UN | E112: 3.2.5 | F112: Mobilitätsinfrastruktur | G112: =IF(SUM(G113:G115)>100,100,SUM(G113:G115)) -> 100 | H112: =IF(SUM(H113:H115)>100,100,SUM(H113:H115)) -> 0 | I112: 1 | J112: =K112/$K$45*$J$45 -> 0.009782608696 | K112: =G112*I112 -> 100
F113: Anzahl der Fahrradstellplätze | G113: 40
F114: Anzahl der Lademöglichkeiten und Carsharing-Stellplätze | G114: 20
F115: Qualitative Anforderungen an Fahrradstellplätze | G115: 60
F116: Sicherung der Gestaltungsqualität
A117: D | C117: UK | E117: 3.3.1 | F117: Gestalterische und städtebauliche Qualität | G117: =IF(SUM(G118:G123)>100,100,SUM(G118:G123)) -> 100 | H117: =IF(AND(H118>0,H122<=H123),SUM(H118:H121),IF(AND(H118>0,H123<=H122),SUM(H118:H121),IF(H122>0,H122,IF(H123>0,H123,)))) -> 0 | I117: 3 | J117: =K117/$K$45*$J$45 -> 0.02934782609 | K117: =G117*I117 -> 300
C118: UK | F118: Erfassung und Fortentwicklung der gestalterischen und städtebaulichen Qualität des Bestandsgebäudes | G118: 40
C119: UK | F119: Wettbewerbsverfahren | G119: 35
C120: UK | F120: Ausführung des Entwurfs eines der Preisträger | G120: 20
C121: UK | F121: Beauftragung des Planungsteams | G121: 5
C122: UK | F122: Auszeichnung mit einem Architekturpreis | G122: 40
C123: UK | F123: Unabhängiges Expertengremium | G123: 30
C124: UK | E124: 3.3.2 | F124: Kunst am Bau | G124: =IF(SUM(G125:G128)>100,100,SUM(G125:G128)) -> 100 | H124: =IF(SUM(H125:H128)>100,100,SUM(H125:H128)) -> 0 | I124: 1 | J124: =K124/$K$45*$J$45 -> 0.009782608696 | K124: =G124*I124 -> 100
F125: Mindestanforderung | G125: 10
F126: Bereitstellung von Mitteln im Rahmen der Bauaufgabe | G126: 30
F127: Umsetzung des Leitfadens Kunst am Bau | G127: 40
F128: Öffentlichkeitsarbeit, Rezeption der Kunst am Bau | G128: 20
E130: Technische Qualität | J130: 0.225 | K130: =SUM(K133:K157) -> 1000
F132: technische Ausführung
B133: BN | E133: 4.1.1 | F133: Schallschutz | G133: =IF(SUM(G134:G137)>100,100,SUM(G134:G137)) -> 100 | H133: =IF(SUM(H134:H137)>100,100,SUM(H134:H137)) -> 0 | I133: 2 | J133: =K133/$K$130*$J$130 -> 0.045 | K133: =G133*I133 -> 200
F134: Luftschallschutz gegen Außenlärm | G134: 20
F135: Luftschallschutz gegenüber fremden und eigenen Arbeitsbereichen | G135: 30
F136: Trittschallschutz gegenüber fremden und eigenen Arbeitsbereichen | G136: 30
F137: Schallschutz gegenüber haustechnischen Anlagen | G137: 20
A138: D | C138: UK | E138: 4.1.2 | F138: Wärme- und Tauwasserschutz | G138: =IF(SUM(G139:G144)>100,100,SUM(G139:G144)) -> 100 | H138: =IF(SUM(H139:H140)>100,100,SUM(H139:H140)) -> 0 | I138: 2 | J138: =K138/$K$130*$J$130 -> 0.045 | K138: =G138*I138 -> 200
F139: Mittlere Wärmeduchgangskoeffizienten | G139: 30
F140: Wärmebrückenzuschlag | G140: 15
F141: Klassen der Luftdurchlässigkeit (Fugendurchlässigkeit) | G141: 15
F142: Tauwasserbildung | G142: 10
F143: Luftwechsel | G143: 15
F144: Sonneneintragswert | G144: 15
B145: BN | E145: 4.1.3 | F145: Reinigungs- und Instandhaltungsfreundlichkeit | G145: =IF(SUM(G146:G154)>100,100,SUM(G146:G154)) -> 100 | H145: =IF(SUM(H146:H154)>100,100,SUM(H146:H154)) -> 0 | I145: 2 | J145: =K145/$K$130*$J$130 -> 0.045 | K145: =G145*I145 -> 200
F146: Tragkonstruktion | G146: 15
F147: Zugänglichkeit der Außenglasflächen | G147: 15
F148: Außenbauteile | G148: 9
F149: Bodenbelag | G149: 9
F150: Schmutzfangzone | G150: 9
F151: Fußbodenleisten | G151: 9
F152: Hindernisfreie Grundrissgestaltung | G152: 9
F153: Einbauten | G153: 10
F154: Zugänglichkeit der Innenglasflächen | G154: 15
B155: BN | C155: UK | D155: UN | E155: 4.1.4 | F155: Rückbau, Trennung und Verwertung | G155: 100 | I155: 2 | J155: =K155/$K$130*$J$130 -> 0.045 | K155: =G155*I155 -> 200
B156: BN | C156: UK | D156: UN | E156: 4.1.5 | F156: Widerstandsfähigkeit gegen Naturgefahren | G156: 100 | I156: 1 | J156: =K156/$K$130*$J$130 -> 0.0225 | K156: =G156*I156 -> 100
B157: BN | C157: UK | D157: UN | E157: 4.1.6 | F157: Bedienungs- und Instandhaltungsfreundlichkeit der TGA | G157: 100 | I157: 1 | J157: =K157/$K$130*$J$130 -> 0.0225 | K157: =G157*I157 -> 100
E159: Prozessqualität | J159: 0.1 | K159: =SUM(K162:K217) -> 2500
F161: Planung
B162: BN | E162: 5.1.1 | F162: Projektvorbereitung | G162: =IF(SUM(G163:G165)>100,100,SUM(G163:G165)) -> 100 | H162: =IF(SUM(H163:H165)>100,100,SUM(H163:H165)) -> 0 | I162: 3 | J162: =K162/$K$159*$J$159 -> 0.012 | K162: =G162*I162 -> 300
B163: BN | F163: Bedarfsplanung oder vergleichbare Planung | G163: 35
B164: BN | F164: Zielvereinbarung | G164: 35
B165: BN | F165: Architektenwettbewerb | G165: 30
B166: BN | E166: 5.1.2 | F166: Integrale Planung | G166: =IF(SUM(G167:G171)>100,100,SUM(G167:G171)) -> 100 | H166: =IF(SUM(H167:H171)>100,100,SUM(H167:H171)) -> 0 | I166: 3 | J166: =K166/$K$159*$J$159 -> 0.012 | K166: =G166*I166 -> 300
F167: Integrales Planungsteam | G167: 30
F168: Qualifikation des Planungsteams | G168: 20
F169: Integraler Planungsprozess | G169: 20
F170: Nutzerbeteiligung | G170: 20
F171: Öffentlichkeitsbeteiligung | G171: 10
B172: BN | C172: UK | D172: UN | E172: 5.1.3 | F172: Komplexität und Optimierung der Planung | G172: =IF(SUM(G173:G187)>100,100,SUM(G173:G187)) -> 100 | H172: =IF(SUM(H173:H187)>100,100,SUM(H173:H187)) -> 0 | I172: 3 | J172: =K172/$K$159*$J$159 -> 0.012 | K172: =G172*I172 -> 300
B173: BN | C173: UK | D173: UN | F173: SiGe-Plan | G173: 10
B174: BN | C174: UK | D174: UN | F174: Ver- und Entsiegelungskonzept | G174: 10
B175: BN | C175: UK | D175: UN | F175: Energiekonzept | G175: 15
B176: BN | C176: UK | D176: UN | F176: Mess- und Monitoringkonzept | G176: 15
B177: BN | C177: UK | D177: UN | F177: Wasserkonzept | G177: 10
B178: BN | C178: UK | D178: UN | F178: Konzept zur Vermeidung von Umwelt- und Gesundheitsrisiken aus Bauprodukten | G178: 10
B179: BN | C179: UK | D179: UN | F179: Lüftungskonzept | G179: 10
B180: BN | C180: UK | D180: UN | F180: Abfallkonzept / Wertstoffkonzept | G180: 5
B181: BN | C181: UK | D181: UN | F181: Tages- / Kunstlichtoptimierung | G181: 10
B182: BN | C182: UK | D182: UN | F182: Konzept zur Sicherung der Reinigungs- und Instandhaltungsfreundlichkeit | G182: 10
B183: BN | C183: UK | D183: UN | F183: Anpassbarkeits-, Rückbau- und Recyclingkonzept | G183: 10
B184: BN | C184: UK | D184: UN | F184: Konzept zur Vermeidung und Beherrschung von Risiken | G184: 10
B185: BN | C185: UK | D185: UN | F185: Sonstige Konzepte zum Nachhaltigen Bauen | G185: 10
B186: BN | C186: UK | D186: UN | F186: Prüfung der Planungsunterlagen durch unabhängige Dritte | G186: 5
B187: BN | C187: UK | D187: UN | F187: Durchführung von Variantenvergleichen | G187: 10
B188: BN | C188: UK | D188: UN | E188: 5.1.4 | F188: Ausschreibung und Vergabe | G188: 100 | I188: 2 | J188: =K188/$K$159*$J$159 -> 0.008 | K188: =G188*I188 -> 200
B189: BN | C189: UK | D189: UN | E189: 5.1.5 | F189: Voraussetzungen für eine optimale Bewirtschaftung | G189: =IF(SUM(G190:G193)>100,100,SUM(G190:G193)) -> 100 | H189: =IF(SUM(H190:H193)>100,100,SUM(H190:H193)) -> 0 | I189: 2 | J189: =K189/$K$159*$J$159 -> 0.008 | K189: =G189*I189 -> 200
F190: Erstellung einer Gebäudeakte / Objektdokumentation | G190: 25
F191: Erstellung von Wartungs-, Inspektions-, Betriebs-, und Pflegeanleitungen | G191: 25
F192: Anpassung der Pläne und Berechnungen an das realisierte Gebäude | G192: 25
F193: Erstellung eines Nutzerhandbuches | G193: 25
C194: UK | E194: 5.1.6 | F194: Bestandsanalyse | G194: 100 | H194: =IF(SUM(H195:H203)>100,100,SUM(H195:H203)) -> 0 | I194: 3 | J194: =K194/$K$159*$J$159 -> 0.012 | K194: =G194*I194 -> 300
C195: UK | F195: Bestandsaufnahme Geometrie | G195: 10
C196: UK | F196: Bestandsaufnahme Baukonstruktion und Baustoffe | G196: 20
C197: UK | F197: Bestandsaufnahme Haustechnik | G197: 10
C198: UK | F198: Bestandsaufnahme Bau- und Nutzungsgeschichte | G198: 5
C199: UK | F199: Bestandsaufnahme Exposition | G199: 5
C200: UK | F200: Baudiagnose Tragwerk | G200: 15
C201: UK | F201: Baudiagnose Energetische Qualität | G201: 15
C202: UK | F202: Baudiagnose Schadstoffe | G202: 10
C203: UK | F203: Baudiagnose Feuchte- und Salzbelastung | G203: 10
C204: UK | E204: 5.1.7 | F204: Rückbaumaßnahmen | G204: 100 | H204: =IF(SUM(H205:H207)>100,100,SUM(H205:H207)) -> 0 | I204: 1 | J204: =K204/$K$159*$J$159 -> 0.004 | K204: =G204*I204 -> 100
F205: Planung des Rückbaus | G205: 50
F206: Selektiver Rückbau | G206: 25
F207: Prüfen auf Abfalltrennung und Entsorgung | G207: 25
F208: Bauausführung
B209: BN | C209: UK | D209: UN | E209: 5.2.1 | F209: Baustelle / Bauprozess | G209: =IF(SUM(G210:G213)>100,100,SUM(G210:G213)) -> 100 | H209: =IF(SUM(H210:H213)>100,100,SUM(H210:H213)) -> 0 | I209: 2 | J209: =K209/$K$159*$J$159 -> 0.008 | K209: =G209*I209 -> 200
B210: BN | C210: UK | D210: UN | F210: Wertstoffoptimierte Baustelle | G210: 25
... 47 more rows

Sheet Gültigkeitsliste (hidden)
A1: Erfüllt / nicht erfüllt
A2: o
A3: x

Sheet hilfstabelle (hidden)
A4: Eingereichte Endbewertung | C4: Bemerkung Konformitätsprüfung Prüfung vom: | D4: Bearbeiter
A5: Anwender | B5: Konformitätsprüfung | C5: =TODAY() -> 2017-11-23
A7: =Konformitätsprüfung!$G7 -> 0 | B7: =B10+B35+B49+B134+B163 -> 0
A10: =Konformitätsprüfung!$G10 -> 0 | B10: =B13*($E$13/100)+B14*($E$14/100)+B15*($E$15/100)+B16*($E$16/100)+B17*($E$17/100)+B18*($E$18/100)+B24*($E$24/100)+B26*($E$26/100)+B30*($E$30/100)+B31*($E$31/100) -> 0
A13: =Konformitätsprüfung!$G13 -> 0 | B13: =Konformitätsprüfung!$H13 -> 0
A14: =Konformitätsprüfung!$G14 -> 0 | B14: =Konformitätsprüfung!$H14 -> 0
A15: =Konformitätsprüfung!$G15 -> 0 | B15: =Konformitätsprüfung!$H15 -> 0
A16: =Konformitätsprüfung!$G16 -> 0 | B16: =Konformitätsprüfung!$H16 -> 0
A17: =Konformitätsprüfung!$G17 -> 0 | B17: =Konformitätsprüfung!$H17 -> 0
A18: =Konformitätsprüfung!$G18 -> 0 | B18: =SUM(B19:B23) -> 0
A19: =Konformitätsprüfung!$G19 -> 0 | B19: =Konformitätsprüfung!$H19 -> 0
A20: =Konformitätsprüfung!$G20 -> 0 | B20: =Konformitätsprüfung!$H20 -> 0
A21: =Konformitätsprüfung!$G21 -> 0 | B21: =Konformitätsprüfung!$H21 -> 0
A22: =Konformitätsprüfung!$G22 -> 0 | B22: =Konformitätsprüfung!$H22 -> 0
A23: =Konformitätsprüfung!$G23 -> 0 | B23: =Konformitätsprüfung!$H23 -> 0
A24: =Konformitätsprüfung!$G24 -> 0 | B24: =Konformitätsprüfung!$H24 -> 0
A26: =Konformitätsprüfung!$G26 -> 0 | B26: =SUM(B27:B29) -> 0
A27: =Konformitätsprüfung!$G27 -> 0 | B27: =Konformitätsprüfung!$H27 -> 0
A28: =Konformitätsprüfung!$G29 -> 0 | B28: =Konformitätsprüfung!$H29 -> 0
A29: =Konformitätsprüfung!$G30 -> 0 | B29: =Konformitätsprüfung!$H30 -> 0
A30: =Konformitätsprüfung!$G30 -> 0 | B30: =Konformitätsprüfung!$H30 -> 0
A31: =Konformitätsprüfung!$G31 -> 0 | B31: =SUM(B32:B33) -> 0
A32: =Konformitätsprüfung!$G32 -> 0 | B32: =Konformitätsprüfung!$H32 -> 0
A33: =Konformitätsprüfung!$G33 -> 0 | B33: =Konformitätsprüfung!$H33 -> 0
A35: =Konformitätsprüfung!$G35 -> 0 | B35: =B38*($E$38/100)+B40*($E$40/100)+B41*($E$41/100) -> 0
A38: =Konformitätsprüfung!$G38 -> 0 | B38: =Konformitätsprüfung!$H38 -> 0
A40: =Konformitätsprüfung!$G40 -> 0 | B40: =Konformitätsprüfung!$H40 -> 0
A41: =Konformitätsprüfung!$G41 -> 0 | B41: =SUM(B42:B47) -> 0
A42: =Konformitätsprüfung!$G42 -> 0 | B42: =Konformitätsprüfung!$H42 -> 0
A43: =Konformitätsprüfung!$G43 -> 0 | B43: =Konformitätsprüfung!$H43 -> 0
A44: =Konformitätsprüfung!$G44 -> 0 | B44: =Konformitätsprüfung!$H44 -> 0
A45: =Konformitätsprüfung!$G45 -> 0 | B45: =Konformitätsprüfung!$H45 -> 0
A46: =Konformitätsprüfung!$G46 -> 0 | B46: =Konformitätsprüfung!$H46 -> 0
A47: =Konformitätsprüfung!$G47 -> 0 | B47: =Konformitätsprüfung!$H47 -> 0
A49: =Konformitätsprüfung!$G49 -> 0 | B49: =B52*($E$52/100)+B63*($E$63/100)+B66*($E$66/100)+B76*($E$76/100)+B84*($E$84/100)+B93*($E$93/100)+B107*($E$107/100)+B109*($E$109/100)+B110*($E$110/100)+B116*($E$116/100)+B121*($E$121/100)+B128*($E$128/100) -> 0
A52: =Konformitätsprüfung!$G52 -> 0 | B52: =SUM(B53:B62) -> 0
A53: =Konformitätsprüfung!$G53 -> 0 | B53: =Konformitätsprüfung!$H53 -> 0
A54: =Konformitätsprüfung!$G54 -> 0 | B54: =Konformitätsprüfung!$H54 -> 0
A55: =Konformitätsprüfung!$G55 -> 0 | B55: =Konformitätsprüfung!$H55 -> 0
A56: =Konformitätsprüfung!$G56 -> 0 | B56: =Konformitätsprüfung!$H56 -> 0
A57: =Konformitätsprüfung!$G57 -> 0 | B57: =Konformitätsprüfung!$H57 -> 0
A58: =Konformitätsprüfung!$G58 -> 0 | B58: =Konformitätsprüfung!$H58 -> 0
A59: =Konformitätsprüfung!$G59 -> 0 | B59: =Konformitätsprüfung!$H59 -> 0
A60: =Konformitätsprüfung!$G60 -> 0 | B60: =Konformitätsprüfung!$H60 -> 0
A61: =Konformitätsprüfung!$G61 -> 0 | B61: =Konformitätsprüfung!$H61 -> 0
A62: =Konformitätsprüfung!$G62 -> 0 | B62: =Konformitätsprüfung!$H62 -> 0
A63: =Konformitätsprüfung!$G63 -> 0 | B63: =IF(SUM(B64:B65)>100,100,SUM(B64:B65)) -> 0
A64: =Konformitätsprüfung!$G64 -> 0 | B64: =Konformitätsprüfung!$H64 -> 0
A65: =Konformitätsprüfung!$G65 -> 0 | B65: =Konformitätsprüfung!$H65 -> 0
A66: =Konformitätsprüfung!$G66 -> 0 | B66: =SUM(B68:B75) -> 0
A68: =Konformitätsprüfung!$G68 -> 0 | B68: =Konformitätsprüfung!$H68 -> 0
A69: =Konformitätsprüfung!$G69 -> 0 | B69: =Konformitätsprüfung!$H69 -> 0
A70: =Konformitätsprüfung!$G70 -> 0 | B70: =Konformitätsprüfung!$H70 -> 0
A71: =Konformitätsprüfung!$G71 -> 0 | B71: =Konformitätsprüfung!$H71 -> 0
A73: =Konformitätsprüfung!$G73 -> 0 | B73: =Konformitätsprüfung!$H73 -> 0
A74: =Konformitätsprüfung!$G74 -> 0 | B74: =Konformitätsprüfung!$H74 -> 0
A75: =Konformitätsprüfung!$G75 -> 0 | B75: =Konformitätsprüfung!$H75 -> 0
A76: =Konformitätsprüfung!$G76 -> 0 | B76: =SUM(B77:B83) -> 0
A77: =Konformitätsprüfung!$G77 -> 0 | B77: =Konformitätsprüfung!$H77 -> 0
A78: =Konformitätsprüfung!$G78 -> 0 | B78: =Konformitätsprüfung!$H78 -> 0
A79: =Konformitätsprüfung!$G79 -> 0 | B79: =Konformitätsprüfung!$H79 -> 0
A80: =Konformitätsprüfung!$G80 -> 0 | B80: =Konformitätsprüfung!$H80 -> 0
A81: =Konformitätsprüfung!$G81 -> 0 | B81: =Konformitätsprüfung!$H81 -> 0
A82: =Konformitätsprüfung!$G82 -> 0 | B82: =Konformitätsprüfung!$H82 -> 0
A83: =Konformitätsprüfung!$G83 -> 0 | B83: =Konformitätsprüfung!$H83 -> 0
A84: =Konformitätsprüfung!$G84 -> 0 | B84: =SUM(B85:B92) -> 0
A85: =Konformitätsprüfung!$G85 -> 0 | B85: =Konformitätsprüfung!$H85 -> 0
A86: =Konformitätsprüfung!$G86 -> 0 | B86: =Konformitätsprüfung!$H86 -> 0
A87: =Konformitätsprüfung!$G87 -> 0 | B87: =Konformitätsprüfung!$H87 -> 0
A88: =Konformitätsprüfung!$G88 -> 0 | B88: =Konformitätsprüfung!$H88 -> 0
A89: =Konformitätsprüfung!$G89 -> 0 | B89: =Konformitätsprüfung!$H89 -> 0
A90: =Konformitätsprüfung!$G90 -> 0 | B90: =Konformitätsprüfung!$H90 -> 0
A91: =Konformitätsprüfung!$G91 -> 0 | B91: =Konformitätsprüfung!$H91 -> 0
A92: =Konformitätsprüfung!$G92 -> 0 | B92: =Konformitätsprüfung!$H92 -> 0
A93: =Konformitätsprüfung!$G93 -> 0 | B93: =SUM(B94:B106) -> 0
A94: =Konformitätsprüfung!$G94 -> 0 | B94: =Konformitätsprüfung!$H94 -> 0
A95: =Konformitätsprüfung!$G95 -> 0 | B95: =Konformitätsprüfung!$H95 -> 0
A96: =Konformitätsprüfung!$G96 -> 0 | B96: =Konformitätsprüfung!$H96 -> 0
A97: =Konformitätsprüfung!$G97 -> 0 | B97: =Konformitätsprüfung!$H97 -> 0
A98: =Konformitätsprüfung!$G98 -> 0 | B98: =Konformitätsprüfung!$H98 -> 0
A99: =Konformitätsprüfung!$G99 -> 0 | B99: =Konformitätsprüfung!$H99 -> 0
A100: =Konformitätsprüfung!$G100 -> 0 | B100: =Konformitätsprüfung!$H100 -> 0
A101: =Konformitätsprüfung!$G101 -> 0 | B101: =Konformitätsprüfung!$H101 -> 0
A102: =Konformitätsprüfung!$G102 -> 0 | B102: =Konformitätsprüfung!$H102 -> 0
A103: =Konformitätsprüfung!$G103 -> 0 | B103: =Konformitätsprüfung!$H103 -> 0
A104: =Konformitätsprüfung!$G104 -> 0 | B104: =Konformitätsprüfung!$H104 -> 0
A105: =Konformitätsprüfung!$G105 -> 0 | B105: =Konformitätsprüfung!$H105 -> 0
A106: =Konformitätsprüfung!$G106 -> 0 | B106: =Konformitätsprüfung!$H106 -> 0
A107: =Konformitätsprüfung!$G107 -> 0 | B107: =Konformitätsprüfung!$H105 -> 0
A109: =Konformitätsprüfung!$G109 -> 0 | B109: =Konformitätsprüfung!$H107 -> 0
A110: =Konformitätsprüfung!$G110 -> 0 | B110: =SUM(B111:B115) -> 0
A111: =Konformitätsprüfung!$G111 -> 0 | B111: =Konformitätsprüfung!$H111 -> 0
A112: =Konformitätsprüfung!$G112 -> 0 | B112: =Konformitätsprüfung!$H112 -> 0
A113: =Konformitätsprüfung!$G113 -> 0 | B113: =Konformitätsprüfung!$H113 -> 0
A114: =Konformitätsprüfung!$G114 -> 0 | B114: =Konformitätsprüfung!$H114 -> 0
A115: =Konformitätsprüfung!$G115 -> 0 | B115: =Konformitätsprüfung!$H115 -> 0
A116: =Konformitätsprüfung!$G116 -> 0 | B116: =SUM(B117:B119) -> 0
A117: =Konformitätsprüfung!$G117 -> 0 | B117: =Konformitätsprüfung!$H117 -> 0
A118: =Konformitätsprüfung!$G118 -> 0 | B118: =Konformitätsprüfung!$H118 -> 0
A119: =Konformitätsprüfung!$G119 -> 0 | B119: =Konformitätsprüfung!$H119 -> 0
A121: =Konformitätsprüfung!$G121 -> 0 | B121: =IF(AND(B122>0,B126<=B127),SUM(B122:B125),IF(AND(B122>0,B127<=B126),SUM(B122:B125),IF(B126>0,B126,IF(B127>0,B127,)))) -> 0
A122: =Konformitätsprüfung!$G122 -> 0 | B122: =Konformitätsprüfung!$H122 -> 0
A123: =Konformitätsprüfung!$G123 -> 0 | B123: =Konformitätsprüfung!$H123 -> 0
A124: =Konformitätsprüfung!$G124 -> 0 | B124: =Konformitätsprüfung!$H124 -> 0
A125: =Konformitätsprüfung!$G125 -> 0 | B125: =Konformitätsprüfung!$H125 -> 0
A126: =Konformitätsprüfung!$G126 -> 0 | B126: =Konformitätsprüfung!$H126 -> 0
A127: =Konformitätsprüfung!$G127 -> 0 | B127: =Konformitätsprüfung!$H127 -> 0
A128: =Konformitätsprüfung!$G128 -> 0 | B128: =SUM(B129:B132) -> 0
A129: =Konformitätsprüfung!$G129 -> 0 | B129: =Konformitätsprüfung!$H129 -> 0
A130: =Konformitätsprüfung!$G130 -> 0 | B130: =Konformitätsprüfung!$H130 -> 0
A131: =Konformitätsprüfung!$G131 -> 0 | B131: =Konformitätsprüfung!$H131 -> 0
A132: =Konformitätsprüfung!$G132 -> 0 | B132: =Konformitätsprüfung!$H132 -> 0
A134: =Konformitätsprüfung!$G134 -> 0 | B134: =B137*($E$137/100)+B142*($E$142/100)+B149*($E$149/100)+B159*($E$159/100)+B160*($E$160/100)+B161*($E$161/100) -> 0
A137: =Konformitätsprüfung!$G137 -> 0 | B137: =SUM(B138:B141) -> 0
A138: =Konformitätsprüfung!$G138 -> 0 | B138: =Konformitätsprüfung!$H138 -> 0
A139: =Konformitätsprüfung!$G139 -> 0 | B139: =Konformitätsprüfung!$H139 -> 0
A140: =Konformitätsprüfung!$G140 -> 0 | B140: =Konformitätsprüfung!$H140 -> 0
A141: =Konformitätsprüfung!$G141 -> 0 | B141: =Konformitätsprüfung!$H141 -> 0
A142: =Konformitätsprüfung!$G142 -> 0 | B142: =SUM(B143:B148) -> 0
A143: =Konformitätsprüfung!$G143 -> 0 | B143: =Konformitätsprüfung!$H143 -> 0
A144: =Konformitätsprüfung!$G144 -> 0 | B144: =Konformitätsprüfung!$H144 -> 0
A145: =Konformitätsprüfung!$G145 -> 0 | B145: =Konformitätsprüfung!$H145 -> 0
A146: =Konformitätsprüfung!$G146 -> 0 | B146: =Konformitätsprüfung!$H146 -> 0
A147: =Konformitätsprüfung!$G147 -> 0 | B147: =Konformitätsprüfung!$H147 -> 0
A148: =Konformitätsprüfung!$G148 -> 0 | B148: =Konformitätsprüfung!$H148 -> 0
A149: =Konformitätsprüfung!$G149 -> 0 | B149: =SUM(B150:B158) -> 0
A150: =Konformitätsprüfung!$G150 -> 0 | B150: =Konformitätsprüfung!$H150 -> 0
A151: =Konformitätsprüfung!$G151 -> 0 | B151: =Konformitätsprüfung!$H151 -> 0
A152: =Konformitätsprüfung!$G152 -> 0 | B152: =Konformitätsprüfung!$H152 -> 0
A153: =Konformitätsprüfung!$G153 -> 0 | B153: =Konformitätsprüfung!$H153 -> 0
A154: =Konformitätsprüfung!$G154 -> 0 | B154: =Konformitätsprüfung!$H154 -> 0
A155: =Konformitätsprüfung!$G155 -> 0 | B155: =Konformitätsprüfung!$H155 -> 0
A156: =Konformitätsprüfung!$G156 -> 0 | B156: =Konformitätsprüfung!$H156 -> 0
A157: =Konformitätsprüfung!$G157 -> 0 | B157: =Konformitätsprüfung!$H157 -> 0
A158: =Konformitätsprüfung!$G158 -> 0 | B158: =Konformitätsprüfung!$H158 -> 0
A159: =Konformitätsprüfung!$G159 -> 0 | B159: =Konformitätsprüfung!$H159 -> 0
A160: =Konformitätsprüfung!$G160 -> 0 | B160: =Konformitätsprüfung!$H160 -> 0
A161: =Konformitätsprüfung!$G161 -> 0 | B161: =Konformitätsprüfung!$H161 -> 0
A163: =Konformitätsprüfung!$G163 -> 0 | B163: =B166*($E$166/100)+B170*($E$170/100)+B176*($E$176/100)+B192*($E$192/100)+B193*($E$193/100)+B198*($E$198/100)+B208*($E$208/100)+B213*($E$213/100)+B218*($E$218/100)+B221*($E$221/100) -> 0
A166: =Konformitätsprüfung!$G166 -> 0 | B166: =SUM(B167:B169) -> 0
A167: =Konformitätsprüfung!$G167 -> 0 | B167: =Konformitätsprüfung!$H167 -> 0
A168: =Konformitätsprüfung!$G168 -> 0 | B168: =Konformitätsprüfung!$H168 -> 0
A169: =Konformitätsprüfung!$G169 -> 0 | B169: =Konformitätsprüfung!$H169 -> 0
A170: =Konformitätsprüfung!$G170 -> 0 | B170: =SUM(B171:B175) -> 0
A171: =Konformitätsprüfung!$G171 -> 0 | B171: =Konformitätsprüfung!$H171 -> 0
A172: =Konformitätsprüfung!$G172 -> 0 | B172: =Konformitätsprüfung!$H172 -> 0
A173: =Konformitätsprüfung!$G173 -> 0 | B173: =Konformitätsprüfung!$H173 -> 0
A174: =Konformitätsprüfung!$G174 -> 0 | B174: =Konformitätsprüfung!$H174 -> 0
A175: =Konformitätsprüfung!$G175 -> 0 | B175: =Konformitätsprüfung!$H175 -> 0
A176: =Konformitätsprüfung!$G176 -> 0 | B176: =SUM(B177:B191) -> 0
A177: =Konformitätsprüfung!$G177 -> 0 | B177: =Konformitätsprüfung!$H177 -> 0
A178: =Konformitätsprüfung!$G178 -> 0 | B178: =Konformitätsprüfung!$H178 -> 0
A179: =Konformitätsprüfung!$G179 -> 0 | B179: =Konformitätsprüfung!$H179 -> 0
A180: =Konformitätsprüfung!$G180 -> 0 | B180: =Konformitätsprüfung!$H180 -> 0
A181: =Konformitätsprüfung!$G181 -> 0 | B181: =Konformitätsprüfung!$H181 -> 0
A182: =Konformitätsprüfung!$G182 -> 0 | B182: =Konformitätsprüfung!$H182 -> 0
A183: =Konformitätsprüfung!$G183 -> 0 | B183: =Konformitätsprüfung!$H183 -> 0
A184: =Konformitätsprüfung!$G184 -> 0 | B184: =Konformitätsprüfung!$H184 -> 0
A185: =Konformitätsprüfung!$G185 -> 0 | B185: =Konformitätsprüfung!$H185 -> 0
A186: =Konformitätsprüfung!$G186 -> 0 | B186: =Konformitätsprüfung!$H186 -> 0
A187: =Konformitätsprüfung!$G187 -> 0 | B187: =Konformitätsprüfung!$H187 -> 0
A188: =Konformitätsprüfung!$G188 -> 0 | B188: =Konformitätsprüfung!$H188 -> 0
A189: =Konformitätsprüfung!$G189 -> 0 | B189: =Konformitätsprüfung!$H189 -> 0
A190: =Konformitätsprüfung!$G190 -> 0 | B190: =Konformitätsprüfung!$H190 -> 0
A191: =Konformitätsprüfung!$G191 -> 0 | B191: =Konformitätsprüfung!$H191 -> 0
A192: =Konformitätsprüfung!$G192 -> 0 | B192: =Konformitätsprüfung!$H192 -> 0
A193: =Konformitätsprüfung!$G193 -> 0 | B193: =SUM(B194:B197) -> 0
A194: =Konformitätsprüfung!$G194 -> 0 | B194: =Konformitätsprüfung!$H194 -> 0
A195: =Konformitätsprüfung!$G195 -> 0 | B195: =Konformitätsprüfung!$H195 -> 0
A196: =Konformitätsprüfung!$G196 -> 0 | B196: =Konformitätsprüfung!$H196 -> 0
A197: =Konformitätsprüfung!$G197 -> 0 | B197: =Konformitätsprüfung!$H197 -> 0
A198: =Konformitätsprüfung!$G198 -> 0 | B198: =SUM(B199:B207) -> 0
A199: =Konformitätsprüfung!$G199 -> 0 | B199: =Konformitätsprüfung!$H199 -> 0
A200: =Konformitätsprüfung!$G200 -> 0 | B200: =Konformitätsprüfung!$H200 -> 0
A201: =Konformitätsprüfung!$G201 -> 0 | B201: =Konformitätsprüfung!$H201 -> 0
A202: =Konformitätsprüfung!$G202 -> 0 | B202: =Konformitätsprüfung!$H202 -> 0
A203: =Konformitätsprüfung!$G203 -> 0 | B203: =Konformitätsprüfung!$H203 -> 0
A204: =Konformitätsprüfung!$G204 -> 0 | B204: =Konformitätsprüfung!$H204 -> 0
A205: =Konformitätsprüfung!$G205 -> 0 | B205: =Konformitätsprüfung!$H205 -> 0
A206: =Konformitätsprüfung!$G206 -> 0 | B206: =Konformitätsprüfung!$H206 -> 0
A207: =Konformitätsprüfung!$G207 -> 0 | B207: =Konformitätsprüfung!$H207 -> 0
A208: =Konformitätsprüfung!$G208 -> 0 | B208: =SUM(B209:B211) -> 0
A209: =Konformitätsprüfung!$G209 -> 0 | B209: =Konformitätsprüfung!$H209 -> 0
A210: =Konformitätsprüfung!$G210 -> 0 | B210: =Konformitätsprüfung!$H210 -> 0
A211: =Konformitätsprüfung!$G211 -> 0 | B211: =Konformitätsprüfung!$H211 -> 0
A213: =Konformitätsprüfung!$G213 -> 0 | B213: =SUM(B214:B217) -> 0
A214: =Konformitätsprüfung!$G214 -> 0 | B214: =Konformitätsprüfung!$H214 -> 0
A215: =Konformitätsprüfung!$G215 -> 0 | B215: =Konformitätsprüfung!$H215 -> 0
A216: =Konformitätsprüfung!$G216 -> 0 | B216: =Konformitätsprüfung!$H216 -> 0
A217: =Konformitätsprüfung!$G217 -> 0 | B217: =Konformitätsprüfung!$H217 -> 0
A218: =Konformitätsprüfung!$G218 -> 0 | B218: =SUM(B219:B220) -> 0
A219: =Konformitätsprüfung!$G219 -> 0 | B219: =Konformitätsprüfung!$H219 -> 0
A220: =Konformitätsprüfung!$G220 -> 0 | B220: =Konformitätsprüfung!$H220 -> 0
A221: =Konformitätsprüfung!$G221 -> 0 | B221: =Konformitätsprüfung!$H221 -> 0
A224: =Konformitätsprüfung!$G224 -> 0 | B224: =B227*($E$227/100)+B233*($E$233/100)+B240*($E$240/100)+B245*($E$245/100)+B249*($E$249/100)+B259*($E$259/100) -> 0
A227: =Konformitätsprüfung!$G227 -> 0 | B227: =SUM(B228:B232) -> 0
A228: =Konformitätsprüfung!$G228 -> 0 | B228: =Konformitätsprüfung!$H228 -> 0
A229: =Konformitätsprüfung!$G229 -> 0 | B229: =Konformitätsprüfung!$H229 -> 0
A230: =Konformitätsprüfung!$G230 -> 0 | B230: =Konformitätsprüfung!$H230 -> 0
A231: =Konformitätsprüfung!$G231 -> 0 | B231: =Konformitätsprüfung!$H231 -> 0
... 32 more rows
